Workbook

Sheet Calcul
A1: Barème C "double gain" applicable aux couples mariés dont les deux conjoints exercent simultanément une activité lucrative
A2: Calculette permettant la prise en compte des revenus réels du conjoint en Suisse ou à l'étranger pour le calcul du taux d'imposition
A4: Année fiscale : 2025 | F4: Légende : | G4: A saisir | I4: Exemple :
G5: Résultat | J5: X et Z sont mariés avec un enfant mineur. Ils sont domiciliés dans le canton de Vaud. X perçoit un salaire annuel brut égal à 100'000 fr. Z perçoit un salaire annuel brut égal à 40'000 fr. En cours d’année, leur employeur respectif applique le barème C1 pour le prélèvement de l’impôt à la source. Le taux applicable à X est de 12.07% relatif à un revenu déterminant pour le taux de 168'700 fr. (100'000 + 69’300) et l’impôt à la source se monte à 12'070 fr. (12.07% x 100’000). Le taux applicable à Z est de 2.23% relatif à un revenu déterminant pour le taux de 80'000 fr. (40'000 + 40’000) et l’impôt à la source se monte à 892 fr. (2.23% x 40’000). →Montant d’impôt à la source total pour le couple selon le barème C1 ordinaire = 12'962 fr. Si X conteste le montant de la retenue de l’impôt à la source dans le délai en demandant à ce que les revenus réels de son conjoint soient pris en compte pour la détermination du taux d’imposition, il en résulte les conséquences qui suivent : Le total des revenus cumulés du couple se monte à 140'000 fr. Le revenu déterminant pour le taux de 140'000 fr. représente, selon le barème C, un taux égal à 9.87% équivalent à un revenu annuel brut du contribuable de 70'700 fr. (140’000-69’300=70’700). Il convient dès lors d’appliquer ce taux de 9.87%, qui tient compte du cumul des revenus effectifs du couple, aux deux conjoints. Ainsi, l’autorité fiscale procédera à la correction de la taxation de X en ce sens que son salaire sera imposé au taux de 9.87%, soit un montant d’impôt à la source égal à 9'870 fr. En outre, la taxation de Z sera également automatiquement modifiée. Le revenu de Z sera imposé au taux de 9.87%, soit un montant d’impôt à la source égal à 3'948 fr. →Montant d’impôt à la source total après prise en compte des revenus effectifs du couple pour la détermination du taux = 13'818 fr. Conclusion : dans cette hypothèse, le couple n’a pas intérêt à demander la prise en compte des revenus réels des conjoints pour la détermination du taux d’imposition applicable.
B8: Nombre d'enfants bénéficiants d'une allocation familiale : | E8: 0
B11: Contribuable 1 | F11: Contribuable 2
B13: Revenu brut imposable : | F13: Revenu brut imposable :
D16: Cumul des revenus du couple : | E16: =IF(AND(ISNUMBER(C13),ISNUMBER(G13)),C13+G13,"") -> 
D17: Barème : | E17: =CONCATENATE("C",E8) -> C0
D18: Taux d'imposition : | E18: =IF(ISNUMBER(E16),VLOOKUP(E16,INDIRECT(E17&"!G2:K5022"),5,1)/100,"") -> 
B21: Impôt à la source dû : | C21: =IF(ISNUMBER($E$18),C13*$E$18,"") ->  | F21: Impôt à la source dû : | G21: =IF(ISNUMBER($E$18),G13*$E$18,"") -> 
B24: Impôt à la source déjà retenu par l'employeur : | F24: Impôt à la source déjà retenu par l'employeur :
B25: (chiffre 12 du Certificat de salaire) | F25: (chiffre 12 du Certificat de salaire)
B27: Solde d'impôt à la source : | C27: =IF(AND(ISNUMBER(C21),ISNUMBER(C24)),C21-C24,"") ->  | F27: Solde d'impôt à la source : | G27: =IF(AND(ISNUMBER(G21),ISNUMBER(G24)),G21-G24,"") -> 
A29: Avis important :
B30: Le calcul de l’impôt à la source à l’aide de cette calculette n’a qu’une valeur indicative. Les éléments imposables, le taux et le montant d’impôt définitivement dû sont fixés par l’Administration cantonale des impôts sur la base de l’ensemble des prestations imposables. En particulier, il peut arriver que le montant des retenues de l’impôt à la source indiqué au chiffre 12 du certificat de salaire soit incorrect (erreur de calcul de l’employeur, mauvaise application des barèmes, prise en compte de montants rétroactifs relatifs à d’autres années, etc.). Dans un tel cas, le contribuable ne peut pas se prévaloir du calcul effectué par le biais de la présente calculette (notamment du résultat figurant sous la rubrique « Solde d’impôt à la source ») pour faire valoir un droit à un remboursement. Enfin, nous vous informons que la calculette permet d’appréhender les retenues d’impôt à la source dues dans les cas ordinaires. Or, en présence de situations plus complexes (par exemple d’activités qui commencent et/ou se terminent en cours de mois), le calcul de l’impôt à la source ne peut être effectué par le biais de cette calculette.

Sheet TAR23VD_C_Rectification (hidden)
A1: Barème | B1: Rev annuel début Barème C | C1: Rev annuel Fin Barème C | D1: Rev mensuel Début Barème C | E1: Tranche Barème C | F1: Rev mensuel Fin Barème C | G1: Rev annuel Début Barème C Rectification (Cumul couple) | H1: Rev annuel Fin Barème C Rectification (Cumul couple) | I1: Rev mensuel Début Barème C Rectification (Cumul couple) | J1: Rev mensuel Fin Barème C Rectification (Cumul couple) | K1: Taux imposition
A2: C0 | B2: =(D2-1)*12+1 -> 1 | C2: =F2*12 -> 27,600 | D2: 1 | E2: 2300 | F2: =D2-1+E2 -> 2,300 | G2: =MIN((B2-1)*2+1,B2+68700) -> 1 | H2: =MIN((C2)*2,C2+68700) -> 55,200 | I2: =(G2-1)/12+1 -> 1 | J2: =H2/12 -> 4,600 | K2: 0
A3: C0 | B3: =(D3-1)*12+1 -> 27,601 | C3: =F3*12 -> 28,200 | D3: 2301 | E3: 50 | F3: =D3-1+E3 -> 2,350 | G3: =MIN((B3-1)*2+1,B3+68700) -> 55,201 | H3: =MIN((C3)*2,C3+68700) -> 56,400 | I3: =(G3-1)/12+1 -> 4,601 | J3: =H3/12 -> 4,700 | K3: 0.09
A4: C0 | B4: 28,201 | C4: 28,800 | D4: 2351 | E4: 50 | F4: 2,400 | G4: 56,401 | H4: 57,600 | I4: 4,701 | J4: 4,800 | K4: 0.18
A5: C0 | B5: 28,801 | C5: 29,400 | D5: 2401 | E5: 50 | F5: 2,450 | G5: 57,601 | H5: 58,800 | I5: 4,801 | J5: 4,900 | K5: 0.3
A6: C0 | B6: 29,401 | C6: 30,000 | D6: 2451 | E6: 50 | F6: 2,500 | G6: 58,801 | H6: 60,000 | I6: 4,901 | J6: 5,000 | K6: 0.44
A7: C0 | B7: 30,001 | C7: 30,600 | D7: 2501 | E7: 50 | F7: 2,550 | G7: 60,001 | H7: 61,200 | I7: 5,001 | J7: 5,100 | K7: 0.59
A8: C0 | B8: 30,601 | C8: 31,200 | D8: 2551 | E8: 50 | F8: 2,600 | G8: 61,201 | H8: 62,400 | I8: 5,101 | J8: 5,200 | K8: 0.79
A9: C0 | B9: 31,201 | C9: 31,800 | D9: 2601 | E9: 50 | F9: 2,650 | G9: 62,401 | H9: 63,600 | I9: 5,201 | J9: 5,300 | K9: 0.99
A10: C0 | B10: 31,801 | C10: 32,400 | D10: 2651 | E10: 50 | F10: 2,700 | G10: 63,601 | H10: 64,800 | I10: 5,301 | J10: 5,400 | K10: 1.17
A11: C0 | B11: 32,401 | C11: 33,000 | D11: 2701 | E11: 50 | F11: 2,750 | G11: 64,801 | H11: 66,000 | I11: 5,401 | J11: 5,500 | K11: 1.39
A12: C0 | B12: 33,001 | C12: 33,600 | D12: 2751 | E12: 50 | F12: 2,800 | G12: 66,001 | H12: 67,200 | I12: 5,501 | J12: 5,600 | K12: 1.6
A13: C0 | B13: 33,601 | C13: 34,200 | D13: 2801 | E13: 50 | F13: 2,850 | G13: 67,201 | H13: 68,400 | I13: 5,601 | J13: 5,700 | K13: 1.84
A14: C0 | B14: 34,201 | C14: 34,800 | D14: 2851 | E14: 50 | F14: 2,900 | G14: 68,401 | H14: 69,600 | I14: 5,701 | J14: 5,800 | K14: 2.06
A15: C0 | B15: 34,801 | C15: 35,400 | D15: 2901 | E15: 50 | F15: 2,950 | G15: 69,601 | H15: 70,800 | I15: 5,801 | J15: 5,900 | K15: 2.25
A16: C0 | B16: 35,401 | C16: 36,000 | D16: 2951 | E16: 50 | F16: 3,000 | G16: 70,801 | H16: 72,000 | I16: 5,901 | J16: 6,000 | K16: 2.53
A17: C0 | B17: 36,001 | C17: 36,600 | D17: 3001 | E17: 50 | F17: 3,050 | G17: 72,001 | H17: 73,200 | I17: 6,001 | J17: 6,100 | K17: 2.75
A18: C0 | B18: 36,601 | C18: 37,200 | D18: 3051 | E18: 50 | F18: 3,100 | G18: 73,201 | H18: 74,400 | I18: 6,101 | J18: 6,200 | K18: 3.03
A19: C0 | B19: 37,201 | C19: 37,800 | D19: 3101 | E19: 50 | F19: 3,150 | G19: 74,401 | H19: 75,600 | I19: 6,201 | J19: 6,300 | K19: 3.29
A20: C0 | B20: 37,801 | C20: 38,400 | D20: 3151 | E20: 50 | F20: 3,200 | G20: 75,601 | H20: 76,800 | I20: 6,301 | J20: 6,400 | K20: 3.54
A21: C0 | B21: 38,401 | C21: 39,000 | D21: 3201 | E21: 50 | F21: 3,250 | G21: 76,801 | H21: 78,000 | I21: 6,401 | J21: 6,500 | K21: 3.84
A22: C0 | B22: 39,001 | C22: 39,600 | D22: 3251 | E22: 50 | F22: 3,300 | G22: 78,001 | H22: 79,200 | I22: 6,501 | J22: 6,600 | K22: 4.09
A23: C0 | B23: 39,601 | C23: 40,200 | D23: 3301 | E23: 50 | F23: 3,350 | G23: 79,201 | H23: 80,400 | I23: 6,601 | J23: 6,700 | K23: 4.35
A24: C0 | B24: 40,201 | C24: 40,800 | D24: 3351 | E24: 50 | F24: 3,400 | G24: 80,401 | H24: 81,600 | I24: 6,701 | J24: 6,800 | K24: 4.6
A25: C0 | B25: 40,801 | C25: 41,400 | D25: 3401 | E25: 50 | F25: 3,450 | G25: 81,601 | H25: 82,800 | I25: 6,801 | J25: 6,900 | K25: 4.81
A26: C0 | B26: 41,401 | C26: 42,000 | D26: 3451 | E26: 50 | F26: 3,500 | G26: 82,801 | H26: 84,000 | I26: 6,901 | J26: 7,000 | K26: 5.09
A27: C0 | B27: 42,001 | C27: 42,600 | D27: 3501 | E27: 50 | F27: 3,550 | G27: 84,001 | H27: 85,200 | I27: 7,001 | J27: 7,100 | K27: 5.29
A28: C0 | B28: 42,601 | C28: 43,200 | D28: 3551 | E28: 50 | F28: 3,600 | G28: 85,201 | H28: 86,400 | I28: 7,101 | J28: 7,200 | K28: 5.52
A29: C0 | B29: 43,201 | C29: 43,800 | D29: 3601 | E29: 50 | F29: 3,650 | G29: 86,401 | H29: 87,600 | I29: 7,201 | J29: 7,300 | K29: 5.75
A30: C0 | B30: 43,801 | C30: 44,400 | D30: 3651 | E30: 50 | F30: 3,700 | G30: 87,601 | H30: 88,800 | I30: 7,301 | J30: 7,400 | K30: 5.98
A31: C0 | B31: 44,401 | C31: 45,000 | D31: 3701 | E31: 50 | F31: 3,750 | G31: 88,801 | H31: 90,000 | I31: 7,401 | J31: 7,500 | K31: 6.26
A32: C0 | B32: 45,001 | C32: 45,600 | D32: 3751 | E32: 50 | F32: 3,800 | G32: 90,001 | H32: 91,200 | I32: 7,501 | J32: 7,600 | K32: 6.46
A33: C0 | B33: 45,601 | C33: 46,200 | D33: 3801 | E33: 50 | F33: 3,850 | G33: 91,201 | H33: 92,400 | I33: 7,601 | J33: 7,700 | K33: 6.69
A34: C0 | B34: 46,201 | C34: 46,800 | D34: 3851 | E34: 50 | F34: 3,900 | G34: 92,401 | H34: 93,600 | I34: 7,701 | J34: 7,800 | K34: 6.92
A35: C0 | B35: 46,801 | C35: 47,400 | D35: 3901 | E35: 50 | F35: 3,950 | G35: 93,601 | H35: 94,800 | I35: 7,801 | J35: 7,900 | K35: 7.11
A36: C0 | B36: 47,401 | C36: 48,000 | D36: 3951 | E36: 50 | F36: 4,000 | G36: 94,801 | H36: 96,000 | I36: 7,901 | J36: 8,000 | K36: 7.36
A37: C0 | B37: 48,001 | C37: 48,600 | D37: 4001 | E37: 50 | F37: 4,050 | G37: 96,001 | H37: 97,200 | I37: 8,001 | J37: 8,100 | K37: 7.55
A38: C0 | B38: 48,601 | C38: 49,200 | D38: 4051 | E38: 50 | F38: 4,100 | G38: 97,201 | H38: 98,400 | I38: 8,101 | J38: 8,200 | K38: 7.75
A39: C0 | B39: 49,201 | C39: 49,800 | D39: 4101 | E39: 50 | F39: 4,150 | G39: 98,401 | H39: 99,600 | I39: 8,201 | J39: 8,300 | K39: 7.96
A40: C0 | B40: 49,801 | C40: 50,400 | D40: 4151 | E40: 50 | F40: 4,200 | G40: 99,601 | H40: 100,800 | I40: 8,301 | J40: 8,400 | K40: 8.14
A41: C0 | B41: 50,401 | C41: 51,000 | D41: 4201 | E41: 50 | F41: 4,250 | G41: 100,801 | H41: 102,000 | I41: 8,401 | J41: 8,500 | K41: 8.38
A42: C0 | B42: 51,001 | C42: 51,600 | D42: 4251 | E42: 50 | F42: 4,300 | G42: 102,001 | H42: 103,200 | I42: 8,501 | J42: 8,600 | K42: 8.54
A43: C0 | B43: 51,601 | C43: 52,200 | D43: 4301 | E43: 50 | F43: 4,350 | G43: 103,201 | H43: 104,400 | I43: 8,601 | J43: 8,700 | K43: 8.73
A44: C0 | B44: 52,201 | C44: 52,800 | D44: 4351 | E44: 50 | F44: 4,400 | G44: 104,401 | H44: 105,600 | I44: 8,701 | J44: 8,800 | K44: 8.9
A45: C0 | B45: 52,801 | C45: 53,400 | D45: 4401 | E45: 50 | F45: 4,450 | G45: 105,601 | H45: 106,800 | I45: 8,801 | J45: 8,900 | K45: 8.97
A46: C0 | B46: 53,401 | C46: 54,000 | D46: 4451 | E46: 50 | F46: 4,500 | G46: 106,801 | H46: 108,000 | I46: 8,901 | J46: 9,000 | K46: 9.09
A47: C0 | B47: 54,001 | C47: 54,600 | D47: 4501 | E47: 50 | F47: 4,550 | G47: 108,001 | H47: 109,200 | I47: 9,001 | J47: 9,100 | K47: 9.18
A48: C0 | B48: 54,601 | C48: 55,200 | D48: 4551 | E48: 50 | F48: 4,600 | G48: 109,201 | H48: 110,400 | I48: 9,101 | J48: 9,200 | K48: 9.28
A49: C0 | B49: 55,201 | C49: 55,800 | D49: 4601 | E49: 50 | F49: 4,650 | G49: 110,401 | H49: 111,600 | I49: 9,201 | J49: 9,300 | K49: 9.37
A50: C0 | B50: 55,801 | C50: 56,400 | D50: 4651 | E50: 50 | F50: 4,700 | G50: 111,601 | H50: 112,800 | I50: 9,301 | J50: 9,400 | K50: 9.45
A51: C0 | B51: 56,401 | C51: 57,000 | D51: 4701 | E51: 50 | F51: 4,750 | G51: 112,801 | H51: 114,000 | I51: 9,401 | J51: 9,500 | K51: 9.59
A52: C0 | B52: 57,001 | C52: 57,600 | D52: 4751 | E52: 50 | F52: 4,800 | G52: 114,001 | H52: 115,200 | I52: 9,501 | J52: 9,600 | K52: 9.69
A53: C0 | B53: 57,601 | C53: 58,200 | D53: 4801 | E53: 50 | F53: 4,850 | G53: 115,201 | H53: 116,400 | I53: 9,601 | J53: 9,700 | K53: 9.78
A54: C0 | B54: 58,201 | C54: 58,800 | D54: 4851 | E54: 50 | F54: 4,900 | G54: 116,401 | H54: 117,600 | I54: 9,701 | J54: 9,800 | K54: 9.89
A55: C0 | B55: 58,801 | C55: 59,400 | D55: 4901 | E55: 50 | F55: 4,950 | G55: 117,601 | H55: 118,800 | I55: 9,801 | J55: 9,900 | K55: 9.98
A56: C0 | B56: 59,401 | C56: 60,000 | D56: 4951 | E56: 50 | F56: 5,000 | G56: 118,801 | H56: 120,000 | I56: 9,901 | J56: 10,000 | K56: 10.1
A57: C0 | B57: 60,001 | C57: 60,600 | D57: 5001 | E57: 50 | F57: 5,050 | G57: 120,001 | H57: 121,200 | I57: 10,001 | J57: 10,100 | K57: 10.2
A58: C0 | B58: 60,601 | C58: 61,200 | D58: 5051 | E58: 50 | F58: 5,100 | G58: 121,201 | H58: 122,400 | I58: 10,101 | J58: 10,200 | K58: 10.28
A59: C0 | B59: 61,201 | C59: 61,800 | D59: 5101 | E59: 50 | F59: 5,150 | G59: 122,401 | H59: 123,600 | I59: 10,201 | J59: 10,300 | K59: 10.37
A60: C0 | B60: 61,801 | C60: 62,400 | D60: 5151 | E60: 50 | F60: 5,200 | G60: 123,601 | H60: 124,800 | I60: 10,301 | J60: 10,400 | K60: 10.46
A61: C0 | B61: 62,401 | C61: 63,000 | D61: 5201 | E61: 50 | F61: 5,250 | G61: 124,801 | H61: 126,000 | I61: 10,401 | J61: 10,500 | K61: 10.55
A62: C0 | B62: 63,001 | C62: 63,600 | D62: 5251 | E62: 50 | F62: 5,300 | G62: 126,001 | H62: 127,200 | I62: 10,501 | J62: 10,600 | K62: 10.66
A63: C0 | B63: 63,601 | C63: 64,200 | D63: 5301 | E63: 50 | F63: 5,350 | G63: 127,201 | H63: 128,400 | I63: 10,601 | J63: 10,700 | K63: 10.74
A64: C0 | B64: 64,201 | C64: 64,800 | D64: 5351 | E64: 50 | F64: 5,400 | G64: 128,401 | H64: 129,600 | I64: 10,701 | J64: 10,800 | K64: 10.82
A65: C0 | B65: 64,801 | C65: 65,400 | D65: 5401 | E65: 50 | F65: 5,450 | G65: 129,601 | H65: 130,800 | I65: 10,801 | J65: 10,900 | K65: 10.92
A66: C0 | B66: 65,401 | C66: 66,000 | D66: 5451 | E66: 50 | F66: 5,500 | G66: 130,801 | H66: 132,000 | I66: 10,901 | J66: 11,000 | K66: 10.99
A67: C0 | B67: =(D67-1)*12+1 -> 66,001 | C67: =F67*12 -> 66,600 | D67: 5501 | E67: 50 | F67: =D67-1+E67 -> 5,550 | G67: =MIN((B67-1)*2+1,B67+68700) -> 132,001 | H67: =MIN((C67)*2,C67+68700) -> 133,200 | I67: =(G67-1)/12+1 -> 11,001 | J67: =H67/12 -> 11,100 | K67: 11.11
A68: C0 | B68: 66,601 | C68: 67,200 | D68: 5551 | E68: 50 | F68: 5,600 | G68: 133,201 | H68: 134,400 | I68: 11,101 | J68: 11,200 | K68: 11.19
A69: C0 | B69: 67,201 | C69: 67,800 | D69: 5601 | E69: 50 | F69: 5,650 | G69: 134,401 | H69: 135,600 | I69: 11,201 | J69: 11,300 | K69: 11.27
A70: C0 | B70: 67,801 | C70: 68,400 | D70: 5651 | E70: 50 | F70: 5,700 | G70: 135,601 | H70: 136,800 | I70: 11,301 | J70: 11,400 | K70: 11.34
A71: C0 | B71: 68,401 | C71: 69,000 | D71: 5701 | E71: 50 | F71: 5,750 | G71: 136,801 | H71: 137,700 | I71: 11,401 | J71: 11,475 | K71: 11.41
A72: C0 | B72: 69,001 | C72: 69,600 | D72: 5751 | E72: 50 | F72: 5,800 | G72: 137,701 | H72: 138,300 | I72: 11,476 | J72: 11,525 | K72: 11.47
A73: C0 | B73: 69,601 | C73: 70,200 | D73: 5801 | E73: 50 | F73: 5,850 | G73: 138,301 | H73: 138,900 | I73: 11,526 | J73: 11,575 | K73: 11.51
A74: C0 | B74: 70,201 | C74: 70,800 | D74: 5851 | E74: 50 | F74: 5,900 | G74: 138,901 | H74: 139,500 | I74: 11,576 | J74: 11,625 | K74: 11.56
A75: C0 | B75: 70,801 | C75: 71,400 | D75: 5901 | E75: 50 | F75: 5,950 | G75: 139,501 | H75: 140,100 | I75: 11,626 | J75: 11,675 | K75: 11.61
A76: C0 | B76: 71,401 | C76: 72,000 | D76: 5951 | E76: 50 | F76: 6,000 | G76: 140,101 | H76: 140,700 | I76: 11,676 | J76: 11,725 | K76: 11.65
A77: C0 | B77: 72,001 | C77: 72,600 | D77: 6001 | E77: 50 | F77: 6,050 | G77: 140,701 | H77: 141,300 | I77: 11,726 | J77: 11,775 | K77: 11.69
A78: C0 | B78: 72,601 | C78: 73,200 | D78: 6051 | E78: 50 | F78: 6,100 | G78: 141,301 | H78: 141,900 | I78: 11,776 | J78: 11,825 | K78: 11.74
A79: C0 | B79: 73,201 | C79: 73,800 | D79: 6101 | E79: 50 | F79: 6,150 | G79: 141,901 | H79: 142,500 | I79: 11,826 | J79: 11,875 | K79: 11.79
A80: C0 | B80: 73,801 | C80: 74,400 | D80: 6151 | E80: 50 | F80: 6,200 | G80: 142,501 | H80: 143,100 | I80: 11,876 | J80: 11,925 | K80: 11.84
A81: C0 | B81: 74,401 | C81: 75,000 | D81: 6201 | E81: 50 | F81: 6,250 | G81: 143,101 | H81: 143,700 | I81: 11,926 | J81: 11,975 | K81: 11.88
A82: C0 | B82: 75,001 | C82: 75,600 | D82: 6251 | E82: 50 | F82: 6,300 | G82: 143,701 | H82: 144,300 | I82: 11,976 | J82: 12,025 | K82: 11.92
A83: C0 | B83: 75,601 | C83: 76,200 | D83: 6301 | E83: 50 | F83: 6,350 | G83: 144,301 | H83: 144,900 | I83: 12,026 | J83: 12,075 | K83: 11.96
A84: C0 | B84: 76,201 | C84: 76,800 | D84: 6351 | E84: 50 | F84: 6,400 | G84: 144,901 | H84: 145,500 | I84: 12,076 | J84: 12,125 | K84: 12
A85: C0 | B85: 76,801 | C85: 77,400 | D85: 6401 | E85: 50 | F85: 6,450 | G85: 145,501 | H85: 146,100 | I85: 12,126 | J85: 12,175 | K85: 12.05
A86: C0 | B86: 77,401 | C86: 78,000 | D86: 6451 | E86: 50 | F86: 6,500 | G86: 146,101 | H86: 146,700 | I86: 12,176 | J86: 12,225 | K86: 12.08
A87: C0 | B87: 78,001 | C87: 78,600 | D87: 6501 | E87: 50 | F87: 6,550 | G87: 146,701 | H87: 147,300 | I87: 12,226 | J87: 12,275 | K87: 12.14
A88: C0 | B88: 78,601 | C88: 79,200 | D88: 6551 | E88: 50 | F88: 6,600 | G88: 147,301 | H88: 147,900 | I88: 12,276 | J88: 12,325 | K88: 12.19
A89: C0 | B89: 79,201 | C89: 79,800 | D89: 6601 | E89: 50 | F89: 6,650 | G89: 147,901 | H89: 148,500 | I89: 12,326 | J89: 12,375 | K89: 12.25
A90: C0 | B90: 79,801 | C90: 80,400 | D90: 6651 | E90: 50 | F90: 6,700 | G90: 148,501 | H90: 149,100 | I90: 12,376 | J90: 12,425 | K90: 12.3
A91: C0 | B91: 80,401 | C91: 81,000 | D91: 6701 | E91: 50 | F91: 6,750 | G91: 149,101 | H91: 149,700 | I91: 12,426 | J91: 12,475 | K91: 12.34
A92: C0 | B92: 81,001 | C92: 81,600 | D92: 6751 | E92: 50 | F92: 6,800 | G92: 149,701 | H92: 150,300 | I92: 12,476 | J92: 12,525 | K92: 12.4
A93: C0 | B93: 81,601 | C93: 82,200 | D93: 6801 | E93: 50 | F93: 6,850 | G93: 150,301 | H93: 150,900 | I93: 12,526 | J93: 12,575 | K93: 12.44
A94: C0 | B94: 82,201 | C94: 82,800 | D94: 6851 | E94: 50 | F94: 6,900 | G94: 150,901 | H94: 151,500 | I94: 12,576 | J94: 12,625 | K94: 12.49
A95: C0 | B95: 82,801 | C95: 83,400 | D95: 6901 | E95: 50 | F95: 6,950 | G95: 151,501 | H95: 152,100 | I95: 12,626 | J95: 12,675 | K95: 12.55
A96: C0 | B96: 83,401 | C96: 84,000 | D96: 6951 | E96: 50 | F96: 7,000 | G96: 152,101 | H96: 152,700 | I96: 12,676 | J96: 12,725 | K96: 12.59
A97: C0 | B97: 84,001 | C97: 84,600 | D97: 7001 | E97: 50 | F97: 7,050 | G97: 152,701 | H97: 153,300 | I97: 12,726 | J97: 12,775 | K97: 12.64
A98: C0 | B98: 84,601 | C98: 85,200 | D98: 7051 | E98: 50 | F98: 7,100 | G98: 153,301 | H98: 153,900 | I98: 12,776 | J98: 12,825 | K98: 12.69
A99: C0 | B99: 85,201 | C99: 85,800 | D99: 7101 | E99: 50 | F99: 7,150 | G99: 153,901 | H99: 154,500 | I99: 12,826 | J99: 12,875 | K99: 12.73
A100: C0 | B100: 85,801 | C100: 86,400 | D100: 7151 | E100: 50 | F100: 7,200 | G100: 154,501 | H100: 155,100 | I100: 12,876 | J100: 12,925 | K100: 12.78
A101: C0 | B101: 86,401 | C101: 87,000 | D101: 7201 | E101: 50 | F101: 7,250 | G101: 155,101 | H101: 155,700 | I101: 12,926 | J101: 12,975 | K101: 12.82
A102: C0 | B102: 87,001 | C102: 87,600 | D102: 7251 | E102: 50 | F102: 7,300 | G102: 155,701 | H102: 156,300 | I102: 12,976 | J102: 13,025 | K102: 12.87
A103: C0 | B103: 87,601 | C103: 88,200 | D103: 7301 | E103: 50 | F103: 7,350 | G103: 156,301 | H103: 156,900 | I103: 13,026 | J103: 13,075 | K103: 12.91
A104: C0 | B104: 88,201 | C104: 88,800 | D104: 7351 | E104: 50 | F104: 7,400 | G104: 156,901 | H104: 157,500 | I104: 13,076 | J104: 13,125 | K104: 12.96
A105: C0 | B105: 88,801 | C105: 89,400 | D105: 7401 | E105: 50 | F105: 7,450 | G105: 157,501 | H105: 158,100 | I105: 13,126 | J105: 13,175 | K105: 13
A106: C0 | B106: 89,401 | C106: 90,000 | D106: 7451 | E106: 50 | F106: 7,500 | G106: 158,101 | H106: 158,700 | I106: 13,176 | J106: 13,225 | K106: 13.04
A107: C0 | B107: 90,001 | C107: 90,600 | D107: 7501 | E107: 50 | F107: 7,550 | G107: 158,701 | H107: 159,300 | I107: 13,226 | J107: 13,275 | K107: 13.09
A108: C0 | B108: 90,601 | C108: 91,200 | D108: 7551 | E108: 50 | F108: 7,600 | G108: 159,301 | H108: 159,900 | I108: 13,276 | J108: 13,325 | K108: 13.13
A109: C0 | B109: 91,201 | C109: 91,800 | D109: 7601 | E109: 50 | F109: 7,650 | G109: 159,901 | H109: 160,500 | I109: 13,326 | J109: 13,375 | K109: 13.17
A110: C0 | B110: 91,801 | C110: 92,400 | D110: 7651 | E110: 50 | F110: 7,700 | G110: 160,501 | H110: 161,100 | I110: 13,376 | J110: 13,425 | K110: 13.22
A111: C0 | B111: 92,401 | C111: 93,000 | D111: 7701 | E111: 50 | F111: 7,750 | G111: 161,101 | H111: 161,700 | I111: 13,426 | J111: 13,475 | K111: 13.25
A112: C0 | B112: 93,001 | C112: 93,600 | D112: 7751 | E112: 50 | F112: 7,800 | G112: 161,701 | H112: 162,300 | I112: 13,476 | J112: 13,525 | K112: 13.29
A113: C0 | B113: 93,601 | C113: 94,200 | D113: 7801 | E113: 50 | F113: 7,850 | G113: 162,301 | H113: 162,900 | I113: 13,526 | J113: 13,575 | K113: 13.36
A114: C0 | B114: 94,201 | C114: 94,800 | D114: 7851 | E114: 50 | F114: 7,900 | G114: 162,901 | H114: 163,500 | I114: 13,576 | J114: 13,625 | K114: 13.4
A115: C0 | B115: 94,801 | C115: 95,400 | D115: 7901 | E115: 50 | F115: 7,950 | G115: 163,501 | H115: 164,100 | I115: 13,626 | J115: 13,675 | K115: 13.45
A116: C0 | B116: 95,401 | C116: 96,000 | D116: 7951 | E116: 50 | F116: 8,000 | G116: 164,101 | H116: 164,700 | I116: 13,676 | J116: 13,725 | K116: 13.48
A117: C0 | B117: 96,001 | C117: 96,600 | D117: 8001 | E117: 50 | F117: 8,050 | G117: 164,701 | H117: 165,300 | I117: 13,726 | J117: 13,775 | K117: 13.52
A118: C0 | B118: 96,601 | C118: 97,200 | D118: 8051 | E118: 50 | F118: 8,100 | G118: 165,301 | H118: 165,900 | I118: 13,776 | J118: 13,825 | K118: 13.57
A119: C0 | B119: 97,201 | C119: 97,800 | D119: 8101 | E119: 50 | F119: 8,150 | G119: 165,901 | H119: 166,500 | I119: 13,826 | J119: 13,875 | K119: 13.61
A120: C0 | B120: 97,801 | C120: 98,400 | D120: 8151 | E120: 50 | F120: 8,200 | G120: 166,501 | H120: 167,100 | I120: 13,876 | J120: 13,925 | K120: 13.66
A121: C0 | B121: 98,401 | C121: 99,000 | D121: 8201 | E121: 50 | F121: 8,250 | G121: 167,101 | H121: 167,700 | I121: 13,926 | J121: 13,975 | K121: 13.7
A122: C0 | B122: 99,001 | C122: 99,600 | D122: 8251 | E122: 50 | F122: 8,300 | G122: 167,701 | H122: 168,300 | I122: 13,976 | J122: 14,025 | K122: 13.73
A123: C0 | B123: 99,601 | C123: 100,200 | D123: 8301 | E123: 50 | F123: 8,350 | G123: 168,301 | H123: 168,900 | I123: 14,026 | J123: 14,075 | K123: 13.78
A124: C0 | B124: 100,201 | C124: 100,800 | D124: 8351 | E124: 50 | F124: 8,400 | G124: 168,901 | H124: 169,500 | I124: 14,076 | J124: 14,125 | K124: 13.82
A125: C0 | B125: 100,801 | C125: 101,400 | D125: 8401 | E125: 50 | F125: 8,450 | G125: 169,501 | H125: 170,100 | I125: 14,126 | J125: 14,175 | K125: 13.85
A126: C0 | B126: 101,401 | C126: 102,000 | D126: 8451 | E126: 50 | F126: 8,500 | G126: 170,101 | H126: 170,700 | I126: 14,176 | J126: 14,225 | K126: 13.9
A127: C0 | B127: 102,001 | C127: 102,600 | D127: 8501 | E127: 50 | F127: 8,550 | G127: 170,701 | H127: 171,300 | I127: 14,226 | J127: 14,275 | K127: 13.94
A128: C0 | B128: 102,601 | C128: 103,200 | D128: 8551 | E128: 50 | F128: 8,600 | G128: 171,301 | H128: 171,900 | I128: 14,276 | J128: 14,325 | K128: 13.97
A129: C0 | B129: 103,201 | C129: 103,800 | D129: 8601 | E129: 50 | F129: 8,650 | G129: 171,901 | H129: 172,500 | I129: 14,326 | J129: 14,375 | K129: 14.02
A130: C0 | B130: 103,801 | C130: 104,400 | D130: 8651 | E130: 50 | F130: 8,700 | G130: 172,501 | H130: 173,100 | I130: 14,376 | J130: 14,425 | K130: 14.05
A131: C0 | B131: =(D131-1)*12+1 -> 104,401 | C131: =F131*12 -> 105,000 | D131: 8701 | E131: 50 | F131: =D131-1+E131 -> 8,750 | G131: =MIN((B131-1)*2+1,B131+68700) -> 173,101 | H131: =MIN((C131)*2,C131+68700) -> 173,700 | I131: =(G131-1)/12+1 -> 14,426 | J131: =H131/12 -> 14,475 | K131: 14.09
A132: C0 | B132: 105,001 | C132: 105,600 | D132: 8751 | E132: 50 | F132: 8,800 | G132: 173,701 | H132: 174,300 | I132: 14,476 | J132: 14,525 | K132: 14.12
A133: C0 | B133: 105,601 | C133: 106,200 | D133: 8801 | E133: 50 | F133: 8,850 | G133: 174,301 | H133: 174,900 | I133: 14,526 | J133: 14,575 | K133: 14.17
A134: C0 | B134: 106,201 | C134: 106,800 | D134: 8851 | E134: 50 | F134: 8,900 | G134: 174,901 | H134: 175,500 | I134: 14,576 | J134: 14,625 | K134: 14.21
A135: C0 | B135: 106,801 | C135: 107,400 | D135: 8901 | E135: 50 | F135: 8,950 | G135: 175,501 | H135: 176,100 | I135: 14,626 | J135: 14,675 | K135: 14.24
A136: C0 | B136: 107,401 | C136: 108,000 | D136: 8951 | E136: 50 | F136: 9,000 | G136: 176,101 | H136: 176,700 | I136: 14,676 | J136: 14,725 | K136: 14.28
A137: C0 | B137: 108,001 | C137: 108,600 | D137: 9001 | E137: 50 | F137: 9,050 | G137: 176,701 | H137: 177,300 | I137: 14,726 | J137: 14,775 | K137: 14.32
A138: C0 | B138: 108,601 | C138: 109,200 | D138: 9051 | E138: 50 | F138: 9,100 | G138: 177,301 | H138: 177,900 | I138: 14,776 | J138: 14,825 | K138: 14.38
A139: C0 | B139: 109,201 | C139: 109,800 | D139: 9101 | E139: 50 | F139: 9,150 | G139: 177,901 | H139: 178,500 | I139: 14,826 | J139: 14,875 | K139: 14.41
A140: C0 | B140: 109,801 | C140: 110,400 | D140: 9151 | E140: 50 | F140: 9,200 | G140: 178,501 | H140: 179,100 | I140: 14,876 | J140: 14,925 | K140: 14.46
A141: C0 | B141: 110,401 | C141: 111,000 | D141: 9201 | E141: 50 | F141: 9,250 | G141: 179,101 | H141: 179,700 | I141: 14,926 | J141: 14,975 | K141: 14.49
A142: C0 | B142: 111,001 | C142: 111,600 | D142: 9251 | E142: 50 | F142: 9,300 | G142: 179,701 | H142: 180,300 | I142: 14,976 | J142: 15,025 | K142: 14.53
A143: C0 | B143: 111,601 | C143: 112,200 | D143: 9301 | E143: 50 | F143: 9,350 | G143: 180,301 | H143: 180,900 | I143: 15,026 | J143: 15,075 | K143: 14.57
A144: C0 | B144: 112,201 | C144: 112,800 | D144: 9351 | E144: 50 | F144: 9,400 | G144: 180,901 | H144: 181,500 | I144: 15,076 | J144: 15,125 | K144: 14.62
A145: C0 | B145: 112,801 | C145: 113,400 | D145: 9401 | E145: 50 | F145: 9,450 | G145: 181,501 | H145: 182,100 | I145: 15,126 | J145: 15,175 | K145: 14.66
A146: C0 | B146: 113,401 | C146: 114,000 | D146: 9451 | E146: 50 | F146: 9,500 | G146: 182,101 | H146: 182,700 | I146: 15,176 | J146: 15,225 | K146: 14.69
A147: C0 | B147: 114,001 | C147: 114,600 | D147: 9501 | E147: 50 | F147: 9,550 | G147: 182,701 | H147: 183,300 | I147: 15,226 | J147: 15,275 | K147: 14.74
A148: C0 | B148: 114,601 | C148: 115,200 | D148: 9551 | E148: 50 | F148: 9,600 | G148: 183,301 | H148: 183,900 | I148: 15,276 | J148: 15,325 | K148: 14.78
A149: C0 | B149: 115,201 | C149: 115,800 | D149: 9601 | E149: 50 | F149: 9,650 | G149: 183,901 | H149: 184,500 | I149: 15,326 | J149: 15,375 | K149: 14.82
A150: C0 | B150: 115,801 | C150: 116,400 | D150: 9651 | E150: 50 | F150: 9,700 | G150: 184,501 | H150: 185,100 | I150: 15,376 | J150: 15,425 | K150: 14.87
A151: C0 | B151: 116,401 | C151: 117,000 | D151: 9701 | E151: 50 | F151: 9,750 | G151: 185,101 | H151: 185,700 | I151: 15,426 | J151: 15,475 | K151: 14.92
A152: C0 | B152: 117,001 | C152: 117,600 | D152: 9751 | E152: 50 | F152: 9,800 | G152: 185,701 | H152: 186,300 | I152: 15,476 | J152: 15,525 | K152: 14.97
A153: C0 | B153: 117,601 | C153: 118,200 | D153: 9801 | E153: 50 | F153: 9,850 | G153: 186,301 | H153: 186,900 | I153: 15,526 | J153: 15,575 | K153: 15.01
A154: C0 | B154: 118,201 | C154: 118,800 | D154: 9851 | E154: 50 | F154: 9,900 | G154: 186,901 | H154: 187,500 | I154: 15,576 | J154: 15,625 | K154: 15.04
A155: C0 | B155: 118,801 | C155: 119,400 | D155: 9901 | E155: 50 | F155: 9,950 | G155: 187,501 | H155: 188,100 | I155: 15,626 | J155: 15,675 | K155: 15.1
A156: C0 | B156: 119,401 | C156: 120,000 | D156: 9951 | E156: 50 | F156: 10,000 | G156: 188,101 | H156: 188,700 | I156: 15,676 | J156: 15,725 | K156: 15.13
A157: C0 | B157: 120,001 | C157: 120,600 | D157: 10001 | E157: 50 | F157: 10,050 | G157: 188,701 | H157: 189,300 | I157: 15,726 | J157: 15,775 | K157: 15.18
A158: C0 | B158: 120,601 | C158: 121,200 | D158: 10051 | E158: 50 | F158: 10,100 | G158: 189,301 | H158: 189,900 | I158: 15,776 | J158: 15,825 | K158: 15.22
A159: C0 | B159: 121,201 | C159: 121,800 | D159: 10101 | E159: 50 | F159: 10,150 | G159: 189,901 | H159: 190,500 | I159: 15,826 | J159: 15,875 | K159: 15.28
A160: C0 | B160: 121,801 | C160: 122,400 | D160: 10151 | E160: 50 | F160: 10,200 | G160: 190,501 | H160: 191,100 | I160: 15,876 | J160: 15,925 | K160: 15.32
A161: C0 | B161: 122,401 | C161: 123,000 | D161: 10201 | E161: 50 | F161: 10,250 | G161: 191,101 | H161: 191,700 | I161: 15,926 | J161: 15,975 | K161: 15.36
A162: C0 | B162: 123,001 | C162: 123,600 | D162: 10251 | E162: 50 | F162: 10,300 | G162: 191,701 | H162: 192,300 | I162: 15,976 | J162: 16,025 | K162: 15.41
A163: C0 | B163: 123,601 | C163: 124,200 | D163: 10301 | E163: 50 | F163: 10,350 | G163: 192,301 | H163: 192,900 | I163: 16,026 | J163: 16,075 | K163: 15.44
A164: C0 | B164: 124,201 | C164: 124,800 | D164: 10351 | E164: 50 | F164: 10,400 | G164: 192,901 | H164: 193,500 | I164: 16,076 | J164: 16,125 | K164: 15.49
A165: C0 | B165: 124,801 | C165: 125,400 | D165: 10401 | E165: 50 | F165: 10,450 | G165: 193,501 | H165: 194,100 | I165: 16,126 | J165: 16,175 | K165: 15.52
A166: C0 | B166: 125,401 | C166: 126,000 | D166: 10451 | E166: 50 | F166: 10,500 | G166: 194,101 | H166: 194,700 | I166: 16,176 | J166: 16,225 | K166: 15.56
A167: C0 | B167: 126,001 | C167: 126,600 | D167: 10501 | E167: 50 | F167: 10,550 | G167: 194,701 | H167: 195,300 | I167: 16,226 | J167: 16,275 | K167: 15.6
A168: C0 | B168: 126,601 | C168: 127,200 | D168: 10551 | E168: 50 | F168: 10,600 | G168: 195,301 | H168: 195,900 | I168: 16,276 | J168: 16,325 | K168: 15.66
A169: C0 | B169: 127,201 | C169: 127,800 | D169: 10601 | E169: 50 | F169: 10,650 | G169: 195,901 | H169: 196,500 | I169: 16,326 | J169: 16,375 | K169: 15.69
A170: C0 | B170: 127,801 | C170: 128,400 | D170: 10651 | E170: 50 | F170: 10,700 | G170: 196,501 | H170: 197,100 | I170: 16,376 | J170: 16,425 | K170: 15.74
A171: C0 | B171: 128,401 | C171: 129,000 | D171: 10701 | E171: 50 | F171: 10,750 | G171: 197,101 | H171: 197,700 | I171: 16,426 | J171: 16,475 | K171: 15.77
A172: C0 | B172: 129,001 | C172: 129,600 | D172: 10751 | E172: 50 | F172: 10,800 | G172: 197,701 | H172: 198,300 | I172: 16,476 | J172: 16,525 | K172: 15.82
A173: C0 | B173: 129,601 | C173: 130,200 | D173: 10801 | E173: 50 | F173: 10,850 | G173: 198,301 | H173: 198,900 | I173: 16,526 | J173: 16,575 | K173: 15.86
A174: C0 | B174: 130,201 | C174: 130,800 | D174: 10851 | E174: 50 | F174: 10,900 | G174: 198,901 | H174: 199,500 | I174: 16,576 | J174: 16,625 | K174: 15.91
A175: C0 | B175: 130,801 | C175: 131,400 | D175: 10901 | E175: 50 | F175: 10,950 | G175: 199,501 | H175: 200,100 | I175: 16,626 | J175: 16,675 | K175: 15.94
A176: C0 | B176: 131,401 | C176: 132,000 | D176: 10951 | E176: 50 | F176: 11,000 | G176: 200,101 | H176: 200,700 | I176: 16,676 | J176: 16,725 | K176: 16
A177: C0 | B177: 132,001 | C177: 132,600 | D177: 11001 | E177: 50 | F177: 11,050 | G177: 200,701 | H177: 201,300 | I177: 16,726 | J177: 16,775 | K177: 16.04
A178: C0 | B178: 132,601 | C178: 133,200 | D178: 11051 | E178: 50 | F178: 11,100 | G178: 201,301 | H178: 201,900 | I178: 16,776 | J178: 16,825 | K178: 16.07
A179: C0 | B179: 133,201 | C179: 133,800 | D179: 11101 | E179: 50 | F179: 11,150 | G179: 201,901 | H179: 202,500 | I179: 16,826 | J179: 16,875 | K179: 16.11
A180: C0 | B180: 133,801 | C180: 134,400 | D180: 11151 | E180: 50 | F180: 11,200 | G180: 202,501 | H180: 203,100 | I180: 16,876 | J180: 16,925 | K180: 16.17
A181: C0 | B181: 134,401 | C181: 135,000 | D181: 11201 | E181: 50 | F181: 11,250 | G181: 203,101 | H181: 203,700 | I181: 16,926 | J181: 16,975 | K181: 16.2
A182: C0 | B182: 135,001 | C182: 135,600 | D182: 11251 | E182: 50 | F182: 11,300 | G182: 203,701 | H182: 204,300 | I182: 16,976 | J182: 17,025 | K182: 16.25
A183: C0 | B183: 135,601 | C183: 136,200 | D183: 11301 | E183: 50 | F183: 11,350 | G183: 204,301 | H183: 204,900 | I183: 17,026 | J183: 17,075 | K183: 16.29
A184: C0 | B184: 136,201 | C184: 136,800 | D184: 11351 | E184: 50 | F184: 11,400 | G184: 204,901 | H184: 205,500 | I184: 17,076 | J184: 17,125 | K184: 16.35
A185: C0 | B185: 136,801 | C185: 137,400 | D185: 11401 | E185: 50 | F185: 11,450 | G185: 205,501 | H185: 206,100 | I185: 17,126 | J185: 17,175 | K185: 16.39
A186: C0 | B186: 137,401 | C186: 138,000 | D186: 11451 | E186: 50 | F186: 11,500 | G186: 206,101 | H186: 206,700 | I186: 17,176 | J186: 17,225 | K186: 16.43
A187: C0 | B187: 138,001 | C187: 138,600 | D187: 11501 | E187: 50 | F187: 11,550 | G187: 206,701 | H187: 207,300 | I187: 17,226 | J187: 17,275 | K187: 16.48
A188: C0 | B188: 138,601 | C188: 139,200 | D188: 11551 | E188: 50 | F188: 11,600 | G188: 207,301 | H188: 207,900 | I188: 17,276 | J188: 17,325 | K188: 16.53
A189: C0 | B189: 139,201 | C189: 139,800 | D189: 11601 | E189: 50 | F189: 11,650 | G189: 207,901 | H189: 208,500 | I189: 17,326 | J189: 17,375 | K189: 16.57
A190: C0 | B190: 139,801 | C190: 140,400 | D190: 11651 | E190: 50 | F190: 11,700 | G190: 208,501 | H190: 209,100 | I190: 17,376 | J190: 17,425 | K190: 16.61
A191: C0 | B191: 140,401 | C191: 141,000 | D191: 11701 | E191: 50 | F191: 11,750 | G191: 209,101 | H191: 209,700 | I191: 17,426 | J191: 17,475 | K191: 16.65
A192: C0 | B192: 141,001 | C192: 141,600 | D192: 11751 | E192: 50 | F192: 11,800 | G192: 209,701 | H192: 210,300 | I192: 17,476 | J192: 17,525 | K192: 16.7
A193: C0 | B193: 141,601 | C193: 142,200 | D193: 11801 | E193: 50 | F193: 11,850 | G193: 210,301 | H193: 210,900 | I193: 17,526 | J193: 17,575 | K193: 16.75
A194: C0 | B194: 142,201 | C194: 142,800 | D194: 11851 | E194: 50 | F194: 11,900 | G194: 210,901 | H194: 211,500 | I194: 17,576 | J194: 17,625 | K194: 16.78
A195: C0 | B195: =(D195-1)*12+1 -> 142,801 | C195: =F195*12 -> 143,400 | D195: 11901 | E195: 50 | F195: =D195-1+E195 -> 11,950 | G195: =MIN((B195-1)*2+1,B195+68700) -> 211,501 | H195: =MIN((C195)*2,C195+68700) -> 212,100 | I195: =(G195-1)/12+1 -> 17,626 | J195: =H195/12 -> 17,675 | K195: 16.83
A196: C0 | B196: 143,401 | C196: 144,000 | D196: 11951 | E196: 50 | F196: 12,000 | G196: 212,101 | H196: 212,700 | I196: 17,676 | J196: 17,725 | K196: 16.87
A197: C0 | B197: 144,001 | C197: 144,600 | D197: 12001 | E197: 50 | F197: 12,050 | G197: 212,701 | H197: 213,300 | I197: 17,726 | J197: 17,775 | K197: 16.93
A198: C0 | B198: 144,601 | C198: 145,200 | D198: 12051 | E198: 50 | F198: 12,100 | G198: 213,301 | H198: 213,900 | I198: 17,776 | J198: 17,825 | K198: 16.98
A199: C0 | B199: 145,201 | C199: 145,800 | D199: 12101 | E199: 50 | F199: 12,150 | G199: 213,901 | H199: 214,500 | I199: 17,826 | J199: 17,875 | K199: 17.02
A200: C0 | B200: 145,801 | C200: 146,400 | D200: 12151 | E200: 50 | F200: 12,200 | G200: 214,501 | H200: 215,100 | I200: 17,876 | J200: 17,925 | K200: 17.07
... 4732 more rows

Sheet C0 (hidden)
A1: Barème | B1: Rev annuel début Barème C | C1: Rev annuel Fin Barème C | D1: Rev mensuel Début Barème C | E1: Tranche Barème C | F1: Rev mensuel Fin Barème C | G1: Rev annuel Début Barème C Rectification (Cumul couple) | H1: Rev annuel Fin Barème C Rectification (Cumul couple) | I1: Rev mensuel Début Barème C Rectification (Cumul couple) | J1: Rev mensuel Fin Barème C Rectification (Cumul couple) | K1: Taux imposition
A2: C0 | B2: =(D2-1)*12+1 -> 1 | C2: =F2*12 -> 28,200 | D2: 1 | E2: 2350 | F2: =D2-1+E2 -> 2,350 | G2: =MIN((B2-1)*2+1,B2+69300) -> 1 | H2: =MIN((C2)*2,C2+69300) -> 56,400 | I2: =(G2-1)/12+1 -> 1 | J2: =H2/12 -> 4,700 | K2: 0
A3: C0 | B3: =(D3-1)*12+1 -> 28,201 | C3: =F3*12 -> 28,800 | D3: 2351 | E3: 50 | F3: =D3-1+E3 -> 2,400 | G3: =MIN((B3-1)*2+1,B3+69300) -> 56,401 | H3: =MIN((C3)*2,C3+69300) -> 57,600 | I3: =(G3-1)/12+1 -> 4,701 | J3: =H3/12 -> 4,800 | K3: 0.13
A4: C0 | B4: 28,801 | C4: 29,400 | D4: 2401 | E4: 50 | F4: 2,450 | G4: =MIN((B4-1)*2+1,B4+69300) -> 57,601 | H4: 58,800 | I4: 4,801 | J4: 4,900 | K4: 0.26
A5: C0 | B5: 29,401 | C5: 30,000 | D5: 2451 | E5: 50 | F5: 2,500 | G5: 58,801 | H5: 60,000 | I5: 4,901 | J5: 5,000 | K5: 0.37
A6: C0 | B6: 30,001 | C6: 30,600 | D6: 2501 | E6: 50 | F6: 2,550 | G6: 60,001 | H6: 61,200 | I6: 5,001 | J6: 5,100 | K6: 0.52
A7: C0 | B7: 30,601 | C7: 31,200 | D7: 2551 | E7: 50 | F7: 2,600 | G7: 61,201 | H7: 62,400 | I7: 5,101 | J7: 5,200 | K7: 0.69
A8: C0 | B8: 31,201 | C8: 31,800 | D8: 2601 | E8: 50 | F8: 2,650 | G8: 62,401 | H8: 63,600 | I8: 5,201 | J8: 5,300 | K8: 0.9
A9: C0 | B9: 31,801 | C9: 32,400 | D9: 2651 | E9: 50 | F9: 2,700 | G9: 63,601 | H9: 64,800 | I9: 5,301 | J9: 5,400 | K9: 1.08
A10: C0 | B10: 32,401 | C10: 33,000 | D10: 2701 | E10: 50 | F10: 2,750 | G10: 64,801 | H10: 66,000 | I10: 5,401 | J10: 5,500 | K10: 1.3
A11: C0 | B11: 33,001 | C11: 33,600 | D11: 2751 | E11: 50 | F11: 2,800 | G11: 66,001 | H11: 67,200 | I11: 5,501 | J11: 5,600 | K11: 1.49
A12: C0 | B12: 33,601 | C12: 34,200 | D12: 2801 | E12: 50 | F12: 2,850 | G12: 67,201 | H12: 68,400 | I12: 5,601 | J12: 5,700 | K12: 1.73
A13: C0 | B13: 34,201 | C13: 34,800 | D13: 2851 | E13: 50 | F13: 2,900 | G13: 68,401 | H13: 69,600 | I13: 5,701 | J13: 5,800 | K13: 1.94
A14: C0 | B14: 34,801 | C14: 35,400 | D14: 2901 | E14: 50 | F14: 2,950 | G14: 69,601 | H14: 70,800 | I14: 5,801 | J14: 5,900 | K14: 2.13
A15: C0 | B15: 35,401 | C15: 36,000 | D15: 2951 | E15: 50 | F15: 3,000 | G15: 70,801 | H15: 72,000 | I15: 5,901 | J15: 6,000 | K15: 2.39
A16: C0 | B16: 36,001 | C16: 36,600 | D16: 3001 | E16: 50 | F16: 3,050 | G16: 72,001 | H16: 73,200 | I16: 6,001 | J16: 6,100 | K16: 2.61
A17: C0 | B17: 36,601 | C17: 37,200 | D17: 3051 | E17: 50 | F17: 3,100 | G17: 73,201 | H17: 74,400 | I17: 6,101 | J17: 6,200 | K17: 2.9
A18: C0 | B18: 37,201 | C18: 37,800 | D18: 3101 | E18: 50 | F18: 3,150 | G18: 74,401 | H18: 75,600 | I18: 6,201 | J18: 6,300 | K18: 3.13
A19: C0 | B19: 37,801 | C19: 38,400 | D19: 3151 | E19: 50 | F19: 3,200 | G19: 75,601 | H19: 76,800 | I19: 6,301 | J19: 6,400 | K19: 3.38
A20: C0 | B20: 38,401 | C20: 39,000 | D20: 3201 | E20: 50 | F20: 3,250 | G20: 76,801 | H20: 78,000 | I20: 6,401 | J20: 6,500 | K20: 3.67
A21: C0 | B21: 39,001 | C21: 39,600 | D21: 3251 | E21: 50 | F21: 3,300 | G21: 78,001 | H21: 79,200 | I21: 6,501 | J21: 6,600 | K21: 3.91
A22: C0 | B22: 39,601 | C22: 40,200 | D22: 3301 | E22: 50 | F22: 3,350 | G22: 79,201 | H22: 80,400 | I22: 6,601 | J22: 6,700 | K22: 4.18
A23: C0 | B23: 40,201 | C23: 40,800 | D23: 3351 | E23: 50 | F23: 3,400 | G23: 80,401 | H23: 81,600 | I23: 6,701 | J23: 6,800 | K23: 4.44
A24: C0 | B24: 40,801 | C24: 41,400 | D24: 3401 | E24: 50 | F24: 3,450 | G24: 81,601 | H24: 82,800 | I24: 6,801 | J24: 6,900 | K24: 4.65
A25: C0 | B25: 41,401 | C25: 42,000 | D25: 3451 | E25: 50 | F25: 3,500 | G25: 82,801 | H25: 84,000 | I25: 6,901 | J25: 7,000 | K25: 4.92
A26: C0 | B26: 42,001 | C26: 42,600 | D26: 3501 | E26: 50 | F26: 3,550 | G26: 84,001 | H26: 85,200 | I26: 7,001 | J26: 7,100 | K26: 5.13
A27: C0 | B27: 42,601 | C27: 43,200 | D27: 3551 | E27: 50 | F27: 3,600 | G27: 85,201 | H27: 86,400 | I27: 7,101 | J27: 7,200 | K27: 5.35
A28: C0 | B28: 43,201 | C28: 43,800 | D28: 3601 | E28: 50 | F28: 3,650 | G28: 86,401 | H28: 87,600 | I28: 7,201 | J28: 7,300 | K28: 5.57
A29: C0 | B29: 43,801 | C29: 44,400 | D29: 3651 | E29: 50 | F29: 3,700 | G29: 87,601 | H29: 88,800 | I29: 7,301 | J29: 7,400 | K29: 5.78
A30: C0 | B30: 44,401 | C30: 45,000 | D30: 3701 | E30: 50 | F30: 3,750 | G30: 88,801 | H30: 90,000 | I30: 7,401 | J30: 7,500 | K30: 6.07
A31: C0 | B31: 45,001 | C31: 45,600 | D31: 3751 | E31: 50 | F31: 3,800 | G31: 90,001 | H31: 91,200 | I31: 7,501 | J31: 7,600 | K31: 6.28
A32: C0 | B32: 45,601 | C32: 46,200 | D32: 3801 | E32: 50 | F32: 3,850 | G32: 91,201 | H32: 92,400 | I32: 7,601 | J32: 7,700 | K32: 6.51
A33: C0 | B33: 46,201 | C33: 46,800 | D33: 3851 | E33: 50 | F33: 3,900 | G33: 92,401 | H33: 93,600 | I33: 7,701 | J33: 7,800 | K33: 6.74
A34: C0 | B34: 46,801 | C34: 47,400 | D34: 3901 | E34: 50 | F34: 3,950 | G34: 93,601 | H34: 94,800 | I34: 7,801 | J34: 7,900 | K34: 6.93
A35: C0 | B35: 47,401 | C35: 48,000 | D35: 3951 | E35: 50 | F35: 4,000 | G35: 94,801 | H35: 96,000 | I35: 7,901 | J35: 8,000 | K35: 7.18
A36: C0 | B36: 48,001 | C36: 48,600 | D36: 4001 | E36: 50 | F36: 4,050 | G36: 96,001 | H36: 97,200 | I36: 8,001 | J36: 8,100 | K36: 7.36
A37: C0 | B37: 48,601 | C37: 49,200 | D37: 4051 | E37: 50 | F37: 4,100 | G37: 97,201 | H37: 98,400 | I37: 8,101 | J37: 8,200 | K37: 7.57
A38: C0 | B38: 49,201 | C38: 49,800 | D38: 4101 | E38: 50 | F38: 4,150 | G38: 98,401 | H38: 99,600 | I38: 8,201 | J38: 8,300 | K38: 7.78
A39: C0 | B39: 49,801 | C39: 50,400 | D39: 4151 | E39: 50 | F39: 4,200 | G39: 99,601 | H39: 100,800 | I39: 8,301 | J39: 8,400 | K39: 7.95
A40: C0 | B40: 50,401 | C40: 51,000 | D40: 4201 | E40: 50 | F40: 4,250 | G40: 100,801 | H40: 102,000 | I40: 8,401 | J40: 8,500 | K40: 8.18
A41: C0 | B41: 51,001 | C41: 51,600 | D41: 4251 | E41: 50 | F41: 4,300 | G41: 102,001 | H41: 103,200 | I41: 8,501 | J41: 8,600 | K41: 8.36
A42: C0 | B42: 51,601 | C42: 52,200 | D42: 4301 | E42: 50 | F42: 4,350 | G42: 103,201 | H42: 104,400 | I42: 8,601 | J42: 8,700 | K42: 8.54
A43: C0 | B43: 52,201 | C43: 52,800 | D43: 4351 | E43: 50 | F43: 4,400 | G43: 104,401 | H43: 105,600 | I43: 8,701 | J43: 8,800 | K43: 8.74
A44: C0 | B44: 52,801 | C44: 53,400 | D44: 4401 | E44: 50 | F44: 4,450 | G44: 105,601 | H44: 106,800 | I44: 8,801 | J44: 8,900 | K44: 8.89
A45: C0 | B45: 53,401 | C45: 54,000 | D45: 4451 | E45: 50 | F45: 4,500 | G45: 106,801 | H45: 108,000 | I45: 8,901 | J45: 9,000 | K45: 8.98
A46: C0 | B46: 54,001 | C46: 54,600 | D46: 4501 | E46: 50 | F46: 4,550 | G46: 108,001 | H46: 109,200 | I46: 9,001 | J46: 9,100 | K46: 9.07
A47: C0 | B47: 54,601 | C47: 55,200 | D47: 4551 | E47: 50 | F47: 4,600 | G47: 109,201 | H47: 110,400 | I47: 9,101 | J47: 9,200 | K47: 9.15
A48: C0 | B48: 55,201 | C48: 55,800 | D48: 4601 | E48: 50 | F48: 4,650 | G48: 110,401 | H48: 111,600 | I48: 9,201 | J48: 9,300 | K48: 9.28
A49: C0 | B49: 55,801 | C49: 56,400 | D49: 4651 | E49: 50 | F49: 4,700 | G49: 111,601 | H49: 112,800 | I49: 9,301 | J49: 9,400 | K49: 9.36
A50: C0 | B50: 56,401 | C50: 57,000 | D50: 4701 | E50: 50 | F50: 4,750 | G50: 112,801 | H50: 114,000 | I50: 9,401 | J50: 9,500 | K50: 9.45
A51: C0 | B51: 57,001 | C51: 57,600 | D51: 4751 | E51: 50 | F51: 4,800 | G51: 114,001 | H51: 115,200 | I51: 9,501 | J51: 9,600 | K51: 9.55
A52: C0 | B52: 57,601 | C52: 58,200 | D52: 4801 | E52: 50 | F52: 4,850 | G52: 115,201 | H52: 116,400 | I52: 9,601 | J52: 9,700 | K52: 9.65
A53: C0 | B53: 58,201 | C53: 58,800 | D53: 4851 | E53: 50 | F53: 4,900 | G53: 116,401 | H53: 117,600 | I53: 9,701 | J53: 9,800 | K53: 9.78
A54: C0 | B54: 58,801 | C54: 59,400 | D54: 4901 | E54: 50 | F54: 4,950 | G54: 117,601 | H54: 118,800 | I54: 9,801 | J54: 9,900 | K54: 9.88
A55: C0 | B55: 59,401 | C55: 60,000 | D55: 4951 | E55: 50 | F55: 5,000 | G55: 118,801 | H55: 120,000 | I55: 9,901 | J55: 10,000 | K55: 9.98
A56: C0 | B56: 60,001 | C56: 60,600 | D56: 5001 | E56: 50 | F56: 5,050 | G56: 120,001 | H56: 121,200 | I56: 10,001 | J56: 10,100 | K56: 10.06
A57: C0 | B57: 60,601 | C57: 61,200 | D57: 5051 | E57: 50 | F57: 5,100 | G57: 121,201 | H57: 122,400 | I57: 10,101 | J57: 10,200 | K57: 10.16
A58: C0 | B58: 61,201 | C58: 61,800 | D58: 5101 | E58: 50 | F58: 5,150 | G58: 122,401 | H58: 123,600 | I58: 10,201 | J58: 10,300 | K58: 10.27
A59: C0 | B59: 61,801 | C59: 62,400 | D59: 5151 | E59: 50 | F59: 5,200 | G59: 123,601 | H59: 124,800 | I59: 10,301 | J59: 10,400 | K59: 10.36
A60: C0 | B60: 62,401 | C60: 63,000 | D60: 5201 | E60: 50 | F60: 5,250 | G60: 124,801 | H60: 126,000 | I60: 10,401 | J60: 10,500 | K60: 10.44
A61: C0 | B61: 63,001 | C61: 63,600 | D61: 5251 | E61: 50 | F61: 5,300 | G61: 126,001 | H61: 127,200 | I61: 10,501 | J61: 10,600 | K61: 10.52
A62: C0 | B62: 63,601 | C62: 64,200 | D62: 5301 | E62: 50 | F62: 5,350 | G62: 127,201 | H62: 128,400 | I62: 10,601 | J62: 10,700 | K62: 10.61
A63: C0 | B63: 64,201 | C63: 64,800 | D63: 5351 | E63: 50 | F63: 5,400 | G63: 128,401 | H63: 129,600 | I63: 10,701 | J63: 10,800 | K63: 10.72
A64: C0 | B64: 64,801 | C64: 65,400 | D64: 5401 | E64: 50 | F64: 5,450 | G64: 129,601 | H64: 130,800 | I64: 10,801 | J64: 10,900 | K64: 10.79
A65: C0 | B65: 65,401 | C65: 66,000 | D65: 5451 | E65: 50 | F65: 5,500 | G65: 130,801 | H65: 132,000 | I65: 10,901 | J65: 11,000 | K65: 10.89
A66: C0 | B66: 66,001 | C66: 66,600 | D66: 5501 | E66: 50 | F66: 5,550 | G66: 132,001 | H66: 133,200 | I66: 11,001 | J66: 11,100 | K66: 10.97
A67: C0 | B67: =(D67-1)*12+1 -> 66,601 | C67: =F67*12 -> 67,200 | D67: 5551 | E67: 50 | F67: =D67-1+E67 -> 5,600 | G67: 133,201 | H67: =MIN((C67)*2,C67+69300) -> 134,400 | I67: =(G67-1)/12+1 -> 11,101 | J67: =H67/12 -> 11,200 | K67: 11.06
A68: C0 | B68: 67,201 | C68: 67,800 | D68: 5601 | E68: 50 | F68: 5,650 | G68: =MIN((B68-1)*2+1,B68+69300) -> 134,401 | H68: 135,600 | I68: 11,201 | J68: 11,300 | K68: 11.13
A69: C0 | B69: 67,801 | C69: 68,400 | D69: 5651 | E69: 50 | F69: 5,700 | G69: 135,601 | H69: 136,800 | I69: 11,301 | J69: 11,400 | K69: 11.21
A70: C0 | B70: 68,401 | C70: 69,000 | D70: 5701 | E70: 50 | F70: 5,750 | G70: 136,801 | H70: 138,000 | I70: 11,401 | J70: 11,500 | K70: 11.28
A71: C0 | B71: 69,001 | C71: 69,600 | D71: 5751 | E71: 50 | F71: 5,800 | G71: 138,001 | H71: 138,900 | I71: 11,501 | J71: 11,575 | K71: 11.35
A72: C0 | B72: 69,601 | C72: 70,200 | D72: 5801 | E72: 50 | F72: 5,850 | G72: 138,901 | H72: 139,500 | I72: 11,576 | J72: 11,625 | K72: 11.41
A73: C0 | B73: 70,201 | C73: 70,800 | D73: 5851 | E73: 50 | F73: 5,900 | G73: 139,501 | H73: 140,100 | I73: 11,626 | J73: 11,675 | K73: 11.45
A74: C0 | B74: 70,801 | C74: 71,400 | D74: 5901 | E74: 50 | F74: 5,950 | G74: 140,101 | H74: 140,700 | I74: 11,676 | J74: 11,725 | K74: 11.5
A75: C0 | B75: 71,401 | C75: 72,000 | D75: 5951 | E75: 50 | F75: 6,000 | G75: 140,701 | H75: 141,300 | I75: 11,726 | J75: 11,775 | K75: 11.55
A76: C0 | B76: 72,001 | C76: 72,600 | D76: 6001 | E76: 50 | F76: 6,050 | G76: 141,301 | H76: 141,900 | I76: 11,776 | J76: 11,825 | K76: 11.59
A77: C0 | B77: 72,601 | C77: 73,200 | D77: 6051 | E77: 50 | F77: 6,100 | G77: 141,901 | H77: 142,500 | I77: 11,826 | J77: 11,875 | K77: 11.63
A78: C0 | B78: 73,201 | C78: 73,800 | D78: 6101 | E78: 50 | F78: 6,150 | G78: 142,501 | H78: 143,100 | I78: 11,876 | J78: 11,925 | K78: 11.69
A79: C0 | B79: 73,801 | C79: 74,400 | D79: 6151 | E79: 50 | F79: 6,200 | G79: 143,101 | H79: 143,700 | I79: 11,926 | J79: 11,975 | K79: 11.73
A80: C0 | B80: 74,401 | C80: 75,000 | D80: 6201 | E80: 50 | F80: 6,250 | G80: 143,701 | H80: 144,300 | I80: 11,976 | J80: 12,025 | K80: 11.77
A81: C0 | B81: 75,001 | C81: 75,600 | D81: 6251 | E81: 50 | F81: 6,300 | G81: 144,301 | H81: 144,900 | I81: 12,026 | J81: 12,075 | K81: 11.84
A82: C0 | B82: 75,601 | C82: 76,200 | D82: 6301 | E82: 50 | F82: 6,350 | G82: 144,901 | H82: 145,500 | I82: 12,076 | J82: 12,125 | K82: 11.88
A83: C0 | B83: 76,201 | C83: 76,800 | D83: 6351 | E83: 50 | F83: 6,400 | G83: 145,501 | H83: 146,100 | I83: 12,126 | J83: 12,175 | K83: 11.92
A84: C0 | B84: 76,801 | C84: 77,400 | D84: 6401 | E84: 50 | F84: 6,450 | G84: 146,101 | H84: 146,700 | I84: 12,176 | J84: 12,225 | K84: 11.96
A85: C0 | B85: 77,401 | C85: 78,000 | D85: 6451 | E85: 50 | F85: 6,500 | G85: 146,701 | H85: 147,300 | I85: 12,226 | J85: 12,275 | K85: 12
A86: C0 | B86: 78,001 | C86: 78,600 | D86: 6501 | E86: 50 | F86: 6,550 | G86: 147,301 | H86: 147,900 | I86: 12,276 | J86: 12,325 | K86: 12.04
A87: C0 | B87: 78,601 | C87: 79,200 | D87: 6551 | E87: 50 | F87: 6,600 | G87: 147,901 | H87: 148,500 | I87: 12,326 | J87: 12,375 | K87: 12.08
A88: C0 | B88: 79,201 | C88: 79,800 | D88: 6601 | E88: 50 | F88: 6,650 | G88: 148,501 | H88: 149,100 | I88: 12,376 | J88: 12,425 | K88: 12.14
A89: C0 | B89: 79,801 | C89: 80,400 | D89: 6651 | E89: 50 | F89: 6,700 | G89: 149,101 | H89: 149,700 | I89: 12,426 | J89: 12,475 | K89: 12.18
A90: C0 | B90: 80,401 | C90: 81,000 | D90: 6701 | E90: 50 | F90: 6,750 | G90: 149,701 | H90: 150,300 | I90: 12,476 | J90: 12,525 | K90: 12.24
A91: C0 | B91: 81,001 | C91: 81,600 | D91: 6751 | E91: 50 | F91: 6,800 | G91: 150,301 | H91: 150,900 | I91: 12,526 | J91: 12,575 | K91: 12.29
A92: C0 | B92: 81,601 | C92: 82,200 | D92: 6801 | E92: 50 | F92: 6,850 | G92: 150,901 | H92: 151,500 | I92: 12,576 | J92: 12,625 | K92: 12.34
A93: C0 | B93: 82,201 | C93: 82,800 | D93: 6851 | E93: 50 | F93: 6,900 | G93: 151,501 | H93: 152,100 | I93: 12,626 | J93: 12,675 | K93: 12.39
A94: C0 | B94: 82,801 | C94: 83,400 | D94: 6901 | E94: 50 | F94: 6,950 | G94: 152,101 | H94: 152,700 | I94: 12,676 | J94: 12,725 | K94: 12.43
A95: C0 | B95: 83,401 | C95: 84,000 | D95: 6951 | E95: 50 | F95: 7,000 | G95: 152,701 | H95: 153,300 | I95: 12,726 | J95: 12,775 | K95: 12.48
A96: C0 | B96: 84,001 | C96: 84,600 | D96: 7001 | E96: 50 | F96: 7,050 | G96: 153,301 | H96: 153,900 | I96: 12,776 | J96: 12,825 | K96: 12.54
A97: C0 | B97: 84,601 | C97: 85,200 | D97: 7051 | E97: 50 | F97: 7,100 | G97: 153,901 | H97: 154,500 | I97: 12,826 | J97: 12,875 | K97: 12.58
A98: C0 | B98: 85,201 | C98: 85,800 | D98: 7101 | E98: 50 | F98: 7,150 | G98: 154,501 | H98: 155,100 | I98: 12,876 | J98: 12,925 | K98: 12.62
A99: C0 | B99: 85,801 | C99: 86,400 | D99: 7151 | E99: 50 | F99: 7,200 | G99: 155,101 | H99: 155,700 | I99: 12,926 | J99: 12,975 | K99: 12.67
A100: C0 | B100: 86,401 | C100: 87,000 | D100: 7201 | E100: 50 | F100: 7,250 | G100: 155,701 | H100: 156,300 | I100: 12,976 | J100: 13,025 | K100: 12.72
A101: C0 | B101: 87,001 | C101: 87,600 | D101: 7251 | E101: 50 | F101: 7,300 | G101: 156,301 | H101: 156,900 | I101: 13,026 | J101: 13,075 | K101: 12.76
A102: C0 | B102: 87,601 | C102: 88,200 | D102: 7301 | E102: 50 | F102: 7,350 | G102: 156,901 | H102: 157,500 | I102: 13,076 | J102: 13,125 | K102: 12.8
A103: C0 | B103: 88,201 | C103: 88,800 | D103: 7351 | E103: 50 | F103: 7,400 | G103: 157,501 | H103: 158,100 | I103: 13,126 | J103: 13,175 | K103: 12.85
A104: C0 | B104: 88,801 | C104: 89,400 | D104: 7401 | E104: 50 | F104: 7,450 | G104: 158,101 | H104: 158,700 | I104: 13,176 | J104: 13,225 | K104: 12.9
A105: C0 | B105: 89,401 | C105: 90,000 | D105: 7451 | E105: 50 | F105: 7,500 | G105: 158,701 | H105: 159,300 | I105: 13,226 | J105: 13,275 | K105: 12.94
A106: C0 | B106: 90,001 | C106: 90,600 | D106: 7501 | E106: 50 | F106: 7,550 | G106: 159,301 | H106: 159,900 | I106: 13,276 | J106: 13,325 | K106: 12.98
A107: C0 | B107: 90,601 | C107: 91,200 | D107: 7551 | E107: 50 | F107: 7,600 | G107: 159,901 | H107: 160,500 | I107: 13,326 | J107: 13,375 | K107: 13.02
A108: C0 | B108: 91,201 | C108: 91,800 | D108: 7601 | E108: 50 | F108: 7,650 | G108: 160,501 | H108: 161,100 | I108: 13,376 | J108: 13,425 | K108: 13.06
A109: C0 | B109: 91,801 | C109: 92,400 | D109: 7651 | E109: 50 | F109: 7,700 | G109: 161,101 | H109: 161,700 | I109: 13,426 | J109: 13,475 | K109: 13.1
A110: C0 | B110: 92,401 | C110: 93,000 | D110: 7701 | E110: 50 | F110: 7,750 | G110: 161,701 | H110: 162,300 | I110: 13,476 | J110: 13,525 | K110: 13.16
A111: C0 | B111: 93,001 | C111: 93,600 | D111: 7751 | E111: 50 | F111: 7,800 | G111: 162,301 | H111: 162,900 | I111: 13,526 | J111: 13,575 | K111: 13.19
A112: C0 | B112: 93,601 | C112: 94,200 | D112: 7801 | E112: 50 | F112: 7,850 | G112: 162,901 | H112: 163,500 | I112: 13,576 | J112: 13,625 | K112: 13.23
A113: C0 | B113: 94,201 | C113: 94,800 | D113: 7851 | E113: 50 | F113: 7,900 | G113: 163,501 | H113: 164,100 | I113: 13,626 | J113: 13,675 | K113: 13.27
A114: C0 | B114: 94,801 | C114: 95,400 | D114: 7901 | E114: 50 | F114: 7,950 | G114: 164,101 | H114: 164,700 | I114: 13,676 | J114: 13,725 | K114: 13.31
A115: C0 | B115: 95,401 | C115: 96,000 | D115: 7951 | E115: 50 | F115: 8,000 | G115: 164,701 | H115: 165,300 | I115: 13,726 | J115: 13,775 | K115: 13.36
A116: C0 | B116: 96,001 | C116: 96,600 | D116: 8001 | E116: 50 | F116: 8,050 | G116: 165,301 | H116: 165,900 | I116: 13,776 | J116: 13,825 | K116: 13.4
A117: C0 | B117: 96,601 | C117: 97,200 | D117: 8051 | E117: 50 | F117: 8,100 | G117: 165,901 | H117: 166,500 | I117: 13,826 | J117: 13,875 | K117: 13.45
A118: C0 | B118: 97,201 | C118: 97,800 | D118: 8101 | E118: 50 | F118: 8,150 | G118: 166,501 | H118: 167,100 | I118: 13,876 | J118: 13,925 | K118: 13.49
A119: C0 | B119: 97,801 | C119: 98,400 | D119: 8151 | E119: 50 | F119: 8,200 | G119: 167,101 | H119: 167,700 | I119: 13,926 | J119: 13,975 | K119: 13.52
A120: C0 | B120: 98,401 | C120: 99,000 | D120: 8201 | E120: 50 | F120: 8,250 | G120: 167,701 | H120: 168,300 | I120: 13,976 | J120: 14,025 | K120: 13.57
A121: C0 | B121: 99,001 | C121: 99,600 | D121: 8251 | E121: 50 | F121: 8,300 | G121: 168,301 | H121: 168,900 | I121: 14,026 | J121: 14,075 | K121: 13.61
A122: C0 | B122: 99,601 | C122: 100,200 | D122: 8301 | E122: 50 | F122: 8,350 | G122: 168,901 | H122: 169,500 | I122: 14,076 | J122: 14,125 | K122: 13.64
A123: C0 | B123: 100,201 | C123: 100,800 | D123: 8351 | E123: 50 | F123: 8,400 | G123: 169,501 | H123: 170,100 | I123: 14,126 | J123: 14,175 | K123: 13.69
A124: C0 | B124: 100,801 | C124: 101,400 | D124: 8401 | E124: 50 | F124: 8,450 | G124: 170,101 | H124: 170,700 | I124: 14,176 | J124: 14,225 | K124: 13.73
A125: C0 | B125: 101,401 | C125: 102,000 | D125: 8451 | E125: 50 | F125: 8,500 | G125: 170,701 | H125: 171,300 | I125: 14,226 | J125: 14,275 | K125: 13.76
A126: C0 | B126: 102,001 | C126: 102,600 | D126: 8501 | E126: 50 | F126: 8,550 | G126: 171,301 | H126: 171,900 | I126: 14,276 | J126: 14,325 | K126: 13.81
A127: C0 | B127: 102,601 | C127: 103,200 | D127: 8551 | E127: 50 | F127: 8,600 | G127: 171,901 | H127: 172,500 | I127: 14,326 | J127: 14,375 | K127: 13.85
A128: C0 | B128: 103,201 | C128: 103,800 | D128: 8601 | E128: 50 | F128: 8,650 | G128: 172,501 | H128: 173,100 | I128: 14,376 | J128: 14,425 | K128: 13.88
A129: C0 | B129: 103,801 | C129: 104,400 | D129: 8651 | E129: 50 | F129: 8,700 | G129: 173,101 | H129: 173,700 | I129: 14,426 | J129: 14,475 | K129: 13.92
A130: C0 | B130: 104,401 | C130: 105,000 | D130: 8701 | E130: 50 | F130: 8,750 | G130: 173,701 | H130: 174,300 | I130: 14,476 | J130: 14,525 | K130: 13.96
A131: C0 | B131: =(D131-1)*12+1 -> 105,001 | C131: =F131*12 -> 105,600 | D131: 8751 | E131: 50 | F131: =D131-1+E131 -> 8,800 | G131: 174,301 | H131: =MIN((C131)*2,C131+69300) -> 174,900 | I131: =(G131-1)/12+1 -> 14,526 | J131: =H131/12 -> 14,575 | K131: 14
A132: C0 | B132: 105,601 | C132: 106,200 | D132: 8801 | E132: 50 | F132: 8,850 | G132: =MIN((B132-1)*2+1,B132+69300) -> 174,901 | H132: 175,500 | I132: 14,576 | J132: 14,625 | K132: 14.03
A133: C0 | B133: 106,201 | C133: 106,800 | D133: 8851 | E133: 50 | F133: 8,900 | G133: 175,501 | H133: 176,100 | I133: 14,626 | J133: 14,675 | K133: 14.08
A134: C0 | B134: 106,801 | C134: 107,400 | D134: 8901 | E134: 50 | F134: 8,950 | G134: 176,101 | H134: 176,700 | I134: 14,676 | J134: 14,725 | K134: 14.11
A135: C0 | B135: 107,401 | C135: 108,000 | D135: 8951 | E135: 50 | F135: 9,000 | G135: 176,701 | H135: 177,300 | I135: 14,726 | J135: 14,775 | K135: 14.14
A136: C0 | B136: 108,001 | C136: 108,600 | D136: 9001 | E136: 50 | F136: 9,050 | G136: 177,301 | H136: 177,900 | I136: 14,776 | J136: 14,825 | K136: 14.2
A137: C0 | B137: 108,601 | C137: 109,200 | D137: 9051 | E137: 50 | F137: 9,100 | G137: 177,901 | H137: 178,500 | I137: 14,826 | J137: 14,875 | K137: 14.24
A138: C0 | B138: 109,201 | C138: 109,800 | D138: 9101 | E138: 50 | F138: 9,150 | G138: 178,501 | H138: 179,100 | I138: 14,876 | J138: 14,925 | K138: 14.28
A139: C0 | B139: 109,801 | C139: 110,400 | D139: 9151 | E139: 50 | F139: 9,200 | G139: 179,101 | H139: 179,700 | I139: 14,926 | J139: 14,975 | K139: 14.32
A140: C0 | B140: 110,401 | C140: 111,000 | D140: 9201 | E140: 50 | F140: 9,250 | G140: 179,701 | H140: 180,300 | I140: 14,976 | J140: 15,025 | K140: 14.35
A141: C0 | B141: 111,001 | C141: 111,600 | D141: 9251 | E141: 50 | F141: 9,300 | G141: 180,301 | H141: 180,900 | I141: 15,026 | J141: 15,075 | K141: 14.4
A142: C0 | B142: 111,601 | C142: 112,200 | D142: 9301 | E142: 50 | F142: 9,350 | G142: 180,901 | H142: 181,500 | I142: 15,076 | J142: 15,125 | K142: 14.43
A143: C0 | B143: 112,201 | C143: 112,800 | D143: 9351 | E143: 50 | F143: 9,400 | G143: 181,501 | H143: 182,100 | I143: 15,126 | J143: 15,175 | K143: 14.48
A144: C0 | B144: 112,801 | C144: 113,400 | D144: 9401 | E144: 50 | F144: 9,450 | G144: 182,101 | H144: 182,700 | I144: 15,176 | J144: 15,225 | K144: 14.52
A145: C0 | B145: 113,401 | C145: 114,000 | D145: 9451 | E145: 50 | F145: 9,500 | G145: 182,701 | H145: 183,300 | I145: 15,226 | J145: 15,275 | K145: 14.56
A146: C0 | B146: 114,001 | C146: 114,600 | D146: 9501 | E146: 50 | F146: 9,550 | G146: 183,301 | H146: 183,900 | I146: 15,276 | J146: 15,325 | K146: 14.6
A147: C0 | B147: 114,601 | C147: 115,200 | D147: 9551 | E147: 50 | F147: 9,600 | G147: 183,901 | H147: 184,500 | I147: 15,326 | J147: 15,375 | K147: 14.63
A148: C0 | B148: 115,201 | C148: 115,800 | D148: 9601 | E148: 50 | F148: 9,650 | G148: 184,501 | H148: 185,100 | I148: 15,376 | J148: 15,425 | K148: 14.69
A149: C0 | B149: 115,801 | C149: 116,400 | D149: 9651 | E149: 50 | F149: 9,700 | G149: 185,101 | H149: 185,700 | I149: 15,426 | J149: 15,475 | K149: 14.73
A150: C0 | B150: 116,401 | C150: 117,000 | D150: 9701 | E150: 50 | F150: 9,750 | G150: 185,701 | H150: 186,300 | I150: 15,476 | J150: 15,525 | K150: 14.76
A151: C0 | B151: 117,001 | C151: 117,600 | D151: 9751 | E151: 50 | F151: 9,800 | G151: 186,301 | H151: 186,900 | I151: 15,526 | J151: 15,575 | K151: 14.81
A152: C0 | B152: 117,601 | C152: 118,200 | D152: 9801 | E152: 50 | F152: 9,850 | G152: 186,901 | H152: 187,500 | I152: 15,576 | J152: 15,625 | K152: 14.85
A153: C0 | B153: 118,201 | C153: 118,800 | D153: 9851 | E153: 50 | F153: 9,900 | G153: 187,501 | H153: 188,100 | I153: 15,626 | J153: 15,675 | K153: 14.9
A154: C0 | B154: 118,801 | C154: 119,400 | D154: 9901 | E154: 50 | F154: 9,950 | G154: 188,101 | H154: 188,700 | I154: 15,676 | J154: 15,725 | K154: 14.94
A155: C0 | B155: 119,401 | C155: 120,000 | D155: 9951 | E155: 50 | F155: 10,000 | G155: 188,701 | H155: 189,300 | I155: 15,726 | J155: 15,775 | K155: 14.98
A156: C0 | B156: 120,001 | C156: 120,600 | D156: 10001 | E156: 50 | F156: 10,050 | G156: 189,301 | H156: 189,900 | I156: 15,776 | J156: 15,825 | K156: 15.04
A157: C0 | B157: 120,601 | C157: 121,200 | D157: 10051 | E157: 50 | F157: 10,100 | G157: 189,901 | H157: 190,500 | I157: 15,826 | J157: 15,875 | K157: 15.08
A158: C0 | B158: 121,201 | C158: 121,800 | D158: 10101 | E158: 50 | F158: 10,150 | G158: 190,501 | H158: 191,100 | I158: 15,876 | J158: 15,925 | K158: 15.12
A159: C0 | B159: 121,801 | C159: 122,400 | D159: 10151 | E159: 50 | F159: 10,200 | G159: 191,101 | H159: 191,700 | I159: 15,926 | J159: 15,975 | K159: 15.16
A160: C0 | B160: 122,401 | C160: 123,000 | D160: 10201 | E160: 50 | F160: 10,250 | G160: 191,701 | H160: 192,300 | I160: 15,976 | J160: 16,025 | K160: 15.2
A161: C0 | B161: 123,001 | C161: 123,600 | D161: 10251 | E161: 50 | F161: 10,300 | G161: 192,301 | H161: 192,900 | I161: 16,026 | J161: 16,075 | K161: 15.24
A162: C0 | B162: 123,601 | C162: 124,200 | D162: 10301 | E162: 50 | F162: 10,350 | G162: 192,901 | H162: 193,500 | I162: 16,076 | J162: 16,125 | K162: 15.29
A163: C0 | B163: 124,201 | C163: 124,800 | D163: 10351 | E163: 50 | F163: 10,400 | G163: 193,501 | H163: 194,100 | I163: 16,126 | J163: 16,175 | K163: 15.32
A164: C0 | B164: 124,801 | C164: 125,400 | D164: 10401 | E164: 50 | F164: 10,450 | G164: 194,101 | H164: 194,700 | I164: 16,176 | J164: 16,225 | K164: 15.36
A165: C0 | B165: 125,401 | C165: 126,000 | D165: 10451 | E165: 50 | F165: 10,500 | G165: 194,701 | H165: 195,300 | I165: 16,226 | J165: 16,275 | K165: 15.41
A166: C0 | B166: 126,001 | C166: 126,600 | D166: 10501 | E166: 50 | F166: 10,550 | G166: 195,301 | H166: 195,900 | I166: 16,276 | J166: 16,325 | K166: 15.46
A167: C0 | B167: 126,601 | C167: 127,200 | D167: 10551 | E167: 50 | F167: 10,600 | G167: 195,901 | H167: 196,500 | I167: 16,326 | J167: 16,375 | K167: 15.5
A168: C0 | B168: 127,201 | C168: 127,800 | D168: 10601 | E168: 50 | F168: 10,650 | G168: 196,501 | H168: 197,100 | I168: 16,376 | J168: 16,425 | K168: 15.54
A169: C0 | B169: 127,801 | C169: 128,400 | D169: 10651 | E169: 50 | F169: 10,700 | G169: 197,101 | H169: 197,700 | I169: 16,426 | J169: 16,475 | K169: 15.58
A170: C0 | B170: 128,401 | C170: 129,000 | D170: 10701 | E170: 50 | F170: 10,750 | G170: 197,701 | H170: 198,300 | I170: 16,476 | J170: 16,525 | K170: 15.62
A171: C0 | B171: 129,001 | C171: 129,600 | D171: 10751 | E171: 50 | F171: 10,800 | G171: 198,301 | H171: 198,900 | I171: 16,526 | J171: 16,575 | K171: 15.66
A172: C0 | B172: 129,601 | C172: 130,200 | D172: 10801 | E172: 50 | F172: 10,850 | G172: 198,901 | H172: 199,500 | I172: 16,576 | J172: 16,625 | K172: 15.69
A173: C0 | B173: 130,201 | C173: 130,800 | D173: 10851 | E173: 50 | F173: 10,900 | G173: 199,501 | H173: 200,100 | I173: 16,626 | J173: 16,675 | K173: 15.75
A174: C0 | B174: 130,801 | C174: 131,400 | D174: 10901 | E174: 50 | F174: 10,950 | G174: 200,101 | H174: 200,700 | I174: 16,676 | J174: 16,725 | K174: 15.79
A175: C0 | B175: 131,401 | C175: 132,000 | D175: 10951 | E175: 50 | F175: 11,000 | G175: 200,701 | H175: 201,300 | I175: 16,726 | J175: 16,775 | K175: 15.83
A176: C0 | B176: 132,001 | C176: 132,600 | D176: 11001 | E176: 50 | F176: 11,050 | G176: 201,301 | H176: 201,900 | I176: 16,776 | J176: 16,825 | K176: 15.86
A177: C0 | B177: 132,601 | C177: 133,200 | D177: 11051 | E177: 50 | F177: 11,100 | G177: 201,901 | H177: 202,500 | I177: 16,826 | J177: 16,875 | K177: 15.92
A178: C0 | B178: 133,201 | C178: 133,800 | D178: 11101 | E178: 50 | F178: 11,150 | G178: 202,501 | H178: 203,100 | I178: 16,876 | J178: 16,925 | K178: 15.96
A179: C0 | B179: 133,801 | C179: 134,400 | D179: 11151 | E179: 50 | F179: 11,200 | G179: 203,101 | H179: 203,700 | I179: 16,926 | J179: 16,975 | K179: 16
A180: C0 | B180: 134,401 | C180: 135,000 | D180: 11201 | E180: 50 | F180: 11,250 | G180: 203,701 | H180: 204,300 | I180: 16,976 | J180: 17,025 | K180: 16.04
A181: C0 | B181: 135,001 | C181: 135,600 | D181: 11251 | E181: 50 | F181: 11,300 | G181: 204,301 | H181: 204,900 | I181: 17,026 | J181: 17,075 | K181: 16.1
A182: C0 | B182: 135,601 | C182: 136,200 | D182: 11301 | E182: 50 | F182: 11,350 | G182: 204,901 | H182: 205,500 | I182: 17,076 | J182: 17,125 | K182: 16.14
A183: C0 | B183: 136,201 | C183: 136,800 | D183: 11351 | E183: 50 | F183: 11,400 | G183: 205,501 | H183: 206,100 | I183: 17,126 | J183: 17,175 | K183: 16.17
A184: C0 | B184: 136,801 | C184: 137,400 | D184: 11401 | E184: 50 | F184: 11,450 | G184: 206,101 | H184: 206,700 | I184: 17,176 | J184: 17,225 | K184: 16.21
A185: C0 | B185: 137,401 | C185: 138,000 | D185: 11451 | E185: 50 | F185: 11,500 | G185: 206,701 | H185: 207,300 | I185: 17,226 | J185: 17,275 | K185: 16.26
A186: C0 | B186: 138,001 | C186: 138,600 | D186: 11501 | E186: 50 | F186: 11,550 | G186: 207,301 | H186: 207,900 | I186: 17,276 | J186: 17,325 | K186: 16.32
A187: C0 | B187: 138,601 | C187: 139,200 | D187: 11551 | E187: 50 | F187: 11,600 | G187: 207,901 | H187: 208,500 | I187: 17,326 | J187: 17,375 | K187: 16.35
A188: C0 | B188: 139,201 | C188: 139,800 | D188: 11601 | E188: 50 | F188: 11,650 | G188: 208,501 | H188: 209,100 | I188: 17,376 | J188: 17,425 | K188: 16.41
A189: C0 | B189: 139,801 | C189: 140,400 | D189: 11651 | E189: 50 | F189: 11,700 | G189: 209,101 | H189: 209,700 | I189: 17,426 | J189: 17,475 | K189: 16.45
A190: C0 | B190: 140,401 | C190: 141,000 | D190: 11701 | E190: 50 | F190: 11,750 | G190: 209,701 | H190: 210,300 | I190: 17,476 | J190: 17,525 | K190: 16.48
A191: C0 | B191: 141,001 | C191: 141,600 | D191: 11751 | E191: 50 | F191: 11,800 | G191: 210,301 | H191: 210,900 | I191: 17,526 | J191: 17,575 | K191: 16.53
A192: C0 | B192: 141,601 | C192: 142,200 | D192: 11801 | E192: 50 | F192: 11,850 | G192: 210,901 | H192: 211,500 | I192: 17,576 | J192: 17,625 | K192: 16.56
A193: C0 | B193: 142,201 | C193: 142,800 | D193: 11851 | E193: 50 | F193: 11,900 | G193: 211,501 | H193: 212,100 | I193: 17,626 | J193: 17,675 | K193: 16.62
A194: C0 | B194: 142,801 | C194: 143,400 | D194: 11901 | E194: 50 | F194: 11,950 | G194: 212,101 | H194: 212,700 | I194: 17,676 | J194: 17,725 | K194: 16.65
A195: C0 | B195: =(D195-1)*12+1 -> 143,401 | C195: =F195*12 -> 144,000 | D195: 11951 | E195: 50 | F195: =D195-1+E195 -> 12,000 | G195: 212,701 | H195: =MIN((C195)*2,C195+69300) -> 213,300 | I195: =(G195-1)/12+1 -> 17,726 | J195: =H195/12 -> 17,775 | K195: 16.69
A196: C0 | B196: 144,001 | C196: 144,600 | D196: 12001 | E196: 50 | F196: 12,050 | G196: =MIN((B196-1)*2+1,B196+69300) -> 213,301 | H196: 213,900 | I196: 17,776 | J196: 17,825 | K196: 16.74
A197: C0 | B197: 144,601 | C197: 145,200 | D197: 12051 | E197: 50 | F197: 12,100 | G197: 213,901 | H197: 214,500 | I197: 17,826 | J197: 17,875 | K197: 16.79
A198: C0 | B198: 145,201 | C198: 145,800 | D198: 12101 | E198: 50 | F198: 12,150 | G198: 214,501 | H198: 215,100 | I198: 17,876 | J198: 17,925 | K198: 16.84
A199: C0 | B199: 145,801 | C199: 146,400 | D199: 12151 | E199: 50 | F199: 12,200 | G199: 215,101 | H199: 215,700 | I199: 17,926 | J199: 17,975 | K199: 16.89
A200: C0 | B200: 146,401 | C200: 147,000 | D200: 12201 | E200: 50 | F200: 12,250 | G200: 215,701 | H200: 216,300 | I200: 17,976 | J200: 18,025 | K200: 16.93
... 316 more rows

Sheet C1 (hidden)
A1: Barème | B1: Rev annuel début Barème C | C1: Rev annuel Fin Barème C | D1: Rev mensuel Début Barème C | E1: Tranche Barème C | F1: Rev mensuel Fin Barème C | G1: Rev annuel Début Barème C Rectification (Cumul couple) | H1: Rev annuel Fin Barème C Rectification (Cumul couple) | I1: Rev mensuel Début Barème C Rectification (Cumul couple) | J1: Rev mensuel Fin Barème C Rectification (Cumul couple) | K1: Taux imposition
A2: C1 | B2: =(D2-1)*12+1 -> 1 | C2: =F2*12 -> 31,200 | D2: 1 | E2: 2600 | F2: =D2-1+E2 -> 2,600 | G2: =MIN((B2-1)*2+1,B2+69300) -> 1 | H2: =MIN((C2)*2,C2+69300) -> 62,400 | I2: =(G2-1)/12+1 -> 1 | J2: =H2/12 -> 5,200 | K2: 0
A3: C1 | B3: 31,201 | C3: 31,800 | D3: 2601 | E3: 50 | F3: 2,650 | G3: =MIN((B3-1)*2+1,B3+69300) -> 62,401 | H3: =MIN((C3)*2,C3+69300) -> 63,600 | I3: 5,201 | J3: 5,300 | K3: 0.1
A4: C1 | B4: 31,801 | C4: 32,400 | D4: 2651 | E4: 50 | F4: 2,700 | G4: 63,601 | H4: 64,800 | I4: 5,301 | J4: 5,400 | K4: 0.16
A5: C1 | B5: 32,401 | C5: 33,000 | D5: 2701 | E5: 50 | F5: 2,750 | G5: 64,801 | H5: 66,000 | I5: 5,401 | J5: 5,500 | K5: 0.28
A6: C1 | B6: 33,001 | C6: 33,600 | D6: 2751 | E6: 50 | F6: 2,800 | G6: 66,001 | H6: 67,200 | I6: 5,501 | J6: 5,600 | K6: 0.37
A7: C1 | B7: 33,601 | C7: 34,200 | D7: 2801 | E7: 50 | F7: 2,850 | G7: 67,201 | H7: 68,400 | I7: 5,601 | J7: 5,700 | K7: 0.5
A8: C1 | B8: 34,201 | C8: 34,800 | D8: 2851 | E8: 50 | F8: 2,900 | G8: 68,401 | H8: 69,600 | I8: 5,701 | J8: 5,800 | K8: 0.65
A9: C1 | B9: 34,801 | C9: 35,400 | D9: 2901 | E9: 50 | F9: 2,950 | G9: 69,601 | H9: 70,800 | I9: 5,801 | J9: 5,900 | K9: 0.78
A10: C1 | B10: 35,401 | C10: 36,000 | D10: 2951 | E10: 50 | F10: 3,000 | G10: 70,801 | H10: 72,000 | I10: 5,901 | J10: 6,000 | K10: 0.99
A11: C1 | B11: 36,001 | C11: 36,600 | D11: 3001 | E11: 50 | F11: 3,050 | G11: 72,001 | H11: 73,200 | I11: 6,001 | J11: 6,100 | K11: 1.14
A12: C1 | B12: 36,601 | C12: 37,200 | D12: 3051 | E12: 50 | F12: 3,100 | G12: 73,201 | H12: 74,400 | I12: 6,101 | J12: 6,200 | K12: 1.32
A13: C1 | B13: 37,201 | C13: 37,800 | D13: 3101 | E13: 50 | F13: 3,150 | G13: 74,401 | H13: 75,600 | I13: 6,201 | J13: 6,300 | K13: 1.48
A14: C1 | B14: 37,801 | C14: 38,400 | D14: 3151 | E14: 50 | F14: 3,200 | G14: 75,601 | H14: 76,800 | I14: 6,301 | J14: 6,400 | K14: 1.64
A15: C1 | B15: 38,401 | C15: 39,000 | D15: 3201 | E15: 50 | F15: 3,250 | G15: 76,801 | H15: 78,000 | I15: 6,401 | J15: 6,500 | K15: 1.86
A16: C1 | B16: 39,001 | C16: 39,600 | D16: 3251 | E16: 50 | F16: 3,300 | G16: 78,001 | H16: 79,200 | I16: 6,501 | J16: 6,600 | K16: 2.04
A17: C1 | B17: 39,601 | C17: 40,200 | D17: 3301 | E17: 50 | F17: 3,350 | G17: 79,201 | H17: 80,400 | I17: 6,601 | J17: 6,700 | K17: 2.23
A18: C1 | B18: 40,201 | C18: 40,800 | D18: 3351 | E18: 50 | F18: 3,400 | G18: 80,401 | H18: 81,600 | I18: 6,701 | J18: 6,800 | K18: 2.41
A19: C1 | B19: 40,801 | C19: 41,400 | D19: 3401 | E19: 50 | F19: 3,450 | G19: 81,601 | H19: 82,800 | I19: 6,801 | J19: 6,900 | K19: 2.58
A20: C1 | B20: 41,401 | C20: 42,000 | D20: 3451 | E20: 50 | F20: 3,500 | G20: 82,801 | H20: 84,000 | I20: 6,901 | J20: 7,000 | K20: 2.81
A21: C1 | B21: 42,001 | C21: 42,600 | D21: 3501 | E21: 50 | F21: 3,550 | G21: 84,001 | H21: 85,200 | I21: 7,001 | J21: 7,100 | K21: 3.01
A22: C1 | B22: 42,601 | C22: 43,200 | D22: 3551 | E22: 50 | F22: 3,600 | G22: 85,201 | H22: 86,400 | I22: 7,101 | J22: 7,200 | K22: 3.21
A23: C1 | B23: 43,201 | C23: 43,800 | D23: 3601 | E23: 50 | F23: 3,650 | G23: 86,401 | H23: 87,600 | I23: 7,201 | J23: 7,300 | K23: 3.4
A24: C1 | B24: 43,801 | C24: 44,400 | D24: 3651 | E24: 50 | F24: 3,700 | G24: 87,601 | H24: 88,800 | I24: 7,301 | J24: 7,400 | K24: 3.59
A25: C1 | B25: 44,401 | C25: 45,000 | D25: 3701 | E25: 50 | F25: 3,750 | G25: 88,801 | H25: 90,000 | I25: 7,401 | J25: 7,500 | K25: 3.84
A26: C1 | B26: 45,001 | C26: 45,600 | D26: 3751 | E26: 50 | F26: 3,800 | G26: 90,001 | H26: 91,200 | I26: 7,501 | J26: 7,600 | K26: 4.04
A27: C1 | B27: 45,601 | C27: 46,200 | D27: 3801 | E27: 50 | F27: 3,850 | G27: 91,201 | H27: 92,400 | I27: 7,601 | J27: 7,700 | K27: 4.25
A28: C1 | B28: 46,201 | C28: 46,800 | D28: 3851 | E28: 50 | F28: 3,900 | G28: 92,401 | H28: 93,600 | I28: 7,701 | J28: 7,800 | K28: 4.46
A29: C1 | B29: 46,801 | C29: 47,400 | D29: 3901 | E29: 50 | F29: 3,950 | G29: 93,601 | H29: 94,800 | I29: 7,801 | J29: 7,900 | K29: 4.64
A30: C1 | B30: 47,401 | C30: 48,000 | D30: 3951 | E30: 50 | F30: 4,000 | G30: 94,801 | H30: 96,000 | I30: 7,901 | J30: 8,000 | K30: 4.87
A31: C1 | B31: 48,001 | C31: 48,600 | D31: 4001 | E31: 50 | F31: 4,050 | G31: 96,001 | H31: 97,200 | I31: 8,001 | J31: 8,100 | K31: 5.04
A32: C1 | B32: 48,601 | C32: 49,200 | D32: 4051 | E32: 50 | F32: 4,100 | G32: 97,201 | H32: 98,400 | I32: 8,101 | J32: 8,200 | K32: 5.22
A33: C1 | B33: 49,201 | C33: 49,800 | D33: 4101 | E33: 50 | F33: 4,150 | G33: 98,401 | H33: 99,600 | I33: 8,201 | J33: 8,300 | K33: 5.41
A34: C1 | B34: 49,801 | C34: 50,400 | D34: 4151 | E34: 50 | F34: 4,200 | G34: 99,601 | H34: 100,800 | I34: 8,301 | J34: 8,400 | K34: 5.57
A35: C1 | B35: 50,401 | C35: 51,000 | D35: 4201 | E35: 50 | F35: 4,250 | G35: 100,801 | H35: 102,000 | I35: 8,401 | J35: 8,500 | K35: 5.77
A36: C1 | B36: 51,001 | C36: 51,600 | D36: 4251 | E36: 50 | F36: 4,300 | G36: 102,001 | H36: 103,200 | I36: 8,501 | J36: 8,600 | K36: 5.92
A37: C1 | B37: 51,601 | C37: 52,200 | D37: 4301 | E37: 50 | F37: 4,350 | G37: 103,201 | H37: 104,400 | I37: 8,601 | J37: 8,700 | K37: 6.11
A38: C1 | B38: 52,201 | C38: 52,800 | D38: 4351 | E38: 50 | F38: 4,400 | G38: 104,401 | H38: 105,600 | I38: 8,701 | J38: 8,800 | K38: 6.31
A39: C1 | B39: 52,801 | C39: 53,400 | D39: 4401 | E39: 50 | F39: 4,450 | G39: 105,601 | H39: 106,800 | I39: 8,801 | J39: 8,900 | K39: 6.48
A40: C1 | B40: 53,401 | C40: 54,000 | D40: 4451 | E40: 50 | F40: 4,500 | G40: 106,801 | H40: 108,000 | I40: 8,901 | J40: 9,000 | K40: 6.7
A41: C1 | B41: 54,001 | C41: 54,600 | D41: 4501 | E41: 50 | F41: 4,550 | G41: 108,001 | H41: 109,200 | I41: 9,001 | J41: 9,100 | K41: 6.86
A42: C1 | B42: 54,601 | C42: 55,200 | D42: 4551 | E42: 50 | F42: 4,600 | G42: 109,201 | H42: 110,400 | I42: 9,101 | J42: 9,200 | K42: 7.03
A43: C1 | B43: 55,201 | C43: 55,800 | D43: 4601 | E43: 50 | F43: 4,650 | G43: 110,401 | H43: 111,600 | I43: 9,201 | J43: 9,300 | K43: 7.23
A44: C1 | B44: 55,801 | C44: 56,400 | D44: 4651 | E44: 50 | F44: 4,700 | G44: 111,601 | H44: 112,800 | I44: 9,301 | J44: 9,400 | K44: 7.41
A45: C1 | B45: 56,401 | C45: 57,000 | D45: 4701 | E45: 50 | F45: 4,750 | G45: 112,801 | H45: 114,000 | I45: 9,401 | J45: 9,500 | K45: 7.62
A46: C1 | B46: 57,001 | C46: 57,600 | D46: 4751 | E46: 50 | F46: 4,800 | G46: 114,001 | H46: 115,200 | I46: 9,501 | J46: 9,600 | K46: 7.78
A47: C1 | B47: 57,601 | C47: 58,200 | D47: 4801 | E47: 50 | F47: 4,850 | G47: 115,201 | H47: 116,400 | I47: 9,601 | J47: 9,700 | K47: 7.95
A48: C1 | B48: 58,201 | C48: 58,800 | D48: 4851 | E48: 50 | F48: 4,900 | G48: 116,401 | H48: 117,600 | I48: 9,701 | J48: 9,800 | K48: 8.13
A49: C1 | B49: 58,801 | C49: 59,400 | D49: 4901 | E49: 50 | F49: 4,950 | G49: 117,601 | H49: 118,800 | I49: 9,801 | J49: 9,900 | K49: 8.28
A50: C1 | B50: 59,401 | C50: 60,000 | D50: 4951 | E50: 50 | F50: 5,000 | G50: 118,801 | H50: 120,000 | I50: 9,901 | J50: 10,000 | K50: 8.5
A51: C1 | B51: 60,001 | C51: 60,600 | D51: 5001 | E51: 50 | F51: 5,050 | G51: 120,001 | H51: 121,200 | I51: 10,001 | J51: 10,100 | K51: 8.58
A52: C1 | B52: 60,601 | C52: 61,200 | D52: 5051 | E52: 50 | F52: 5,100 | G52: 121,201 | H52: 122,400 | I52: 10,101 | J52: 10,200 | K52: 8.67
A53: C1 | B53: 61,201 | C53: 61,800 | D53: 5101 | E53: 50 | F53: 5,150 | G53: 122,401 | H53: 123,600 | I53: 10,201 | J53: 10,300 | K53: 8.75
A54: C1 | B54: 61,801 | C54: 62,400 | D54: 5151 | E54: 50 | F54: 5,200 | G54: 123,601 | H54: 124,800 | I54: 10,301 | J54: 10,400 | K54: 8.84
A55: C1 | B55: 62,401 | C55: 63,000 | D55: 5201 | E55: 50 | F55: 5,250 | G55: 124,801 | H55: 126,000 | I55: 10,401 | J55: 10,500 | K55: 8.92
A56: C1 | B56: 63,001 | C56: 63,600 | D56: 5251 | E56: 50 | F56: 5,300 | G56: 126,001 | H56: 127,200 | I56: 10,501 | J56: 10,600 | K56: 9.03
A57: C1 | B57: 63,601 | C57: 64,200 | D57: 5301 | E57: 50 | F57: 5,350 | G57: 127,201 | H57: 128,400 | I57: 10,601 | J57: 10,700 | K57: 9.1
A58: C1 | B58: 64,201 | C58: 64,800 | D58: 5351 | E58: 50 | F58: 5,400 | G58: 128,401 | H58: 129,600 | I58: 10,701 | J58: 10,800 | K58: 9.18
A59: C1 | B59: 64,801 | C59: 65,400 | D59: 5401 | E59: 50 | F59: 5,450 | G59: 129,601 | H59: 130,800 | I59: 10,801 | J59: 10,900 | K59: 9.25
A60: C1 | B60: 65,401 | C60: 66,000 | D60: 5451 | E60: 50 | F60: 5,500 | G60: 130,801 | H60: 132,000 | I60: 10,901 | J60: 11,000 | K60: 9.33
A61: C1 | B61: 66,001 | C61: 66,600 | D61: 5501 | E61: 50 | F61: 5,550 | G61: 132,001 | H61: 133,200 | I61: 11,001 | J61: 11,100 | K61: 9.42
A62: C1 | B62: 66,601 | C62: 67,200 | D62: 5551 | E62: 50 | F62: 5,600 | G62: 133,201 | H62: 134,400 | I62: 11,101 | J62: 11,200 | K62: 9.5
A63: C1 | B63: 67,201 | C63: 67,800 | D63: 5601 | E63: 50 | F63: 5,650 | G63: 134,401 | H63: 135,600 | I63: 11,201 | J63: 11,300 | K63: 9.56
A64: C1 | B64: 67,801 | C64: 68,400 | D64: 5651 | E64: 50 | F64: 5,700 | G64: 135,601 | H64: 136,800 | I64: 11,301 | J64: 11,400 | K64: 9.63
A65: C1 | B65: 68,401 | C65: 69,000 | D65: 5701 | E65: 50 | F65: 5,750 | G65: 136,801 | H65: 138,000 | I65: 11,401 | J65: 11,500 | K65: 9.7
A66: C1 | B66: =(D66-1)*12+1 -> 69,001 | C66: =F66*12 -> 69,600 | D66: 5751 | E66: 50 | F66: =D66-1+E66 -> 5,800 | G66: 138,001 | H66: 138,900 | I66: =(G66-1)/12+1 -> 11,501 | J66: =H66/12 -> 11,575 | K66: 9.77
A67: C1 | B67: 69,601 | C67: 70,200 | D67: 5801 | E67: 50 | F67: 5,850 | G67: =MIN((B67-1)*2+1,B67+69300) -> 138,901 | H67: =MIN((C67)*2,C67+69300) -> 139,500 | I67: 11,576 | J67: 11,625 | K67: 9.81
A68: C1 | B68: 70,201 | C68: 70,800 | D68: 5851 | E68: 50 | F68: 5,900 | G68: 139,501 | H68: 140,100 | I68: 11,626 | J68: 11,675 | K68: 9.87
A69: C1 | B69: 70,801 | C69: 71,400 | D69: 5901 | E69: 50 | F69: 5,950 | G69: 140,101 | H69: 140,700 | I69: 11,676 | J69: 11,725 | K69: 9.93
A70: C1 | B70: 71,401 | C70: 72,000 | D70: 5951 | E70: 50 | F70: 6,000 | G70: 140,701 | H70: 141,300 | I70: 11,726 | J70: 11,775 | K70: 9.98
A71: C1 | B71: 72,001 | C71: 72,600 | D71: 6001 | E71: 50 | F71: 6,050 | G71: 141,301 | H71: 141,900 | I71: 11,776 | J71: 11,825 | K71: 10.03
A72: C1 | B72: 72,601 | C72: 73,200 | D72: 6051 | E72: 50 | F72: 6,100 | G72: 141,901 | H72: 142,500 | I72: 11,826 | J72: 11,875 | K72: 10.08
A73: C1 | B73: 73,201 | C73: 73,800 | D73: 6101 | E73: 50 | F73: 6,150 | G73: 142,501 | H73: 143,100 | I73: 11,876 | J73: 11,925 | K73: 10.14
A74: C1 | B74: 73,801 | C74: 74,400 | D74: 6151 | E74: 50 | F74: 6,200 | G74: 143,101 | H74: 143,700 | I74: 11,926 | J74: 11,975 | K74: 10.19
A75: C1 | B75: 74,401 | C75: 75,000 | D75: 6201 | E75: 50 | F75: 6,250 | G75: 143,701 | H75: 144,300 | I75: 11,976 | J75: 12,025 | K75: 10.24
A76: C1 | B76: 75,001 | C76: 75,600 | D76: 6251 | E76: 50 | F76: 6,300 | G76: 144,301 | H76: 144,900 | I76: 12,026 | J76: 12,075 | K76: 10.29
A77: C1 | B77: 75,601 | C77: 76,200 | D77: 6301 | E77: 50 | F77: 6,350 | G77: 144,901 | H77: 145,500 | I77: 12,076 | J77: 12,125 | K77: 10.34
A78: C1 | B78: 76,201 | C78: 76,800 | D78: 6351 | E78: 50 | F78: 6,400 | G78: 145,501 | H78: 146,100 | I78: 12,126 | J78: 12,175 | K78: 10.38
A79: C1 | B79: 76,801 | C79: 77,400 | D79: 6401 | E79: 50 | F79: 6,450 | G79: 146,101 | H79: 146,700 | I79: 12,176 | J79: 12,225 | K79: 10.44
A80: C1 | B80: 77,401 | C80: 78,000 | D80: 6451 | E80: 50 | F80: 6,500 | G80: 146,701 | H80: 147,300 | I80: 12,226 | J80: 12,275 | K80: 10.49
A81: C1 | B81: 78,001 | C81: 78,600 | D81: 6501 | E81: 50 | F81: 6,550 | G81: 147,301 | H81: 147,900 | I81: 12,276 | J81: 12,325 | K81: 10.54
A82: C1 | B82: 78,601 | C82: 79,200 | D82: 6551 | E82: 50 | F82: 6,600 | G82: 147,901 | H82: 148,500 | I82: 12,326 | J82: 12,375 | K82: 10.58
A83: C1 | B83: 79,201 | C83: 79,800 | D83: 6601 | E83: 50 | F83: 6,650 | G83: 148,501 | H83: 149,100 | I83: 12,376 | J83: 12,425 | K83: 10.63
A84: C1 | B84: 79,801 | C84: 80,400 | D84: 6651 | E84: 50 | F84: 6,700 | G84: 149,101 | H84: 149,700 | I84: 12,426 | J84: 12,475 | K84: 10.67
A85: C1 | B85: 80,401 | C85: 81,000 | D85: 6701 | E85: 50 | F85: 6,750 | G85: 149,701 | H85: 150,300 | I85: 12,476 | J85: 12,525 | K85: 10.73
A86: C1 | B86: 81,001 | C86: 81,600 | D86: 6751 | E86: 50 | F86: 6,800 | G86: 150,301 | H86: 150,900 | I86: 12,526 | J86: 12,575 | K86: 10.78
A87: C1 | B87: 81,601 | C87: 82,200 | D87: 6801 | E87: 50 | F87: 6,850 | G87: 150,901 | H87: 151,500 | I87: 12,576 | J87: 12,625 | K87: 10.82
A88: C1 | B88: 82,201 | C88: 82,800 | D88: 6851 | E88: 50 | F88: 6,900 | G88: 151,501 | H88: 152,100 | I88: 12,626 | J88: 12,675 | K88: 10.86
A89: C1 | B89: 82,801 | C89: 83,400 | D89: 6901 | E89: 50 | F89: 6,950 | G89: 152,101 | H89: 152,700 | I89: 12,676 | J89: 12,725 | K89: 10.91
A90: C1 | B90: 83,401 | C90: 84,000 | D90: 6951 | E90: 50 | F90: 7,000 | G90: 152,701 | H90: 153,300 | I90: 12,726 | J90: 12,775 | K90: 10.95
A91: C1 | B91: 84,001 | C91: 84,600 | D91: 7001 | E91: 50 | F91: 7,050 | G91: 153,301 | H91: 153,900 | I91: 12,776 | J91: 12,825 | K91: 11
A92: C1 | B92: 84,601 | C92: 85,200 | D92: 7051 | E92: 50 | F92: 7,100 | G92: 153,901 | H92: 154,500 | I92: 12,826 | J92: 12,875 | K92: 11.04
A93: C1 | B93: 85,201 | C93: 85,800 | D93: 7101 | E93: 50 | F93: 7,150 | G93: 154,501 | H93: 155,100 | I93: 12,876 | J93: 12,925 | K93: 11.08
A94: C1 | B94: 85,801 | C94: 86,400 | D94: 7151 | E94: 50 | F94: 7,200 | G94: 155,101 | H94: 155,700 | I94: 12,926 | J94: 12,975 | K94: 11.12
A95: C1 | B95: 86,401 | C95: 87,000 | D95: 7201 | E95: 50 | F95: 7,250 | G95: 155,701 | H95: 156,300 | I95: 12,976 | J95: 13,025 | K95: 11.17
A96: C1 | B96: 87,001 | C96: 87,600 | D96: 7251 | E96: 50 | F96: 7,300 | G96: 156,301 | H96: 156,900 | I96: 13,026 | J96: 13,075 | K96: 11.21
A97: C1 | B97: 87,601 | C97: 88,200 | D97: 7301 | E97: 50 | F97: 7,350 | G97: 156,901 | H97: 157,500 | I97: 13,076 | J97: 13,125 | K97: 11.25
A98: C1 | B98: 88,201 | C98: 88,800 | D98: 7351 | E98: 50 | F98: 7,400 | G98: 157,501 | H98: 158,100 | I98: 13,126 | J98: 13,175 | K98: 11.29
A99: C1 | B99: 88,801 | C99: 89,400 | D99: 7401 | E99: 50 | F99: 7,450 | G99: 158,101 | H99: 158,700 | I99: 13,176 | J99: 13,225 | K99: 11.34
A100: C1 | B100: 89,401 | C100: 90,000 | D100: 7451 | E100: 50 | F100: 7,500 | G100: 158,701 | H100: 159,300 | I100: 13,226 | J100: 13,275 | K100: 11.38
A101: C1 | B101: 90,001 | C101: 90,600 | D101: 7501 | E101: 50 | F101: 7,550 | G101: 159,301 | H101: 159,900 | I101: 13,276 | J101: 13,325 | K101: 11.42
A102: C1 | B102: 90,601 | C102: 91,200 | D102: 7551 | E102: 50 | F102: 7,600 | G102: 159,901 | H102: 160,500 | I102: 13,326 | J102: 13,375 | K102: 11.47
A103: C1 | B103: 91,201 | C103: 91,800 | D103: 7601 | E103: 50 | F103: 7,650 | G103: 160,501 | H103: 161,100 | I103: 13,376 | J103: 13,425 | K103: 11.51
A104: C1 | B104: 91,801 | C104: 92,400 | D104: 7651 | E104: 50 | F104: 7,700 | G104: 161,101 | H104: 161,700 | I104: 13,426 | J104: 13,475 | K104: 11.54
A105: C1 | B105: 92,401 | C105: 93,000 | D105: 7701 | E105: 50 | F105: 7,750 | G105: 161,701 | H105: 162,300 | I105: 13,476 | J105: 13,525 | K105: 11.59
A106: C1 | B106: 93,001 | C106: 93,600 | D106: 7751 | E106: 50 | F106: 7,800 | G106: 162,301 | H106: 162,900 | I106: 13,526 | J106: 13,575 | K106: 11.63
A107: C1 | B107: 93,601 | C107: 94,200 | D107: 7801 | E107: 50 | F107: 7,850 | G107: 162,901 | H107: 163,500 | I107: 13,576 | J107: 13,625 | K107: 11.7
A108: C1 | B108: 94,201 | C108: 94,800 | D108: 7851 | E108: 50 | F108: 7,900 | G108: 163,501 | H108: 164,100 | I108: 13,626 | J108: 13,675 | K108: 11.73
A109: C1 | B109: 94,801 | C109: 95,400 | D109: 7901 | E109: 50 | F109: 7,950 | G109: 164,101 | H109: 164,700 | I109: 13,676 | J109: 13,725 | K109: 11.77
A110: C1 | B110: 95,401 | C110: 96,000 | D110: 7951 | E110: 50 | F110: 8,000 | G110: 164,701 | H110: 165,300 | I110: 13,726 | J110: 13,775 | K110: 11.8
A111: C1 | B111: 96,001 | C111: 96,600 | D111: 8001 | E111: 50 | F111: 8,050 | G111: 165,301 | H111: 165,900 | I111: 13,776 | J111: 13,825 | K111: 11.85
A112: C1 | B112: 96,601 | C112: 97,200 | D112: 8051 | E112: 50 | F112: 8,100 | G112: 165,901 | H112: 166,500 | I112: 13,826 | J112: 13,875 | K112: 11.89
A113: C1 | B113: 97,201 | C113: 97,800 | D113: 8101 | E113: 50 | F113: 8,150 | G113: 166,501 | H113: 167,100 | I113: 13,876 | J113: 13,925 | K113: 11.92
A114: C1 | B114: 97,801 | C114: 98,400 | D114: 8151 | E114: 50 | F114: 8,200 | G114: 167,101 | H114: 167,700 | I114: 13,926 | J114: 13,975 | K114: 11.97
A115: C1 | B115: 98,401 | C115: 99,000 | D115: 8201 | E115: 50 | F115: 8,250 | G115: 167,701 | H115: 168,300 | I115: 13,976 | J115: 14,025 | K115: 12
A116: C1 | B116: 99,001 | C116: 99,600 | D116: 8251 | E116: 50 | F116: 8,300 | G116: 168,301 | H116: 168,900 | I116: 14,026 | J116: 14,075 | K116: 12.04
A117: C1 | B117: 99,601 | C117: 100,200 | D117: 8301 | E117: 50 | F117: 8,350 | G117: 168,901 | H117: 169,500 | I117: 14,076 | J117: 14,125 | K117: 12.07
A118: C1 | B118: 100,201 | C118: 100,800 | D118: 8351 | E118: 50 | F118: 8,400 | G118: 169,501 | H118: 170,100 | I118: 14,126 | J118: 14,175 | K118: 12.12
A119: C1 | B119: 100,801 | C119: 101,400 | D119: 8401 | E119: 50 | F119: 8,450 | G119: 170,101 | H119: 170,700 | I119: 14,176 | J119: 14,225 | K119: 12.15
A120: C1 | B120: 101,401 | C120: 102,000 | D120: 8451 | E120: 50 | F120: 8,500 | G120: 170,701 | H120: 171,300 | I120: 14,226 | J120: 14,275 | K120: 12.19
A121: C1 | B121: 102,001 | C121: 102,600 | D121: 8501 | E121: 50 | F121: 8,550 | G121: 171,301 | H121: 171,900 | I121: 14,276 | J121: 14,325 | K121: 12.22
A122: C1 | B122: 102,601 | C122: 103,200 | D122: 8551 | E122: 50 | F122: 8,600 | G122: 171,901 | H122: 172,500 | I122: 14,326 | J122: 14,375 | K122: 12.25
A123: C1 | B123: 103,201 | C123: 103,800 | D123: 8601 | E123: 50 | F123: 8,650 | G123: 172,501 | H123: 173,100 | I123: 14,376 | J123: 14,425 | K123: 12.29
A124: C1 | B124: 103,801 | C124: 104,400 | D124: 8651 | E124: 50 | F124: 8,700 | G124: 173,101 | H124: 173,700 | I124: 14,426 | J124: 14,475 | K124: 12.33
A125: C1 | B125: 104,401 | C125: 105,000 | D125: 8701 | E125: 50 | F125: 8,750 | G125: 173,701 | H125: 174,300 | I125: 14,476 | J125: 14,525 | K125: 12.37
A126: C1 | B126: 105,001 | C126: 105,600 | D126: 8751 | E126: 50 | F126: 8,800 | G126: 174,301 | H126: 174,900 | I126: 14,526 | J126: 14,575 | K126: 12.41
A127: C1 | B127: 105,601 | C127: 106,200 | D127: 8801 | E127: 50 | F127: 8,850 | G127: 174,901 | H127: 175,500 | I127: 14,576 | J127: 14,625 | K127: 12.44
A128: C1 | B128: 106,201 | C128: 106,800 | D128: 8851 | E128: 50 | F128: 8,900 | G128: 175,501 | H128: 176,100 | I128: 14,626 | J128: 14,675 | K128: 12.48
A129: C1 | B129: 106,801 | C129: 107,400 | D129: 8901 | E129: 50 | F129: 8,950 | G129: 176,101 | H129: 176,700 | I129: 14,676 | J129: 14,725 | K129: 12.52
A130: C1 | B130: =(D130-1)*12+1 -> 107,401 | C130: =F130*12 -> 108,000 | D130: 8951 | E130: 50 | F130: =D130-1+E130 -> 9,000 | G130: 176,701 | H130: 177,300 | I130: =(G130-1)/12+1 -> 14,726 | J130: =H130/12 -> 14,775 | K130: 12.56
A131: C1 | B131: 108,001 | C131: 108,600 | D131: 9001 | E131: 50 | F131: 9,050 | G131: =MIN((B131-1)*2+1,B131+69300) -> 177,301 | H131: =MIN((C131)*2,C131+69300) -> 177,900 | I131: 14,776 | J131: 14,825 | K131: 12.59
A132: C1 | B132: 108,601 | C132: 109,200 | D132: 9051 | E132: 50 | F132: 9,100 | G132: 177,901 | H132: 178,500 | I132: 14,826 | J132: 14,875 | K132: 12.62
A133: C1 | B133: 109,201 | C133: 109,800 | D133: 9101 | E133: 50 | F133: 9,150 | G133: 178,501 | H133: 179,100 | I133: 14,876 | J133: 14,925 | K133: 12.67
A134: C1 | B134: 109,801 | C134: 110,400 | D134: 9151 | E134: 50 | F134: 9,200 | G134: 179,101 | H134: 179,700 | I134: 14,926 | J134: 14,975 | K134: 12.7
A135: C1 | B135: 110,401 | C135: 111,000 | D135: 9201 | E135: 50 | F135: 9,250 | G135: 179,701 | H135: 180,300 | I135: 14,976 | J135: 15,025 | K135: 12.73
A136: C1 | B136: 111,001 | C136: 111,600 | D136: 9251 | E136: 50 | F136: 9,300 | G136: 180,301 | H136: 180,900 | I136: 15,026 | J136: 15,075 | K136: 12.77
A137: C1 | B137: 111,601 | C137: 112,200 | D137: 9301 | E137: 50 | F137: 9,350 | G137: 180,901 | H137: 181,500 | I137: 15,076 | J137: 15,125 | K137: 12.82
A138: C1 | B138: 112,201 | C138: 112,800 | D138: 9351 | E138: 50 | F138: 9,400 | G138: 181,501 | H138: 182,100 | I138: 15,126 | J138: 15,175 | K138: 12.86
A139: C1 | B139: 112,801 | C139: 113,400 | D139: 9401 | E139: 50 | F139: 9,450 | G139: 182,101 | H139: 182,700 | I139: 15,176 | J139: 15,225 | K139: 12.89
A140: C1 | B140: 113,401 | C140: 114,000 | D140: 9451 | E140: 50 | F140: 9,500 | G140: 182,701 | H140: 183,300 | I140: 15,226 | J140: 15,275 | K140: 12.92
A141: C1 | B141: 114,001 | C141: 114,600 | D141: 9501 | E141: 50 | F141: 9,550 | G141: 183,301 | H141: 183,900 | I141: 15,276 | J141: 15,325 | K141: 12.95
A142: C1 | B142: 114,601 | C142: 115,200 | D142: 9551 | E142: 50 | F142: 9,600 | G142: 183,901 | H142: 184,500 | I142: 15,326 | J142: 15,375 | K142: 13
A143: C1 | B143: 115,201 | C143: 115,800 | D143: 9601 | E143: 50 | F143: 9,650 | G143: 184,501 | H143: 185,100 | I143: 15,376 | J143: 15,425 | K143: 13.03
A144: C1 | B144: 115,801 | C144: 116,400 | D144: 9651 | E144: 50 | F144: 9,700 | G144: 185,101 | H144: 185,700 | I144: 15,426 | J144: 15,475 | K144: 13.06
A145: C1 | B145: 1,200,001 | C145: 6,000,000 | D145: 9701 | E145: 50 | F145: 500,000 | G145: 1,269,301 | H145: 6,069,300 | I145: 105,426 | J145: 505,425 | K145: 13.12
A146: C1 | B146: 117,001 | C146: 117,600 | D146: 9751 | E146: 50 | F146: 9,800 | G146: 186,301 | H146: 186,900 | I146: 15,526 | J146: 15,575 | K146: 13.15
A147: C1 | B147: 117,601 | C147: 118,200 | D147: 9801 | E147: 50 | F147: 9,850 | G147: 186,901 | H147: 187,500 | I147: 15,576 | J147: 15,625 | K147: 13.18
A148: C1 | B148: 118,201 | C148: 118,800 | D148: 9851 | E148: 50 | F148: 9,900 | G148: 187,501 | H148: 188,100 | I148: 15,626 | J148: 15,675 | K148: 13.24
A149: C1 | B149: 118,801 | C149: 119,400 | D149: 9901 | E149: 50 | F149: 9,950 | G149: 188,101 | H149: 188,700 | I149: 15,676 | J149: 15,725 | K149: 13.27
A150: C1 | B150: 119,401 | C150: 120,000 | D150: 9951 | E150: 50 | F150: 10,000 | G150: 188,701 | H150: 189,300 | I150: 15,726 | J150: 15,775 | K150: 13.33
A151: C1 | B151: 120,001 | C151: 120,600 | D151: 10001 | E151: 50 | F151: 10,050 | G151: 189,301 | H151: 189,900 | I151: 15,776 | J151: 15,825 | K151: 13.37
A152: C1 | B152: 120,601 | C152: 121,200 | D152: 10051 | E152: 50 | F152: 10,100 | G152: 189,901 | H152: 190,500 | I152: 15,826 | J152: 15,875 | K152: 13.41
A153: C1 | B153: 121,201 | C153: 121,800 | D153: 10101 | E153: 50 | F153: 10,150 | G153: 190,501 | H153: 191,100 | I153: 15,876 | J153: 15,925 | K153: 13.44
A154: C1 | B154: 121,801 | C154: 122,400 | D154: 10151 | E154: 50 | F154: 10,200 | G154: 191,101 | H154: 191,700 | I154: 15,926 | J154: 15,975 | K154: 13.49
A155: C1 | B155: 122,401 | C155: 123,000 | D155: 10201 | E155: 50 | F155: 10,250 | G155: 191,701 | H155: 192,300 | I155: 15,976 | J155: 16,025 | K155: 13.52
A156: C1 | B156: 123,001 | C156: 123,600 | D156: 10251 | E156: 50 | F156: 10,300 | G156: 192,301 | H156: 192,900 | I156: 16,026 | J156: 16,075 | K156: 13.57
A157: C1 | B157: 123,601 | C157: 124,200 | D157: 10301 | E157: 50 | F157: 10,350 | G157: 192,901 | H157: 193,500 | I157: 16,076 | J157: 16,125 | K157: 13.6
A158: C1 | B158: 124,201 | C158: 124,800 | D158: 10351 | E158: 50 | F158: 10,400 | G158: 193,501 | H158: 194,100 | I158: 16,126 | J158: 16,175 | K158: 13.66
A159: C1 | B159: 124,801 | C159: 125,400 | D159: 10401 | E159: 50 | F159: 10,450 | G159: 194,101 | H159: 194,700 | I159: 16,176 | J159: 16,225 | K159: 13.69
A160: C1 | B160: 125,401 | C160: 126,000 | D160: 10451 | E160: 50 | F160: 10,500 | G160: 194,701 | H160: 195,300 | I160: 16,226 | J160: 16,275 | K160: 13.72
A161: C1 | B161: 126,001 | C161: 126,600 | D161: 10501 | E161: 50 | F161: 10,550 | G161: 195,301 | H161: 195,900 | I161: 16,276 | J161: 16,325 | K161: 13.77
A162: C1 | B162: 126,601 | C162: 127,200 | D162: 10551 | E162: 50 | F162: 10,600 | G162: 195,901 | H162: 196,500 | I162: 16,326 | J162: 16,375 | K162: 13.8
A163: C1 | B163: 127,201 | C163: 127,800 | D163: 10601 | E163: 50 | F163: 10,650 | G163: 196,501 | H163: 197,100 | I163: 16,376 | J163: 16,425 | K163: 13.84
A164: C1 | B164: 127,801 | C164: 128,400 | D164: 10651 | E164: 50 | F164: 10,700 | G164: 197,101 | H164: 197,700 | I164: 16,426 | J164: 16,475 | K164: 13.88
A165: C1 | B165: 128,401 | C165: 129,000 | D165: 10701 | E165: 50 | F165: 10,750 | G165: 197,701 | H165: 198,300 | I165: 16,476 | J165: 16,525 | K165: 13.91
A166: C1 | B166: 129,001 | C166: 129,600 | D166: 10751 | E166: 50 | F166: 10,800 | G166: 198,301 | H166: 198,900 | I166: 16,526 | J166: 16,575 | K166: 13.95
A167: C1 | B167: 129,601 | C167: 130,200 | D167: 10801 | E167: 50 | F167: 10,850 | G167: 198,901 | H167: 199,500 | I167: 16,576 | J167: 16,625 | K167: 14
A168: C1 | B168: 130,201 | C168: 130,800 | D168: 10851 | E168: 50 | F168: 10,900 | G168: 199,501 | H168: 200,100 | I168: 16,626 | J168: 16,675 | K168: 14.04
A169: C1 | B169: 130,801 | C169: 131,400 | D169: 10901 | E169: 50 | F169: 10,950 | G169: 200,101 | H169: 200,700 | I169: 16,676 | J169: 16,725 | K169: 14.07
A170: C1 | B170: 131,401 | C170: 132,000 | D170: 10951 | E170: 50 | F170: 11,000 | G170: 200,701 | H170: 201,300 | I170: 16,726 | J170: 16,775 | K170: 14.11
A171: C1 | B171: 132,001 | C171: 132,600 | D171: 11001 | E171: 50 | F171: 11,050 | G171: 201,301 | H171: 201,900 | I171: 16,776 | J171: 16,825 | K171: 14.16
A172: C1 | B172: 132,601 | C172: 133,200 | D172: 11051 | E172: 50 | F172: 11,100 | G172: 201,901 | H172: 202,500 | I172: 16,826 | J172: 16,875 | K172: 14.2
A173: C1 | B173: 133,201 | C173: 133,800 | D173: 11101 | E173: 50 | F173: 11,150 | G173: 202,501 | H173: 203,100 | I173: 16,876 | J173: 16,925 | K173: 14.24
A174: C1 | B174: 133,801 | C174: 134,400 | D174: 11151 | E174: 50 | F174: 11,200 | G174: 203,101 | H174: 203,700 | I174: 16,926 | J174: 16,975 | K174: 14.27
A175: C1 | B175: 134,401 | C175: 135,000 | D175: 11201 | E175: 50 | F175: 11,250 | G175: 203,701 | H175: 204,300 | I175: 16,976 | J175: 17,025 | K175: 14.33
A176: C1 | B176: 135,001 | C176: 135,600 | D176: 11251 | E176: 50 | F176: 11,300 | G176: 204,301 | H176: 204,900 | I176: 17,026 | J176: 17,075 | K176: 14.37
A177: C1 | B177: 135,601 | C177: 136,200 | D177: 11301 | E177: 50 | F177: 11,350 | G177: 204,901 | H177: 205,500 | I177: 17,076 | J177: 17,125 | K177: 14.4
A178: C1 | B178: 136,201 | C178: 136,800 | D178: 11351 | E178: 50 | F178: 11,400 | G178: 205,501 | H178: 206,100 | I178: 17,126 | J178: 17,175 | K178: 14.44
A179: C1 | B179: 136,801 | C179: 137,400 | D179: 11401 | E179: 50 | F179: 11,450 | G179: 206,101 | H179: 206,700 | I179: 17,176 | J179: 17,225 | K179: 14.48
A180: C1 | B180: 137,401 | C180: 138,000 | D180: 11451 | E180: 50 | F180: 11,500 | G180: 206,701 | H180: 207,300 | I180: 17,226 | J180: 17,275 | K180: 14.52
A181: C1 | B181: 138,001 | C181: 138,600 | D181: 11501 | E181: 50 | F181: 11,550 | G181: 207,301 | H181: 207,900 | I181: 17,276 | J181: 17,325 | K181: 14.57
A182: C1 | B182: 138,601 | C182: 139,200 | D182: 11551 | E182: 50 | F182: 11,600 | G182: 207,901 | H182: 208,500 | I182: 17,326 | J182: 17,375 | K182: 14.6
A183: C1 | B183: 139,201 | C183: 139,800 | D183: 11601 | E183: 50 | F183: 11,650 | G183: 208,501 | H183: 209,100 | I183: 17,376 | J183: 17,425 | K183: 14.65
A184: C1 | B184: 139,801 | C184: 140,400 | D184: 11651 | E184: 50 | F184: 11,700 | G184: 209,101 | H184: 209,700 | I184: 17,426 | J184: 17,475 | K184: 14.69
A185: C1 | B185: 140,401 | C185: 141,000 | D185: 11701 | E185: 50 | F185: 11,750 | G185: 209,701 | H185: 210,300 | I185: 17,476 | J185: 17,525 | K185: 14.72
A186: C1 | B186: 141,001 | C186: 141,600 | D186: 11751 | E186: 50 | F186: 11,800 | G186: 210,301 | H186: 210,900 | I186: 17,526 | J186: 17,575 | K186: 14.77
A187: C1 | B187: 141,601 | C187: 142,200 | D187: 11801 | E187: 50 | F187: 11,850 | G187: 210,901 | H187: 211,500 | I187: 17,576 | J187: 17,625 | K187: 14.81
A188: C1 | B188: 142,201 | C188: 142,800 | D188: 11851 | E188: 50 | F188: 11,900 | G188: 211,501 | H188: 212,100 | I188: 17,626 | J188: 17,675 | K188: 14.87
A189: C1 | B189: 142,801 | C189: 143,400 | D189: 11901 | E189: 50 | F189: 11,950 | G189: 212,101 | H189: 212,700 | I189: 17,676 | J189: 17,725 | K189: 14.89
A190: C1 | B190: 143,401 | C190: 144,000 | D190: 11951 | E190: 50 | F190: 12,000 | G190: 212,701 | H190: 213,300 | I190: 17,726 | J190: 17,775 | K190: 14.93
A191: C1 | B191: 144,001 | C191: 144,600 | D191: 12001 | E191: 50 | F191: 12,050 | G191: 213,301 | H191: 213,900 | I191: 17,776 | J191: 17,825 | K191: 14.99
A192: C1 | B192: 144,601 | C192: 145,200 | D192: 12051 | E192: 50 | F192: 12,100 | G192: 213,901 | H192: 214,500 | I192: 17,826 | J192: 17,875 | K192: 15.02
A193: C1 | B193: 145,201 | C193: 145,800 | D193: 12101 | E193: 50 | F193: 12,150 | G193: 214,501 | H193: 215,100 | I193: 17,876 | J193: 17,925 | K193: 15.05
A194: C1 | B194: =(D194-1)*12+1 -> 145,801 | C194: =F194*12 -> 146,400 | D194: 12151 | E194: 50 | F194: =D194-1+E194 -> 12,200 | G194: 215,101 | H194: 215,700 | I194: =(G194-1)/12+1 -> 17,926 | J194: =H194/12 -> 17,975 | K194: 15.09
A195: C1 | B195: 146,401 | C195: 147,000 | D195: 12201 | E195: 50 | F195: 12,250 | G195: =MIN((B195-1)*2+1,B195+69300) -> 215,701 | H195: =MIN((C195)*2,C195+69300) -> 216,300 | I195: 17,976 | J195: 18,025 | K195: 15.14
A196: C1 | B196: 147,001 | C196: 147,600 | D196: 12251 | E196: 50 | F196: 12,300 | G196: 216,301 | H196: 216,900 | I196: 18,026 | J196: 18,075 | K196: 15.18
A197: C1 | B197: 147,601 | C197: 148,200 | D197: 12301 | E197: 50 | F197: 12,350 | G197: 216,901 | H197: 217,500 | I197: 18,076 | J197: 18,125 | K197: 15.22
A198: C1 | B198: 148,201 | C198: 148,800 | D198: 12351 | E198: 50 | F198: 12,400 | G198: 217,501 | H198: 218,100 | I198: 18,126 | J198: 18,175 | K198: 15.27
A199: C1 | B199: 148,801 | C199: 149,400 | D199: 12401 | E199: 50 | F199: 12,450 | G199: 218,101 | H199: 218,700 | I199: 18,176 | J199: 18,225 | K199: 15.31
A200: C1 | B200: 149,401 | C200: 150,000 | D200: 12451 | E200: 50 | F200: 12,500 | G200: 218,701 | H200: 219,300 | I200: 18,226 | J200: 18,275 | K200: 15.35
... 311 more rows

Sheet C2 (hidden)
A1: Barème | B1: Rev annuel début Barème C | C1: Rev annuel Fin Barème C | D1: Rev mensuel Début Barème C | E1: Tranche Barème C | F1: Rev mensuel Fin Barème C | G1: Rev annuel Début Barème C Rectification (Cumul couple) | H1: Rev annuel Fin Barème C Rectification (Cumul couple) | I1: Rev mensuel Début Barème C Rectification (Cumul couple) | J1: Rev mensuel Fin Barème C Rectification (Cumul couple) | K1: Taux imposition
A2: C2 | B2: =(D2-1)*12+1 -> 1 | C2: =F2*12 -> 34,200 | D2: 1 | E2: 2850 | F2: =D2-1+E2 -> 2,850 | G2: =MIN((B2-1)*2+1,B2+69300) -> 1 | H2: =MIN((C2)*2,C2+69300) -> 68,400 | I2: =(G2-1)/12+1 -> 1 | J2: =H2/12 -> 5,700 | K2: 0
A3: C2 | B3: 34,201 | C3: 34,800 | D3: 2851 | E3: 50 | F3: 2,900 | G3: =MIN((B3-1)*2+1,B3+69300) -> 68,401 | H3: =MIN((C3)*2,C3+69300) -> 69,600 | I3: 5,701 | J3: 5,800 | K3: 0.08
A4: C2 | B4: 34,801 | C4: 35,400 | D4: 2901 | E4: 50 | F4: 2,950 | G4: 69,601 | H4: 70,800 | I4: 5,801 | J4: 5,900 | K4: 0.12
A5: C2 | B5: 35,401 | C5: 36,000 | D5: 2951 | E5: 50 | F5: 3,000 | G5: 70,801 | H5: 72,000 | I5: 5,901 | J5: 6,000 | K5: 0.21
A6: C2 | B6: 36,001 | C6: 36,600 | D6: 3001 | E6: 50 | F6: 3,050 | G6: 72,001 | H6: 73,200 | I6: 6,001 | J6: 6,100 | K6: 0.29
A7: C2 | B7: 36,601 | C7: 37,200 | D7: 3051 | E7: 50 | F7: 3,100 | G7: 73,201 | H7: 74,400 | I7: 6,101 | J7: 6,200 | K7: 0.38
A8: C2 | B8: 37,201 | C8: 37,800 | D8: 3101 | E8: 50 | F8: 3,150 | G8: 74,401 | H8: 75,600 | I8: 6,201 | J8: 6,300 | K8: 0.48
A9: C2 | B9: 37,801 | C9: 38,400 | D9: 3151 | E9: 50 | F9: 3,200 | G9: 75,601 | H9: 76,800 | I9: 6,301 | J9: 6,400 | K9: 0.6
A10: C2 | B10: 38,401 | C10: 39,000 | D10: 3201 | E10: 50 | F10: 3,250 | G10: 76,801 | H10: 78,000 | I10: 6,401 | J10: 6,500 | K10: 0.74
A11: C2 | B11: 39,001 | C11: 39,600 | D11: 3251 | E11: 50 | F11: 3,300 | G11: 78,001 | H11: 79,200 | I11: 6,501 | J11: 6,600 | K11: 0.87
A12: C2 | B12: 39,601 | C12: 40,200 | D12: 3301 | E12: 50 | F12: 3,350 | G12: 79,201 | H12: 80,400 | I12: 6,601 | J12: 6,700 | K12: 1.02
A13: C2 | B13: 40,201 | C13: 40,800 | D13: 3351 | E13: 50 | F13: 3,400 | G13: 80,401 | H13: 81,600 | I13: 6,701 | J13: 6,800 | K13: 1.19
A14: C2 | B14: 40,801 | C14: 41,400 | D14: 3401 | E14: 50 | F14: 3,450 | G14: 81,601 | H14: 82,800 | I14: 6,801 | J14: 6,900 | K14: 1.32
A15: C2 | B15: 41,401 | C15: 42,000 | D15: 3451 | E15: 50 | F15: 3,500 | G15: 82,801 | H15: 84,000 | I15: 6,901 | J15: 7,000 | K15: 1.49
A16: C2 | B16: 42,001 | C16: 42,600 | D16: 3501 | E16: 50 | F16: 3,550 | G16: 84,001 | H16: 85,200 | I16: 7,001 | J16: 7,100 | K16: 1.62
A17: C2 | B17: 42,601 | C17: 43,200 | D17: 3551 | E17: 50 | F17: 3,600 | G17: 85,201 | H17: 86,400 | I17: 7,101 | J17: 7,200 | K17: 1.78
A18: C2 | B18: 43,201 | C18: 43,800 | D18: 3601 | E18: 50 | F18: 3,650 | G18: 86,401 | H18: 87,600 | I18: 7,201 | J18: 7,300 | K18: 1.96
A19: C2 | B19: 43,801 | C19: 44,400 | D19: 3651 | E19: 50 | F19: 3,700 | G19: 87,601 | H19: 88,800 | I19: 7,301 | J19: 7,400 | K19: 2.11
A20: C2 | B20: 44,401 | C20: 45,000 | D20: 3701 | E20: 50 | F20: 3,750 | G20: 88,801 | H20: 90,000 | I20: 7,401 | J20: 7,500 | K20: 2.3
A21: C2 | B21: 45,001 | C21: 45,600 | D21: 3751 | E21: 50 | F21: 3,800 | G21: 90,001 | H21: 91,200 | I21: 7,501 | J21: 7,600 | K21: 2.44
A22: C2 | B22: 45,601 | C22: 46,200 | D22: 3801 | E22: 50 | F22: 3,850 | G22: 91,201 | H22: 92,400 | I22: 7,601 | J22: 7,700 | K22: 2.61
A23: C2 | B23: 46,201 | C23: 46,800 | D23: 3851 | E23: 50 | F23: 3,900 | G23: 92,401 | H23: 93,600 | I23: 7,701 | J23: 7,800 | K23: 2.77
A24: C2 | B24: 46,801 | C24: 47,400 | D24: 3901 | E24: 50 | F24: 3,950 | G24: 93,601 | H24: 94,800 | I24: 7,801 | J24: 7,900 | K24: 2.93
A25: C2 | B25: 47,401 | C25: 48,000 | D25: 3951 | E25: 50 | F25: 4,000 | G25: 94,801 | H25: 96,000 | I25: 7,901 | J25: 8,000 | K25: 3.14
A26: C2 | B26: 48,001 | C26: 48,600 | D26: 4001 | E26: 50 | F26: 4,050 | G26: 96,001 | H26: 97,200 | I26: 8,001 | J26: 8,100 | K26: 3.29
A27: C2 | B27: 48,601 | C27: 49,200 | D27: 4051 | E27: 50 | F27: 4,100 | G27: 97,201 | H27: 98,400 | I27: 8,101 | J27: 8,200 | K27: 3.47
A28: C2 | B28: 49,201 | C28: 49,800 | D28: 4101 | E28: 50 | F28: 4,150 | G28: 98,401 | H28: 99,600 | I28: 8,201 | J28: 8,300 | K28: 3.64
A29: C2 | B29: 49,801 | C29: 50,400 | D29: 4151 | E29: 50 | F29: 4,200 | G29: 99,601 | H29: 100,800 | I29: 8,301 | J29: 8,400 | K29: 3.8
A30: C2 | B30: 50,401 | C30: 51,000 | D30: 4201 | E30: 50 | F30: 4,250 | G30: 100,801 | H30: 102,000 | I30: 8,401 | J30: 8,500 | K30: 4.03
A31: C2 | B31: 51,001 | C31: 51,600 | D31: 4251 | E31: 50 | F31: 4,300 | G31: 102,001 | H31: 103,200 | I31: 8,501 | J31: 8,600 | K31: 4.19
A32: C2 | B32: 51,601 | C32: 52,200 | D32: 4301 | E32: 50 | F32: 4,350 | G32: 103,201 | H32: 104,400 | I32: 8,601 | J32: 8,700 | K32: 4.38
A33: C2 | B33: 52,201 | C33: 52,800 | D33: 4351 | E33: 50 | F33: 4,400 | G33: 104,401 | H33: 105,600 | I33: 8,701 | J33: 8,800 | K33: 4.56
A34: C2 | B34: 52,801 | C34: 53,400 | D34: 4401 | E34: 50 | F34: 4,450 | G34: 105,601 | H34: 106,800 | I34: 8,801 | J34: 8,900 | K34: 4.73
A35: C2 | B35: 53,401 | C35: 54,000 | D35: 4451 | E35: 50 | F35: 4,500 | G35: 106,801 | H35: 108,000 | I35: 8,901 | J35: 9,000 | K35: 4.93
A36: C2 | B36: 54,001 | C36: 54,600 | D36: 4501 | E36: 50 | F36: 4,550 | G36: 108,001 | H36: 109,200 | I36: 9,001 | J36: 9,100 | K36: 5.07
A37: C2 | B37: 54,601 | C37: 55,200 | D37: 4551 | E37: 50 | F37: 4,600 | G37: 109,201 | H37: 110,400 | I37: 9,101 | J37: 9,200 | K37: 5.23
A38: C2 | B38: 55,201 | C38: 55,800 | D38: 4601 | E38: 50 | F38: 4,650 | G38: 110,401 | H38: 111,600 | I38: 9,201 | J38: 9,300 | K38: 5.4
A39: C2 | B39: 55,801 | C39: 56,400 | D39: 4651 | E39: 50 | F39: 4,700 | G39: 111,601 | H39: 112,800 | I39: 9,301 | J39: 9,400 | K39: 5.54
A40: C2 | B40: 56,401 | C40: 57,000 | D40: 4701 | E40: 50 | F40: 4,750 | G40: 112,801 | H40: 114,000 | I40: 9,401 | J40: 9,500 | K40: 5.73
A41: C2 | B41: 57,001 | C41: 57,600 | D41: 4751 | E41: 50 | F41: 4,800 | G41: 114,001 | H41: 115,200 | I41: 9,501 | J41: 9,600 | K41: 5.86
A42: C2 | B42: 57,601 | C42: 58,200 | D42: 4801 | E42: 50 | F42: 4,850 | G42: 115,201 | H42: 116,400 | I42: 9,601 | J42: 9,700 | K42: 6
A43: C2 | B43: 58,201 | C43: 58,800 | D43: 4851 | E43: 50 | F43: 4,900 | G43: 116,401 | H43: 117,600 | I43: 9,701 | J43: 9,800 | K43: 6.16
A44: C2 | B44: 58,801 | C44: 59,400 | D44: 4901 | E44: 50 | F44: 4,950 | G44: 117,601 | H44: 118,800 | I44: 9,801 | J44: 9,900 | K44: 6.28
A45: C2 | B45: 59,401 | C45: 60,000 | D45: 4951 | E45: 50 | F45: 5,000 | G45: 118,801 | H45: 120,000 | I45: 9,901 | J45: 10,000 | K45: 6.47
A46: C2 | B46: 60,001 | C46: 60,600 | D46: 5001 | E46: 50 | F46: 5,050 | G46: 120,001 | H46: 121,200 | I46: 10,001 | J46: 10,100 | K46: 6.63
A47: C2 | B47: 60,601 | C47: 61,200 | D47: 5051 | E47: 50 | F47: 5,100 | G47: 121,201 | H47: 122,400 | I47: 10,101 | J47: 10,200 | K47: 6.79
A48: C2 | B48: 61,201 | C48: 61,800 | D48: 5101 | E48: 50 | F48: 5,150 | G48: 122,401 | H48: 123,600 | I48: 10,201 | J48: 10,300 | K48: 6.95
A49: C2 | B49: 61,801 | C49: 62,400 | D49: 5151 | E49: 50 | F49: 5,200 | G49: 123,601 | H49: 124,800 | I49: 10,301 | J49: 10,400 | K49: 7.09
A50: C2 | B50: 62,401 | C50: 63,000 | D50: 5201 | E50: 50 | F50: 5,250 | G50: 124,801 | H50: 126,000 | I50: 10,401 | J50: 10,500 | K50: 7.25
A51: C2 | B51: 63,001 | C51: 63,600 | D51: 5251 | E51: 50 | F51: 5,300 | G51: 126,001 | H51: 127,200 | I51: 10,501 | J51: 10,600 | K51: 7.41
A52: C2 | B52: 63,601 | C52: 64,200 | D52: 5301 | E52: 50 | F52: 5,350 | G52: 127,201 | H52: 128,400 | I52: 10,601 | J52: 10,700 | K52: 7.55
A53: C2 | B53: 64,201 | C53: 64,800 | D53: 5351 | E53: 50 | F53: 5,400 | G53: 128,401 | H53: 129,600 | I53: 10,701 | J53: 10,800 | K53: 7.7
A54: C2 | B54: 64,801 | C54: 65,400 | D54: 5401 | E54: 50 | F54: 5,450 | G54: 129,601 | H54: 130,800 | I54: 10,801 | J54: 10,900 | K54: 7.82
A55: C2 | B55: 65,401 | C55: 66,000 | D55: 5451 | E55: 50 | F55: 5,500 | G55: 130,801 | H55: 132,000 | I55: 10,901 | J55: 11,000 | K55: 7.97
A56: C2 | B56: 66,001 | C56: 66,600 | D56: 5501 | E56: 50 | F56: 5,550 | G56: 132,001 | H56: 133,200 | I56: 11,001 | J56: 11,100 | K56: 8.13
A57: C2 | B57: 66,601 | C57: 67,200 | D57: 5551 | E57: 50 | F57: 5,600 | G57: 133,201 | H57: 134,400 | I57: 11,101 | J57: 11,200 | K57: 8.25
A58: C2 | B58: 67,201 | C58: 67,800 | D58: 5601 | E58: 50 | F58: 5,650 | G58: 134,401 | H58: 135,600 | I58: 11,201 | J58: 11,300 | K58: 8.33
A59: C2 | B59: 67,801 | C59: 68,400 | D59: 5651 | E59: 50 | F59: 5,700 | G59: 135,601 | H59: 136,800 | I59: 11,301 | J59: 11,400 | K59: 8.41
A60: C2 | B60: 68,401 | C60: 69,000 | D60: 5701 | E60: 50 | F60: 5,750 | G60: 136,801 | H60: 138,000 | I60: 11,401 | J60: 11,500 | K60: 8.48
A61: C2 | B61: 69,001 | C61: 69,600 | D61: 5751 | E61: 50 | F61: 5,800 | G61: 138,001 | H61: 138,900 | I61: 11,501 | J61: 11,575 | K61: 8.56
A62: C2 | B62: 69,601 | C62: 70,200 | D62: 5801 | E62: 50 | F62: 5,850 | G62: 138,901 | H62: 139,500 | I62: 11,576 | J62: 11,625 | K62: 8.62
A63: C2 | B63: 70,201 | C63: 70,800 | D63: 5851 | E63: 50 | F63: 5,900 | G63: 139,501 | H63: 140,100 | I63: 11,626 | J63: 11,675 | K63: 8.66
A64: C2 | B64: 70,801 | C64: 71,400 | D64: 5901 | E64: 50 | F64: 5,950 | G64: 140,101 | H64: 140,700 | I64: 11,676 | J64: 11,725 | K64: 8.7
A65: C2 | B65: 71,401 | C65: 72,000 | D65: 5951 | E65: 50 | F65: 6,000 | G65: 140,701 | H65: 141,300 | I65: 11,726 | J65: 11,775 | K65: 8.75
A66: C2 | B66: =(D66-1)*12+1 -> 72,001 | C66: =F66*12 -> 72,600 | D66: 6001 | E66: 50 | F66: =D66-1+E66 -> 6,050 | G66: 141,301 | H66: 141,900 | I66: =(G66-1)/12+1 -> 11,776 | J66: =H66/12 -> 11,825 | K66: 8.81
A67: C2 | B67: 72,601 | C67: 73,200 | D67: 6051 | E67: 50 | F67: 6,100 | G67: =MIN((B67-1)*2+1,B67+69300) -> 141,901 | H67: =MIN((C67)*2,C67+69300) -> 142,500 | I67: 11,826 | J67: 11,875 | K67: 8.86
A68: C2 | B68: 73,201 | C68: 73,800 | D68: 6101 | E68: 50 | F68: 6,150 | G68: 142,501 | H68: 143,100 | I68: 11,876 | J68: 11,925 | K68: 8.9
A69: C2 | B69: 73,801 | C69: 74,400 | D69: 6151 | E69: 50 | F69: 6,200 | G69: 143,101 | H69: 143,700 | I69: 11,926 | J69: 11,975 | K69: 8.94
A70: C2 | B70: 74,401 | C70: 75,000 | D70: 6201 | E70: 50 | F70: 6,250 | G70: 143,701 | H70: 144,300 | I70: 11,976 | J70: 12,025 | K70: 9
A71: C2 | B71: 75,001 | C71: 75,600 | D71: 6251 | E71: 50 | F71: 6,300 | G71: 144,301 | H71: 144,900 | I71: 12,026 | J71: 12,075 | K71: 9.06
A72: C2 | B72: 75,601 | C72: 76,200 | D72: 6301 | E72: 50 | F72: 6,350 | G72: 144,901 | H72: 145,500 | I72: 12,076 | J72: 12,125 | K72: 9.1
A73: C2 | B73: 76,201 | C73: 76,800 | D73: 6351 | E73: 50 | F73: 6,400 | G73: 145,501 | H73: 146,100 | I73: 12,126 | J73: 12,175 | K73: 9.14
A74: C2 | B74: 76,801 | C74: 77,400 | D74: 6401 | E74: 50 | F74: 6,450 | G74: 146,101 | H74: 146,700 | I74: 12,176 | J74: 12,225 | K74: 9.18
A75: C2 | B75: 77,401 | C75: 78,000 | D75: 6451 | E75: 50 | F75: 6,500 | G75: 146,701 | H75: 147,300 | I75: 12,226 | J75: 12,275 | K75: 9.24
A76: C2 | B76: 78,001 | C76: 78,600 | D76: 6501 | E76: 50 | F76: 6,550 | G76: 147,301 | H76: 147,900 | I76: 12,276 | J76: 12,325 | K76: 9.28
A77: C2 | B77: 78,601 | C77: 79,200 | D77: 6551 | E77: 50 | F77: 6,600 | G77: 147,901 | H77: 148,500 | I77: 12,326 | J77: 12,375 | K77: 9.33
A78: C2 | B78: 79,201 | C78: 79,800 | D78: 6601 | E78: 50 | F78: 6,650 | G78: 148,501 | H78: 149,100 | I78: 12,376 | J78: 12,425 | K78: 9.37
A79: C2 | B79: 79,801 | C79: 80,400 | D79: 6651 | E79: 50 | F79: 6,700 | G79: 149,101 | H79: 149,700 | I79: 12,426 | J79: 12,475 | K79: 9.42
A80: C2 | B80: 80,401 | C80: 81,000 | D80: 6701 | E80: 50 | F80: 6,750 | G80: 149,701 | H80: 150,300 | I80: 12,476 | J80: 12,525 | K80: 9.46
A81: C2 | B81: 81,001 | C81: 81,600 | D81: 6751 | E81: 50 | F81: 6,800 | G81: 150,301 | H81: 150,900 | I81: 12,526 | J81: 12,575 | K81: 9.51
A82: C2 | B82: 81,601 | C82: 82,200 | D82: 6801 | E82: 50 | F82: 6,850 | G82: 150,901 | H82: 151,500 | I82: 12,576 | J82: 12,625 | K82: 9.56
A83: C2 | B83: 82,201 | C83: 82,800 | D83: 6851 | E83: 50 | F83: 6,900 | G83: 151,501 | H83: 152,100 | I83: 12,626 | J83: 12,675 | K83: 9.6
A84: C2 | B84: 82,801 | C84: 83,400 | D84: 6901 | E84: 50 | F84: 6,950 | G84: 152,101 | H84: 152,700 | I84: 12,676 | J84: 12,725 | K84: 9.64
A85: C2 | B85: 83,401 | C85: 84,000 | D85: 6951 | E85: 50 | F85: 7,000 | G85: 152,701 | H85: 153,300 | I85: 12,726 | J85: 12,775 | K85: 9.68
A86: C2 | B86: 84,001 | C86: 84,600 | D86: 7001 | E86: 50 | F86: 7,050 | G86: 153,301 | H86: 153,900 | I86: 12,776 | J86: 12,825 | K86: 9.73
A87: C2 | B87: 84,601 | C87: 85,200 | D87: 7051 | E87: 50 | F87: 7,100 | G87: 153,901 | H87: 154,500 | I87: 12,826 | J87: 12,875 | K87: 9.77
A88: C2 | B88: 85,201 | C88: 85,800 | D88: 7101 | E88: 50 | F88: 7,150 | G88: 154,501 | H88: 155,100 | I88: 12,876 | J88: 12,925 | K88: 9.81
A89: C2 | B89: 85,801 | C89: 86,400 | D89: 7151 | E89: 50 | F89: 7,200 | G89: 155,101 | H89: 155,700 | I89: 12,926 | J89: 12,975 | K89: 9.85
A90: C2 | B90: 86,401 | C90: 87,000 | D90: 7201 | E90: 50 | F90: 7,250 | G90: 155,701 | H90: 156,300 | I90: 12,976 | J90: 13,025 | K90: 9.89
A91: C2 | B91: 87,001 | C91: 87,600 | D91: 7251 | E91: 50 | F91: 7,300 | G91: 156,301 | H91: 156,900 | I91: 13,026 | J91: 13,075 | K91: 9.93
A92: C2 | B92: 87,601 | C92: 88,200 | D92: 7301 | E92: 50 | F92: 7,350 | G92: 156,901 | H92: 157,500 | I92: 13,076 | J92: 13,125 | K92: 9.97
A93: C2 | B93: 88,201 | C93: 88,800 | D93: 7351 | E93: 50 | F93: 7,400 | G93: 157,501 | H93: 158,100 | I93: 13,126 | J93: 13,175 | K93: 10.01
A94: C2 | B94: 88,801 | C94: 89,400 | D94: 7401 | E94: 50 | F94: 7,450 | G94: 158,101 | H94: 158,700 | I94: 13,176 | J94: 13,225 | K94: 10.04
A95: C2 | B95: 89,401 | C95: 90,000 | D95: 7451 | E95: 50 | F95: 7,500 | G95: 158,701 | H95: 159,300 | I95: 13,226 | J95: 13,275 | K95: 10.08
A96: C2 | B96: 90,001 | C96: 90,600 | D96: 7501 | E96: 50 | F96: 7,550 | G96: 159,301 | H96: 159,900 | I96: 13,276 | J96: 13,325 | K96: 10.13
A97: C2 | B97: 90,601 | C97: 91,200 | D97: 7551 | E97: 50 | F97: 7,600 | G97: 159,901 | H97: 160,500 | I97: 13,326 | J97: 13,375 | K97: 10.16
A98: C2 | B98: 91,201 | C98: 91,800 | D98: 7601 | E98: 50 | F98: 7,650 | G98: 160,501 | H98: 161,100 | I98: 13,376 | J98: 13,425 | K98: 10.19
A99: C2 | B99: 91,801 | C99: 92,400 | D99: 7651 | E99: 50 | F99: 7,700 | G99: 161,101 | H99: 161,700 | I99: 13,426 | J99: 13,475 | K99: 10.23
A100: C2 | B100: 92,401 | C100: 93,000 | D100: 7701 | E100: 50 | F100: 7,750 | G100: 161,701 | H100: 162,300 | I100: 13,476 | J100: 13,525 | K100: 10.28
A101: C2 | B101: 93,001 | C101: 93,600 | D101: 7751 | E101: 50 | F101: 7,800 | G101: 162,301 | H101: 162,900 | I101: 13,526 | J101: 13,575 | K101: 10.31
A102: C2 | B102: 93,601 | C102: 94,200 | D102: 7801 | E102: 50 | F102: 7,850 | G102: 162,901 | H102: 163,500 | I102: 13,576 | J102: 13,625 | K102: 10.35
A103: C2 | B103: 94,201 | C103: 94,800 | D103: 7851 | E103: 50 | F103: 7,900 | G103: 163,501 | H103: 164,100 | I103: 13,626 | J103: 13,675 | K103: 10.38
A104: C2 | B104: 94,801 | C104: 95,400 | D104: 7901 | E104: 50 | F104: 7,950 | G104: 164,101 | H104: 164,700 | I104: 13,676 | J104: 13,725 | K104: 10.41
A105: C2 | B105: 95,401 | C105: 96,000 | D105: 7951 | E105: 50 | F105: 8,000 | G105: 164,701 | H105: 165,300 | I105: 13,726 | J105: 13,775 | K105: 10.46
A106: C2 | B106: 96,001 | C106: 96,600 | D106: 8001 | E106: 50 | F106: 8,050 | G106: 165,301 | H106: 165,900 | I106: 13,776 | J106: 13,825 | K106: 10.49
A107: C2 | B107: 96,601 | C107: 97,200 | D107: 8051 | E107: 50 | F107: 8,100 | G107: 165,901 | H107: 166,500 | I107: 13,826 | J107: 13,875 | K107: 10.52
A108: C2 | B108: 97,201 | C108: 97,800 | D108: 8101 | E108: 50 | F108: 8,150 | G108: 166,501 | H108: 167,100 | I108: 13,876 | J108: 13,925 | K108: 10.57
A109: C2 | B109: 97,801 | C109: 98,400 | D109: 8151 | E109: 50 | F109: 8,200 | G109: 167,101 | H109: 167,700 | I109: 13,926 | J109: 13,975 | K109: 10.61
A110: C2 | B110: 98,401 | C110: 99,000 | D110: 8201 | E110: 50 | F110: 8,250 | G110: 167,701 | H110: 168,300 | I110: 13,976 | J110: 14,025 | K110: 10.66
A111: C2 | B111: 99,001 | C111: 99,600 | D111: 8251 | E111: 50 | F111: 8,300 | G111: 168,301 | H111: 168,900 | I111: 14,026 | J111: 14,075 | K111: 10.7
A112: C2 | B112: 99,601 | C112: 100,200 | D112: 8301 | E112: 50 | F112: 8,350 | G112: 168,901 | H112: 169,500 | I112: 14,076 | J112: 14,125 | K112: 10.73
A113: C2 | B113: 100,201 | C113: 100,800 | D113: 8351 | E113: 50 | F113: 8,400 | G113: 169,501 | H113: 170,100 | I113: 14,126 | J113: 14,175 | K113: 10.78
A114: C2 | B114: 100,801 | C114: 101,400 | D114: 8401 | E114: 50 | F114: 8,450 | G114: 170,101 | H114: 170,700 | I114: 14,176 | J114: 14,225 | K114: 10.82
A115: C2 | B115: 101,401 | C115: 102,000 | D115: 8451 | E115: 50 | F115: 8,500 | G115: 170,701 | H115: 171,300 | I115: 14,226 | J115: 14,275 | K115: 10.87
A116: C2 | B116: 102,001 | C116: 102,600 | D116: 8501 | E116: 50 | F116: 8,550 | G116: 171,301 | H116: 171,900 | I116: 14,276 | J116: 14,325 | K116: 10.91
A117: C2 | B117: 102,601 | C117: 103,200 | D117: 8551 | E117: 50 | F117: 8,600 | G117: 171,901 | H117: 172,500 | I117: 14,326 | J117: 14,375 | K117: 10.94
A118: C2 | B118: 103,201 | C118: 103,800 | D118: 8601 | E118: 50 | F118: 8,650 | G118: 172,501 | H118: 173,100 | I118: 14,376 | J118: 14,425 | K118: 10.99
A119: C2 | B119: 103,801 | C119: 104,400 | D119: 8651 | E119: 50 | F119: 8,700 | G119: 173,101 | H119: 173,700 | I119: 14,426 | J119: 14,475 | K119: 11.03
A120: C2 | B120: 104,401 | C120: 105,000 | D120: 8701 | E120: 50 | F120: 8,750 | G120: 173,701 | H120: 174,300 | I120: 14,476 | J120: 14,525 | K120: 11.07
A121: C2 | B121: 105,001 | C121: 105,600 | D121: 8751 | E121: 50 | F121: 8,800 | G121: 174,301 | H121: 174,900 | I121: 14,526 | J121: 14,575 | K121: 11.12
A122: C2 | B122: 105,601 | C122: 106,200 | D122: 8801 | E122: 50 | F122: 8,850 | G122: 174,901 | H122: 175,500 | I122: 14,576 | J122: 14,625 | K122: 11.15
A123: C2 | B123: 106,201 | C123: 106,800 | D123: 8851 | E123: 50 | F123: 8,900 | G123: 175,501 | H123: 176,100 | I123: 14,626 | J123: 14,675 | K123: 11.18
A124: C2 | B124: 106,801 | C124: 107,400 | D124: 8901 | E124: 50 | F124: 8,950 | G124: 176,101 | H124: 176,700 | I124: 14,676 | J124: 14,725 | K124: 11.23
A125: C2 | B125: 107,401 | C125: 108,000 | D125: 8951 | E125: 50 | F125: 9,000 | G125: 176,701 | H125: 177,300 | I125: 14,726 | J125: 14,775 | K125: 11.27
A126: C2 | B126: 108,001 | C126: 108,600 | D126: 9001 | E126: 50 | F126: 9,050 | G126: 177,301 | H126: 177,900 | I126: 14,776 | J126: 14,825 | K126: 11.3
A127: C2 | B127: 108,601 | C127: 109,200 | D127: 9051 | E127: 50 | F127: 9,100 | G127: 177,901 | H127: 178,500 | I127: 14,826 | J127: 14,875 | K127: 11.34
A128: C2 | B128: 109,201 | C128: 109,800 | D128: 9101 | E128: 50 | F128: 9,150 | G128: 178,501 | H128: 179,100 | I128: 14,876 | J128: 14,925 | K128: 11.38
A129: C2 | B129: 109,801 | C129: 110,400 | D129: 9151 | E129: 50 | F129: 9,200 | G129: 179,101 | H129: 179,700 | I129: 14,926 | J129: 14,975 | K129: 11.42
A130: C2 | B130: =(D130-1)*12+1 -> 110,401 | C130: =F130*12 -> 111,000 | D130: 9201 | E130: 50 | F130: =D130-1+E130 -> 9,250 | G130: 179,701 | H130: 180,300 | I130: =(G130-1)/12+1 -> 14,976 | J130: =H130/12 -> 15,025 | K130: 11.45
A131: C2 | B131: 111,001 | C131: 111,600 | D131: 9251 | E131: 50 | F131: 9,300 | G131: =MIN((B131-1)*2+1,B131+69300) -> 180,301 | H131: =MIN((C131)*2,C131+69300) -> 180,900 | I131: 15,026 | J131: 15,075 | K131: 11.5
A132: C2 | B132: 111,601 | C132: 112,200 | D132: 9301 | E132: 50 | F132: 9,350 | G132: 180,901 | H132: 181,500 | I132: 15,076 | J132: 15,125 | K132: 11.55
A133: C2 | B133: 112,201 | C133: 112,800 | D133: 9351 | E133: 50 | F133: 9,400 | G133: 181,501 | H133: 182,100 | I133: 15,126 | J133: 15,175 | K133: 11.58
A134: C2 | B134: 112,801 | C134: 113,400 | D134: 9401 | E134: 50 | F134: 9,450 | G134: 182,101 | H134: 182,700 | I134: 15,176 | J134: 15,225 | K134: 11.61
A135: C2 | B135: 113,401 | C135: 114,000 | D135: 9451 | E135: 50 | F135: 9,500 | G135: 182,701 | H135: 183,300 | I135: 15,226 | J135: 15,275 | K135: 11.67
A136: C2 | B136: 114,001 | C136: 114,600 | D136: 9501 | E136: 50 | F136: 9,550 | G136: 183,301 | H136: 183,900 | I136: 15,276 | J136: 15,325 | K136: 11.71
A137: C2 | B137: 114,601 | C137: 115,200 | D137: 9551 | E137: 50 | F137: 9,600 | G137: 183,901 | H137: 184,500 | I137: 15,326 | J137: 15,375 | K137: 11.75
A138: C2 | B138: 115,201 | C138: 115,800 | D138: 9601 | E138: 50 | F138: 9,650 | G138: 184,501 | H138: 185,100 | I138: 15,376 | J138: 15,425 | K138: 11.79
A139: C2 | B139: 115,801 | C139: 116,400 | D139: 9651 | E139: 50 | F139: 9,700 | G139: 185,101 | H139: 185,700 | I139: 15,426 | J139: 15,475 | K139: 11.83
A140: C2 | B140: 116,401 | C140: 117,000 | D140: 9701 | E140: 50 | F140: 9,750 | G140: 185,701 | H140: 186,300 | I140: 15,476 | J140: 15,525 | K140: 11.86
A141: C2 | B141: 117,001 | C141: 117,600 | D141: 9751 | E141: 50 | F141: 9,800 | G141: 186,301 | H141: 186,900 | I141: 15,526 | J141: 15,575 | K141: 11.89
A142: C2 | B142: 117,601 | C142: 118,200 | D142: 9801 | E142: 50 | F142: 9,850 | G142: 186,901 | H142: 187,500 | I142: 15,576 | J142: 15,625 | K142: 11.93
A143: C2 | B143: 118,201 | C143: 118,800 | D143: 9851 | E143: 50 | F143: 9,900 | G143: 187,501 | H143: 188,100 | I143: 15,626 | J143: 15,675 | K143: 12
A144: C2 | B144: 118,801 | C144: 119,400 | D144: 9901 | E144: 50 | F144: 9,950 | G144: 188,101 | H144: 188,700 | I144: 15,676 | J144: 15,725 | K144: 12.02
A145: C2 | B145: 119,401 | C145: 120,000 | D145: 9951 | E145: 50 | F145: 10,000 | G145: 188,701 | H145: 189,300 | I145: 15,726 | J145: 15,775 | K145: 12.06
A146: C2 | B146: 120,001 | C146: 120,600 | D146: 10001 | E146: 50 | F146: 10,050 | G146: 189,301 | H146: 189,900 | I146: 15,776 | J146: 15,825 | K146: 12.1
A147: C2 | B147: 120,601 | C147: 121,200 | D147: 10051 | E147: 50 | F147: 10,100 | G147: 189,901 | H147: 190,500 | I147: 15,826 | J147: 15,875 | K147: 12.13
A148: C2 | B148: 121,201 | C148: 121,800 | D148: 10101 | E148: 50 | F148: 10,150 | G148: 190,501 | H148: 191,100 | I148: 15,876 | J148: 15,925 | K148: 12.17
A149: C2 | B149: 121,801 | C149: 122,400 | D149: 10151 | E149: 50 | F149: 10,200 | G149: 191,101 | H149: 191,700 | I149: 15,926 | J149: 15,975 | K149: 12.21
A150: C2 | B150: 122,401 | C150: 123,000 | D150: 10201 | E150: 50 | F150: 10,250 | G150: 191,701 | H150: 192,300 | I150: 15,976 | J150: 16,025 | K150: 12.23
A151: C2 | B151: 123,001 | C151: 123,600 | D151: 10251 | E151: 50 | F151: 10,300 | G151: 192,301 | H151: 192,900 | I151: 16,026 | J151: 16,075 | K151: 12.27
A152: C2 | B152: 123,601 | C152: 124,200 | D152: 10301 | E152: 50 | F152: 10,350 | G152: 192,901 | H152: 193,500 | I152: 16,076 | J152: 16,125 | K152: 12.32
A153: C2 | B153: 124,201 | C153: 124,800 | D153: 10351 | E153: 50 | F153: 10,400 | G153: 193,501 | H153: 194,100 | I153: 16,126 | J153: 16,175 | K153: 12.35
A154: C2 | B154: 124,801 | C154: 125,400 | D154: 10401 | E154: 50 | F154: 10,450 | G154: 194,101 | H154: 194,700 | I154: 16,176 | J154: 16,225 | K154: 12.38
A155: C2 | B155: 125,401 | C155: 126,000 | D155: 10451 | E155: 50 | F155: 10,500 | G155: 194,701 | H155: 195,300 | I155: 16,226 | J155: 16,275 | K155: 12.43
A156: C2 | B156: 126,001 | C156: 126,600 | D156: 10501 | E156: 50 | F156: 10,550 | G156: 195,301 | H156: 195,900 | I156: 16,276 | J156: 16,325 | K156: 12.46
A157: C2 | B157: 126,601 | C157: 127,200 | D157: 10551 | E157: 50 | F157: 10,600 | G157: 195,901 | H157: 196,500 | I157: 16,326 | J157: 16,375 | K157: 12.49
A158: C2 | B158: 127,201 | C158: 127,800 | D158: 10601 | E158: 50 | F158: 10,650 | G158: 196,501 | H158: 197,100 | I158: 16,376 | J158: 16,425 | K158: 12.52
A159: C2 | B159: 127,801 | C159: 128,400 | D159: 10651 | E159: 50 | F159: 10,700 | G159: 197,101 | H159: 197,700 | I159: 16,426 | J159: 16,475 | K159: 12.55
A160: C2 | B160: 128,401 | C160: 129,000 | D160: 10701 | E160: 50 | F160: 10,750 | G160: 197,701 | H160: 198,300 | I160: 16,476 | J160: 16,525 | K160: 12.61
A161: C2 | B161: 129,001 | C161: 129,600 | D161: 10751 | E161: 50 | F161: 10,800 | G161: 198,301 | H161: 198,900 | I161: 16,526 | J161: 16,575 | K161: 12.64
A162: C2 | B162: 129,601 | C162: 130,200 | D162: 10801 | E162: 50 | F162: 10,850 | G162: 198,901 | H162: 199,500 | I162: 16,576 | J162: 16,625 | K162: 12.68
A163: C2 | B163: 130,201 | C163: 130,800 | D163: 10851 | E163: 50 | F163: 10,900 | G163: 199,501 | H163: 200,100 | I163: 16,626 | J163: 16,675 | K163: 12.71
A164: C2 | B164: 130,801 | C164: 131,400 | D164: 10901 | E164: 50 | F164: 10,950 | G164: 200,101 | H164: 200,700 | I164: 16,676 | J164: 16,725 | K164: 12.75
A165: C2 | B165: 131,401 | C165: 132,000 | D165: 10951 | E165: 50 | F165: 11,000 | G165: 200,701 | H165: 201,300 | I165: 16,726 | J165: 16,775 | K165: 12.79
A166: C2 | B166: 132,001 | C166: 132,600 | D166: 11001 | E166: 50 | F166: 11,050 | G166: 201,301 | H166: 201,900 | I166: 16,776 | J166: 16,825 | K166: 12.82
A167: C2 | B167: 132,601 | C167: 133,200 | D167: 11051 | E167: 50 | F167: 11,100 | G167: 201,901 | H167: 202,500 | I167: 16,826 | J167: 16,875 | K167: 12.85
A168: C2 | B168: 133,201 | C168: 133,800 | D168: 11101 | E168: 50 | F168: 11,150 | G168: 202,501 | H168: 203,100 | I168: 16,876 | J168: 16,925 | K168: 12.89
A169: C2 | B169: 133,801 | C169: 134,400 | D169: 11151 | E169: 50 | F169: 11,200 | G169: 203,101 | H169: 203,700 | I169: 16,926 | J169: 16,975 | K169: 12.92
A170: C2 | B170: 134,401 | C170: 135,000 | D170: 11201 | E170: 50 | F170: 11,250 | G170: 203,701 | H170: 204,300 | I170: 16,976 | J170: 17,025 | K170: 12.97
A171: C2 | B171: 135,001 | C171: 135,600 | D171: 11251 | E171: 50 | F171: 11,300 | G171: 204,301 | H171: 204,900 | I171: 17,026 | J171: 17,075 | K171: 13
A172: C2 | B172: 135,601 | C172: 136,200 | D172: 11301 | E172: 50 | F172: 11,350 | G172: 204,901 | H172: 205,500 | I172: 17,076 | J172: 17,125 | K172: 13.04
A173: C2 | B173: 136,201 | C173: 136,800 | D173: 11351 | E173: 50 | F173: 11,400 | G173: 205,501 | H173: 206,100 | I173: 17,126 | J173: 17,175 | K173: 13.08
A174: C2 | B174: 136,801 | C174: 137,400 | D174: 11401 | E174: 50 | F174: 11,450 | G174: 206,101 | H174: 206,700 | I174: 17,176 | J174: 17,225 | K174: 13.12
A175: C2 | B175: 137,401 | C175: 138,000 | D175: 11451 | E175: 50 | F175: 11,500 | G175: 206,701 | H175: 207,300 | I175: 17,226 | J175: 17,275 | K175: 13.15
A176: C2 | B176: 138,001 | C176: 138,600 | D176: 11501 | E176: 50 | F176: 11,550 | G176: 207,301 | H176: 207,900 | I176: 17,276 | J176: 17,325 | K176: 13.2
A177: C2 | B177: 138,601 | C177: 139,200 | D177: 11551 | E177: 50 | F177: 11,600 | G177: 207,901 | H177: 208,500 | I177: 17,326 | J177: 17,375 | K177: 13.23
A178: C2 | B178: 139,201 | C178: 139,800 | D178: 11601 | E178: 50 | F178: 11,650 | G178: 208,501 | H178: 209,100 | I178: 17,376 | J178: 17,425 | K178: 13.26
A179: C2 | B179: 139,801 | C179: 140,400 | D179: 11651 | E179: 50 | F179: 11,700 | G179: 209,101 | H179: 209,700 | I179: 17,426 | J179: 17,475 | K179: 13.29
A180: C2 | B180: 140,401 | C180: 141,000 | D180: 11701 | E180: 50 | F180: 11,750 | G180: 209,701 | H180: 210,300 | I180: 17,476 | J180: 17,525 | K180: 13.32
A181: C2 | B181: 141,001 | C181: 141,600 | D181: 11751 | E181: 50 | F181: 11,800 | G181: 210,301 | H181: 210,900 | I181: 17,526 | J181: 17,575 | K181: 13.38
A182: C2 | B182: 141,601 | C182: 142,200 | D182: 11801 | E182: 50 | F182: 11,850 | G182: 210,901 | H182: 211,500 | I182: 17,576 | J182: 17,625 | K182: 13.42
A183: C2 | B183: 142,201 | C183: 142,800 | D183: 11851 | E183: 50 | F183: 11,900 | G183: 211,501 | H183: 212,100 | I183: 17,626 | J183: 17,675 | K183: 13.45
A184: C2 | B184: 142,801 | C184: 143,400 | D184: 11901 | E184: 50 | F184: 11,950 | G184: 212,101 | H184: 212,700 | I184: 17,676 | J184: 17,725 | K184: 13.49
A185: C2 | B185: 143,401 | C185: 144,000 | D185: 11951 | E185: 50 | F185: 12,000 | G185: 212,701 | H185: 213,300 | I185: 17,726 | J185: 17,775 | K185: 13.51
A186: C2 | B186: 144,001 | C186: 144,600 | D186: 12001 | E186: 50 | F186: 12,050 | G186: 213,301 | H186: 213,900 | I186: 17,776 | J186: 17,825 | K186: 13.56
A187: C2 | B187: 144,601 | C187: 145,200 | D187: 12051 | E187: 50 | F187: 12,100 | G187: 213,901 | H187: 214,500 | I187: 17,826 | J187: 17,875 | K187: 13.6
A188: C2 | B188: 145,201 | C188: 145,800 | D188: 12101 | E188: 50 | F188: 12,150 | G188: 214,501 | H188: 215,100 | I188: 17,876 | J188: 17,925 | K188: 13.63
A189: C2 | B189: 145,801 | C189: 146,400 | D189: 12151 | E189: 50 | F189: 12,200 | G189: 215,101 | H189: 215,700 | I189: 17,926 | J189: 17,975 | K189: 13.67
A190: C2 | B190: 146,401 | C190: 147,000 | D190: 12201 | E190: 50 | F190: 12,250 | G190: 215,701 | H190: 216,300 | I190: 17,976 | J190: 18,025 | K190: 13.7
A191: C2 | B191: 147,001 | C191: 147,600 | D191: 12251 | E191: 50 | F191: 12,300 | G191: 216,301 | H191: 216,900 | I191: 18,026 | J191: 18,075 | K191: 13.74
A192: C2 | B192: 147,601 | C192: 148,200 | D192: 12301 | E192: 50 | F192: 12,350 | G192: 216,901 | H192: 217,500 | I192: 18,076 | J192: 18,125 | K192: 13.77
A193: C2 | B193: 148,201 | C193: 148,800 | D193: 12351 | E193: 50 | F193: 12,400 | G193: 217,501 | H193: 218,100 | I193: 18,126 | J193: 18,175 | K193: 13.82
A194: C2 | B194: =(D194-1)*12+1 -> 148,801 | C194: =F194*12 -> 149,400 | D194: 12401 | E194: 50 | F194: =D194-1+E194 -> 12,450 | G194: 218,101 | H194: 218,700 | I194: =(G194-1)/12+1 -> 18,176 | J194: =H194/12 -> 18,225 | K194: 13.85
A195: C2 | B195: 149,401 | C195: 150,000 | D195: 12451 | E195: 50 | F195: 12,500 | G195: =MIN((B195-1)*2+1,B195+69300) -> 218,701 | H195: =MIN((C195)*2,C195+69300) -> 219,300 | I195: 18,226 | J195: 18,275 | K195: 13.89
A196: C2 | B196: 150,001 | C196: 150,600 | D196: 12501 | E196: 50 | F196: 12,550 | G196: 219,301 | H196: 219,900 | I196: 18,276 | J196: 18,325 | K196: 13.93
A197: C2 | B197: 150,601 | C197: 151,200 | D197: 12551 | E197: 50 | F197: 12,600 | G197: 219,901 | H197: 220,500 | I197: 18,326 | J197: 18,375 | K197: 13.98
A198: C2 | B198: 151,201 | C198: 151,800 | D198: 12601 | E198: 50 | F198: 12,650 | G198: 220,501 | H198: 221,100 | I198: 18,376 | J198: 18,425 | K198: 14.02
A199: C2 | B199: 151,801 | C199: 152,400 | D199: 12651 | E199: 50 | F199: 12,700 | G199: 221,101 | H199: 221,700 | I199: 18,426 | J199: 18,475 | K199: 14.07
A200: C2 | B200: 152,401 | C200: 153,000 | D200: 12701 | E200: 50 | F200: 12,750 | G200: 221,701 | H200: 222,300 | I200: 18,476 | J200: 18,525 | K200: 14.1
... 306 more rows

Sheet C3 (hidden)
A1: Barème | B1: Rev annuel début Barème C | C1: Rev annuel Fin Barème C | D1: Rev mensuel Début Barème C | E1: Tranche Barème C | F1: Rev mensuel Fin Barème C | G1: Rev annuel Début Barème C Rectification (Cumul couple) | H1: Rev annuel Fin Barème C Rectification (Cumul couple) | I1: Rev mensuel Début Barème C Rectification (Cumul couple) | J1: Rev mensuel Fin Barème C Rectification (Cumul couple)
A2: C3 | B2: =(D2-1)*12+1 -> 1 | C2: =F2*12 -> 37,200 | D2: 1 | E2: 3100 | F2: =D2-1+E2 -> 3,100 | G2: =MIN((B2-1)*2+1,B2+69300) -> 1 | H2: =MIN((C2)*2,C2+69300) -> 74,400 | I2: =(G2-1)/12+1 -> 1 | J2: =H2/12 -> 6,200 | K2: 0
A3: C3 | B3: 37,201 | C3: 37,800 | D3: 3101 | E3: 50 | F3: 3,150 | G3: =MIN((B3-1)*2+1,B3+69300) -> 74,401 | H3: =MIN((C3)*2,C3+69300) -> 75,600 | I3: 6,201 | J3: 6,300 | K3: 0.06
A4: C3 | B4: 37,801 | C4: 38,400 | D4: 3151 | E4: 50 | F4: 3,200 | G4: 75,601 | H4: 76,800 | I4: 6,301 | J4: 6,400 | K4: 0.1
A5: C3 | B5: 38,401 | C5: 39,000 | D5: 3201 | E5: 50 | F5: 3,250 | G5: 76,801 | H5: 78,000 | I5: 6,401 | J5: 6,500 | K5: 0.15
A6: C3 | B6: 39,001 | C6: 39,600 | D6: 3251 | E6: 50 | F6: 3,300 | G6: 78,001 | H6: 79,200 | I6: 6,501 | J6: 6,600 | K6: 0.22
A7: C3 | B7: 39,601 | C7: 40,200 | D7: 3301 | E7: 50 | F7: 3,350 | G7: 79,201 | H7: 80,400 | I7: 6,601 | J7: 6,700 | K7: 0.31
A8: C3 | B8: 40,201 | C8: 40,800 | D8: 3351 | E8: 50 | F8: 3,400 | G8: 80,401 | H8: 81,600 | I8: 6,701 | J8: 6,800 | K8: 0.39
A9: C3 | B9: 40,801 | C9: 41,400 | D9: 3401 | E9: 50 | F9: 3,450 | G9: 81,601 | H9: 82,800 | I9: 6,801 | J9: 6,900 | K9: 0.46
A10: C3 | B10: 41,401 | C10: 42,000 | D10: 3451 | E10: 50 | F10: 3,500 | G10: 82,801 | H10: 84,000 | I10: 6,901 | J10: 7,000 | K10: 0.59
A11: C3 | B11: 42,001 | C11: 42,600 | D11: 3501 | E11: 50 | F11: 3,550 | G11: 84,001 | H11: 85,200 | I11: 7,001 | J11: 7,100 | K11: 0.69
A12: C3 | B12: 42,601 | C12: 43,200 | D12: 3551 | E12: 50 | F12: 3,600 | G12: 85,201 | H12: 86,400 | I12: 7,101 | J12: 7,200 | K12: 0.81
A13: C3 | B13: 43,201 | C13: 43,800 | D13: 3601 | E13: 50 | F13: 3,650 | G13: 86,401 | H13: 87,600 | I13: 7,201 | J13: 7,300 | K13: 0.94
A14: C3 | B14: 43,801 | C14: 44,400 | D14: 3651 | E14: 50 | F14: 3,700 | G14: 87,601 | H14: 88,800 | I14: 7,301 | J14: 7,400 | K14: 1.06
A15: C3 | B15: 44,401 | C15: 45,000 | D15: 3701 | E15: 50 | F15: 3,750 | G15: 88,801 | H15: 90,000 | I15: 7,401 | J15: 7,500 | K15: 1.23
A16: C3 | B16: 45,001 | C16: 45,600 | D16: 3751 | E16: 50 | F16: 3,800 | G16: 90,001 | H16: 91,200 | I16: 7,501 | J16: 7,600 | K16: 1.35
A17: C3 | B17: 45,601 | C17: 46,200 | D17: 3801 | E17: 50 | F17: 3,850 | G17: 91,201 | H17: 92,400 | I17: 7,601 | J17: 7,700 | K17: 1.49
A18: C3 | B18: 46,201 | C18: 46,800 | D18: 3851 | E18: 50 | F18: 3,900 | G18: 92,401 | H18: 93,600 | I18: 7,701 | J18: 7,800 | K18: 1.61
A19: C3 | B19: 46,801 | C19: 47,400 | D19: 3901 | E19: 50 | F19: 3,950 | G19: 93,601 | H19: 94,800 | I19: 7,801 | J19: 7,900 | K19: 1.73
A20: C3 | B20: 47,401 | C20: 48,000 | D20: 3951 | E20: 50 | F20: 4,000 | G20: 94,801 | H20: 96,000 | I20: 7,901 | J20: 8,000 | K20: 1.89
A21: C3 | B21: 48,001 | C21: 48,600 | D21: 4001 | E21: 50 | F21: 4,050 | G21: 96,001 | H21: 97,200 | I21: 8,001 | J21: 8,100 | K21: 2.04
A22: C3 | B22: 48,601 | C22: 49,200 | D22: 4051 | E22: 50 | F22: 4,100 | G22: 97,201 | H22: 98,400 | I22: 8,101 | J22: 8,200 | K22: 2.19
A23: C3 | B23: 49,201 | C23: 49,800 | D23: 4101 | E23: 50 | F23: 4,150 | G23: 98,401 | H23: 99,600 | I23: 8,201 | J23: 8,300 | K23: 2.34
A24: C3 | B24: 49,801 | C24: 50,400 | D24: 4151 | E24: 50 | F24: 4,200 | G24: 99,601 | H24: 100,800 | I24: 8,301 | J24: 8,400 | K24: 2.48
A25: C3 | B25: 50,401 | C25: 51,000 | D25: 4201 | E25: 50 | F25: 4,250 | G25: 100,801 | H25: 102,000 | I25: 8,401 | J25: 8,500 | K25: 2.64
A26: C3 | B26: 51,001 | C26: 51,600 | D26: 4251 | E26: 50 | F26: 4,300 | G26: 102,001 | H26: 103,200 | I26: 8,501 | J26: 8,600 | K26: 2.75
A27: C3 | B27: 51,601 | C27: 52,200 | D27: 4301 | E27: 50 | F27: 4,350 | G27: 103,201 | H27: 104,400 | I27: 8,601 | J27: 8,700 | K27: 2.89
A28: C3 | B28: 52,201 | C28: 52,800 | D28: 4351 | E28: 50 | F28: 4,400 | G28: 104,401 | H28: 105,600 | I28: 8,701 | J28: 8,800 | K28: 3.07
A29: C3 | B29: 52,801 | C29: 53,400 | D29: 4401 | E29: 50 | F29: 4,450 | G29: 105,601 | H29: 106,800 | I29: 8,801 | J29: 8,900 | K29: 3.2
A30: C3 | B30: 53,401 | C30: 54,000 | D30: 4451 | E30: 50 | F30: 4,500 | G30: 106,801 | H30: 108,000 | I30: 8,901 | J30: 9,000 | K30: 3.38
A31: C3 | B31: 54,001 | C31: 54,600 | D31: 4501 | E31: 50 | F31: 4,550 | G31: 108,001 | H31: 109,200 | I31: 9,001 | J31: 9,100 | K31: 3.53
A32: C3 | B32: 54,601 | C32: 55,200 | D32: 4551 | E32: 50 | F32: 4,600 | G32: 109,201 | H32: 110,400 | I32: 9,101 | J32: 9,200 | K32: 3.68
A33: C3 | B33: 55,201 | C33: 55,800 | D33: 4601 | E33: 50 | F33: 4,650 | G33: 110,401 | H33: 111,600 | I33: 9,201 | J33: 9,300 | K33: 3.82
A34: C3 | B34: 55,801 | C34: 56,400 | D34: 4651 | E34: 50 | F34: 4,700 | G34: 111,601 | H34: 112,800 | I34: 9,301 | J34: 9,400 | K34: 3.96
A35: C3 | B35: 56,401 | C35: 57,000 | D35: 4701 | E35: 50 | F35: 4,750 | G35: 112,801 | H35: 114,000 | I35: 9,401 | J35: 9,500 | K35: 4.16
A36: C3 | B36: 57,001 | C36: 57,600 | D36: 4751 | E36: 50 | F36: 4,800 | G36: 114,001 | H36: 115,200 | I36: 9,501 | J36: 9,600 | K36: 4.32
A37: C3 | B37: 57,601 | C37: 58,200 | D37: 4801 | E37: 50 | F37: 4,850 | G37: 115,201 | H37: 116,400 | I37: 9,601 | J37: 9,700 | K37: 4.47
A38: C3 | B38: 58,201 | C38: 58,800 | D38: 4851 | E38: 50 | F38: 4,900 | G38: 116,401 | H38: 117,600 | I38: 9,701 | J38: 9,800 | K38: 4.64
A39: C3 | B39: 58,801 | C39: 59,400 | D39: 4901 | E39: 50 | F39: 4,950 | G39: 117,601 | H39: 118,800 | I39: 9,801 | J39: 9,900 | K39: 4.79
A40: C3 | B40: 59,401 | C40: 60,000 | D40: 4951 | E40: 50 | F40: 5,000 | G40: 118,801 | H40: 120,000 | I40: 9,901 | J40: 10,000 | K40: 4.97
A41: C3 | B41: 60,001 | C41: 60,600 | D41: 5001 | E41: 50 | F41: 5,050 | G41: 120,001 | H41: 121,200 | I41: 10,001 | J41: 10,100 | K41: 5.09
A42: C3 | B42: 60,601 | C42: 61,200 | D42: 5051 | E42: 50 | F42: 5,100 | G42: 121,201 | H42: 122,400 | I42: 10,101 | J42: 10,200 | K42: 5.25
A43: C3 | B43: 61,201 | C43: 61,800 | D43: 5101 | E43: 50 | F43: 5,150 | G43: 122,401 | H43: 123,600 | I43: 10,201 | J43: 10,300 | K43: 5.4
A44: C3 | B44: 61,801 | C44: 62,400 | D44: 5151 | E44: 50 | F44: 5,200 | G44: 123,601 | H44: 124,800 | I44: 10,301 | J44: 10,400 | K44: 5.52
A45: C3 | B45: 62,401 | C45: 63,000 | D45: 5201 | E45: 50 | F45: 5,250 | G45: 124,801 | H45: 126,000 | I45: 10,401 | J45: 10,500 | K45: 5.67
A46: C3 | B46: 63,001 | C46: 63,600 | D46: 5251 | E46: 50 | F46: 5,300 | G46: 126,001 | H46: 127,200 | I46: 10,501 | J46: 10,600 | K46: 5.81
A47: C3 | B47: 63,601 | C47: 64,200 | D47: 5301 | E47: 50 | F47: 5,350 | G47: 127,201 | H47: 128,400 | I47: 10,601 | J47: 10,700 | K47: 5.94
A48: C3 | B48: 64,201 | C48: 64,800 | D48: 5351 | E48: 50 | F48: 5,400 | G48: 128,401 | H48: 129,600 | I48: 10,701 | J48: 10,800 | K48: 6.08
A49: C3 | B49: 64,801 | C49: 65,400 | D49: 5401 | E49: 50 | F49: 5,450 | G49: 129,601 | H49: 130,800 | I49: 10,801 | J49: 10,900 | K49: 6.2
A50: C3 | B50: 65,401 | C50: 66,000 | D50: 5451 | E50: 50 | F50: 5,500 | G50: 130,801 | H50: 132,000 | I50: 10,901 | J50: 11,000 | K50: 6.32
A51: C3 | B51: 66,001 | C51: 66,600 | D51: 5501 | E51: 50 | F51: 5,550 | G51: 132,001 | H51: 133,200 | I51: 11,001 | J51: 11,100 | K51: 6.46
A52: C3 | B52: 66,601 | C52: 67,200 | D52: 5551 | E52: 50 | F52: 5,600 | G52: 133,201 | H52: 134,400 | I52: 11,101 | J52: 11,200 | K52: 6.58
A53: C3 | B53: 67,201 | C53: 67,800 | D53: 5601 | E53: 50 | F53: 5,650 | G53: 134,401 | H53: 135,600 | I53: 11,201 | J53: 11,300 | K53: 6.72
A54: C3 | B54: 67,801 | C54: 68,400 | D54: 5651 | E54: 50 | F54: 5,700 | G54: 135,601 | H54: 136,800 | I54: 11,301 | J54: 11,400 | K54: 6.86
A55: C3 | B55: 68,401 | C55: 69,000 | D55: 5701 | E55: 50 | F55: 5,750 | G55: 136,801 | H55: 138,000 | I55: 11,401 | J55: 11,500 | K55: 6.99
A56: C3 | B56: 69,001 | C56: 69,600 | D56: 5751 | E56: 50 | F56: 5,800 | G56: 138,001 | H56: 138,900 | I56: 11,501 | J56: 11,575 | K56: 7.12
A57: C3 | B57: 69,601 | C57: 70,200 | D57: 5801 | E57: 50 | F57: 5,850 | G57: 138,901 | H57: 139,500 | I57: 11,576 | J57: 11,625 | K57: 7.19
A58: C3 | B58: 70,201 | C58: 70,800 | D58: 5851 | E58: 50 | F58: 5,900 | G58: 139,501 | H58: 140,100 | I58: 11,626 | J58: 11,675 | K58: 7.27
A59: C3 | B59: 70,801 | C59: 71,400 | D59: 5901 | E59: 50 | F59: 5,950 | G59: 140,101 | H59: 140,700 | I59: 11,676 | J59: 11,725 | K59: 7.33
A60: C3 | B60: 71,401 | C60: 72,000 | D60: 5951 | E60: 50 | F60: 6,000 | G60: 140,701 | H60: 141,300 | I60: 11,726 | J60: 11,775 | K60: 7.41
A61: C3 | B61: 72,001 | C61: 72,600 | D61: 6001 | E61: 50 | F61: 6,050 | G61: 141,301 | H61: 141,900 | I61: 11,776 | J61: 11,825 | K61: 7.48
A62: C3 | B62: 72,601 | C62: 73,200 | D62: 6051 | E62: 50 | F62: 6,100 | G62: 141,901 | H62: 142,500 | I62: 11,826 | J62: 11,875 | K62: 7.56
A63: C3 | B63: 73,201 | C63: 73,800 | D63: 6101 | E63: 50 | F63: 6,150 | G63: 142,501 | H63: 143,100 | I63: 11,876 | J63: 11,925 | K63: 7.62
A64: C3 | B64: 73,801 | C64: 74,400 | D64: 6151 | E64: 50 | F64: 6,200 | G64: 143,101 | H64: 143,700 | I64: 11,926 | J64: 11,975 | K64: 7.7
A65: C3 | B65: 74,401 | C65: 75,000 | D65: 6201 | E65: 50 | F65: 6,250 | G65: 143,701 | H65: 144,300 | I65: 11,976 | J65: 12,025 | K65: 7.77
A66: C3 | B66: =(D66-1)*12+1 -> 75,001 | C66: =F66*12 -> 75,600 | D66: 6251 | E66: 50 | F66: =D66-1+E66 -> 6,300 | G66: 144,301 | H66: 144,900 | I66: =(G66-1)/12+1 -> 12,026 | J66: =H66/12 -> 12,075 | K66: 7.85
A67: C3 | B67: 75,601 | C67: 76,200 | D67: 6301 | E67: 50 | F67: 6,350 | G67: =MIN((B67-1)*2+1,B67+69300) -> 144,901 | H67: =MIN((C67)*2,C67+69300) -> 145,500 | I67: 12,076 | J67: 12,125 | K67: 7.91
A68: C3 | B68: 76,201 | C68: 76,800 | D68: 6351 | E68: 50 | F68: 6,400 | G68: 145,501 | H68: 146,100 | I68: 12,126 | J68: 12,175 | K68: 7.98
A69: C3 | B69: 76,801 | C69: 77,400 | D69: 6401 | E69: 50 | F69: 6,450 | G69: 146,101 | H69: 146,700 | I69: 12,176 | J69: 12,225 | K69: 8.04
A70: C3 | B70: 77,401 | C70: 78,000 | D70: 6451 | E70: 50 | F70: 6,500 | G70: 146,701 | H70: 147,300 | I70: 12,226 | J70: 12,275 | K70: 8.11
A71: C3 | B71: 78,001 | C71: 78,600 | D71: 6501 | E71: 50 | F71: 6,550 | G71: 147,301 | H71: 147,900 | I71: 12,276 | J71: 12,325 | K71: 8.16
A72: C3 | B72: 78,601 | C72: 79,200 | D72: 6551 | E72: 50 | F72: 6,600 | G72: 147,901 | H72: 148,500 | I72: 12,326 | J72: 12,375 | K72: 8.2
A73: C3 | B73: 79,201 | C73: 79,800 | D73: 6601 | E73: 50 | F73: 6,650 | G73: 148,501 | H73: 149,100 | I73: 12,376 | J73: 12,425 | K73: 8.25
A74: C3 | B74: 79,801 | C74: 80,400 | D74: 6651 | E74: 50 | F74: 6,700 | G74: 149,101 | H74: 149,700 | I74: 12,426 | J74: 12,475 | K74: 8.3
A75: C3 | B75: 80,401 | C75: 81,000 | D75: 6701 | E75: 50 | F75: 6,750 | G75: 149,701 | H75: 150,300 | I75: 12,476 | J75: 12,525 | K75: 8.35
A76: C3 | B76: 81,001 | C76: 81,600 | D76: 6751 | E76: 50 | F76: 6,800 | G76: 150,301 | H76: 150,900 | I76: 12,526 | J76: 12,575 | K76: 8.4
A77: C3 | B77: 81,601 | C77: 82,200 | D77: 6801 | E77: 50 | F77: 6,850 | G77: 150,901 | H77: 151,500 | I77: 12,576 | J77: 12,625 | K77: 8.44
A78: C3 | B78: 82,201 | C78: 82,800 | D78: 6851 | E78: 50 | F78: 6,900 | G78: 151,501 | H78: 152,100 | I78: 12,626 | J78: 12,675 | K78: 8.49
A79: C3 | B79: 82,801 | C79: 83,400 | D79: 6901 | E79: 50 | F79: 6,950 | G79: 152,101 | H79: 152,700 | I79: 12,676 | J79: 12,725 | K79: 8.53
A80: C3 | B80: 83,401 | C80: 84,000 | D80: 6951 | E80: 50 | F80: 7,000 | G80: 152,701 | H80: 153,300 | I80: 12,726 | J80: 12,775 | K80: 8.57
A81: C3 | B81: 84,001 | C81: 84,600 | D81: 7001 | E81: 50 | F81: 7,050 | G81: 153,301 | H81: 153,900 | I81: 12,776 | J81: 12,825 | K81: 8.62
A82: C3 | B82: 84,601 | C82: 85,200 | D82: 7051 | E82: 50 | F82: 7,100 | G82: 153,901 | H82: 154,500 | I82: 12,826 | J82: 12,875 | K82: 8.67
A83: C3 | B83: 85,201 | C83: 85,800 | D83: 7101 | E83: 50 | F83: 7,150 | G83: 154,501 | H83: 155,100 | I83: 12,876 | J83: 12,925 | K83: 8.7
A84: C3 | B84: 85,801 | C84: 86,400 | D84: 7151 | E84: 50 | F84: 7,200 | G84: 155,101 | H84: 155,700 | I84: 12,926 | J84: 12,975 | K84: 8.75
A85: C3 | B85: 86,401 | C85: 87,000 | D85: 7201 | E85: 50 | F85: 7,250 | G85: 155,701 | H85: 156,300 | I85: 12,976 | J85: 13,025 | K85: 8.78
A86: C3 | B86: 87,001 | C86: 87,600 | D86: 7251 | E86: 50 | F86: 7,300 | G86: 156,301 | H86: 156,900 | I86: 13,026 | J86: 13,075 | K86: 8.84
A87: C3 | B87: 87,601 | C87: 88,200 | D87: 7301 | E87: 50 | F87: 7,350 | G87: 156,901 | H87: 157,500 | I87: 13,076 | J87: 13,125 | K87: 8.87
A88: C3 | B88: 88,201 | C88: 88,800 | D88: 7351 | E88: 50 | F88: 7,400 | G88: 157,501 | H88: 158,100 | I88: 13,126 | J88: 13,175 | K88: 8.93
A89: C3 | B89: 88,801 | C89: 89,400 | D89: 7401 | E89: 50 | F89: 7,450 | G89: 158,101 | H89: 158,700 | I89: 13,176 | J89: 13,225 | K89: 8.96
A90: C3 | B90: 89,401 | C90: 90,000 | D90: 7451 | E90: 50 | F90: 7,500 | G90: 158,701 | H90: 159,300 | I90: 13,226 | J90: 13,275 | K90: 9.01
A91: C3 | B91: 90,001 | C91: 90,600 | D91: 7501 | E91: 50 | F91: 7,550 | G91: 159,301 | H91: 159,900 | I91: 13,276 | J91: 13,325 | K91: 9.06
A92: C3 | B92: 90,601 | C92: 91,200 | D92: 7551 | E92: 50 | F92: 7,600 | G92: 159,901 | H92: 160,500 | I92: 13,326 | J92: 13,375 | K92: 9.1
A93: C3 | B93: 91,201 | C93: 91,800 | D93: 7601 | E93: 50 | F93: 7,650 | G93: 160,501 | H93: 161,100 | I93: 13,376 | J93: 13,425 | K93: 9.14
A94: C3 | B94: 91,801 | C94: 92,400 | D94: 7651 | E94: 50 | F94: 7,700 | G94: 161,101 | H94: 161,700 | I94: 13,426 | J94: 13,475 | K94: 9.19
A95: C3 | B95: 92,401 | C95: 93,000 | D95: 7701 | E95: 50 | F95: 7,750 | G95: 161,701 | H95: 162,300 | I95: 13,476 | J95: 13,525 | K95: 9.23
A96: C3 | B96: 93,001 | C96: 93,600 | D96: 7751 | E96: 50 | F96: 7,800 | G96: 162,301 | H96: 162,900 | I96: 13,526 | J96: 13,575 | K96: 9.26
A97: C3 | B97: 93,601 | C97: 94,200 | D97: 7801 | E97: 50 | F97: 7,850 | G97: 162,901 | H97: 163,500 | I97: 13,576 | J97: 13,625 | K97: 9.33
A98: C3 | B98: 94,201 | C98: 94,800 | D98: 7851 | E98: 50 | F98: 7,900 | G98: 163,501 | H98: 164,100 | I98: 13,626 | J98: 13,675 | K98: 9.36
A99: C3 | B99: 94,801 | C99: 95,400 | D99: 7901 | E99: 50 | F99: 7,950 | G99: 164,101 | H99: 164,700 | I99: 13,676 | J99: 13,725 | K99: 9.41
A100: C3 | B100: 95,401 | C100: 96,000 | D100: 7951 | E100: 50 | F100: 8,000 | G100: 164,701 | H100: 165,300 | I100: 13,726 | J100: 13,775 | K100: 9.44
A101: C3 | B101: 96,001 | C101: 96,600 | D101: 8001 | E101: 50 | F101: 8,050 | G101: 165,301 | H101: 165,900 | I101: 13,776 | J101: 13,825 | K101: 9.48
A102: C3 | B102: 96,601 | C102: 97,200 | D102: 8051 | E102: 50 | F102: 8,100 | G102: 165,901 | H102: 166,500 | I102: 13,826 | J102: 13,875 | K102: 9.52
A103: C3 | B103: 97,201 | C103: 97,800 | D103: 8101 | E103: 50 | F103: 8,150 | G103: 166,501 | H103: 167,100 | I103: 13,876 | J103: 13,925 | K103: 9.56
A104: C3 | B104: 97,801 | C104: 98,400 | D104: 8151 | E104: 50 | F104: 8,200 | G104: 167,101 | H104: 167,700 | I104: 13,926 | J104: 13,975 | K104: 9.59
A105: C3 | B105: 98,401 | C105: 99,000 | D105: 8201 | E105: 50 | F105: 8,250 | G105: 167,701 | H105: 168,300 | I105: 13,976 | J105: 14,025 | K105: 9.63
A106: C3 | B106: 99,001 | C106: 99,600 | D106: 8251 | E106: 50 | F106: 8,300 | G106: 168,301 | H106: 168,900 | I106: 14,026 | J106: 14,075 | K106: 9.67
A107: C3 | B107: 99,601 | C107: 100,200 | D107: 8301 | E107: 50 | F107: 8,350 | G107: 168,901 | H107: 169,500 | I107: 14,076 | J107: 14,125 | K107: 9.71
A108: C3 | B108: 100,201 | C108: 100,800 | D108: 8351 | E108: 50 | F108: 8,400 | G108: 169,501 | H108: 170,100 | I108: 14,126 | J108: 14,175 | K108: 9.74
A109: C3 | B109: 100,801 | C109: 101,400 | D109: 8401 | E109: 50 | F109: 8,450 | G109: 170,101 | H109: 170,700 | I109: 14,176 | J109: 14,225 | K109: 9.79
A110: C3 | B110: 101,401 | C110: 102,000 | D110: 8451 | E110: 50 | F110: 8,500 | G110: 170,701 | H110: 171,300 | I110: 14,226 | J110: 14,275 | K110: 9.82
A111: C3 | B111: 102,001 | C111: 102,600 | D111: 8501 | E111: 50 | F111: 8,550 | G111: 171,301 | H111: 171,900 | I111: 14,276 | J111: 14,325 | K111: 9.86
A112: C3 | B112: 102,601 | C112: 103,200 | D112: 8551 | E112: 50 | F112: 8,600 | G112: 171,901 | H112: 172,500 | I112: 14,326 | J112: 14,375 | K112: 9.89
A113: C3 | B113: 103,201 | C113: 103,800 | D113: 8601 | E113: 50 | F113: 8,650 | G113: 172,501 | H113: 173,100 | I113: 14,376 | J113: 14,425 | K113: 9.92
A114: C3 | B114: 103,801 | C114: 104,400 | D114: 8651 | E114: 50 | F114: 8,700 | G114: 173,101 | H114: 173,700 | I114: 14,426 | J114: 14,475 | K114: 9.96
A115: C3 | B115: 104,401 | C115: 105,000 | D115: 8701 | E115: 50 | F115: 8,750 | G115: 173,701 | H115: 174,300 | I115: 14,476 | J115: 14,525 | K115: 10
A116: C3 | B116: 105,001 | C116: 105,600 | D116: 8751 | E116: 50 | F116: 8,800 | G116: 174,301 | H116: 174,900 | I116: 14,526 | J116: 14,575 | K116: 10.03
A117: C3 | B117: 105,601 | C117: 106,200 | D117: 8801 | E117: 50 | F117: 8,850 | G117: 174,901 | H117: 175,500 | I117: 14,576 | J117: 14,625 | K117: 10.06
A118: C3 | B118: 106,201 | C118: 106,800 | D118: 8851 | E118: 50 | F118: 8,900 | G118: 175,501 | H118: 176,100 | I118: 14,626 | J118: 14,675 | K118: 10.1
A119: C3 | B119: 106,801 | C119: 107,400 | D119: 8901 | E119: 50 | F119: 8,950 | G119: 176,101 | H119: 176,700 | I119: 14,676 | J119: 14,725 | K119: 10.14
A120: C3 | B120: 107,401 | C120: 108,000 | D120: 8951 | E120: 50 | F120: 9,000 | G120: 176,701 | H120: 177,300 | I120: 14,726 | J120: 14,775 | K120: 10.18
A121: C3 | B121: 108,001 | C121: 108,600 | D121: 9001 | E121: 50 | F121: 9,050 | G121: 177,301 | H121: 177,900 | I121: 14,776 | J121: 14,825 | K121: 10.21
A122: C3 | B122: 108,601 | C122: 109,200 | D122: 9051 | E122: 50 | F122: 9,100 | G122: 177,901 | H122: 178,500 | I122: 14,826 | J122: 14,875 | K122: 10.25
A123: C3 | B123: 109,201 | C123: 109,800 | D123: 9101 | E123: 50 | F123: 9,150 | G123: 178,501 | H123: 179,100 | I123: 14,876 | J123: 14,925 | K123: 10.28
A124: C3 | B124: 109,801 | C124: 110,400 | D124: 9151 | E124: 50 | F124: 9,200 | G124: 179,101 | H124: 179,700 | I124: 14,926 | J124: 14,975 | K124: 10.33
A125: C3 | B125: 110,401 | C125: 111,000 | D125: 9201 | E125: 50 | F125: 9,250 | G125: 179,701 | H125: 180,300 | I125: 14,976 | J125: 15,025 | K125: 10.36
A126: C3 | B126: 111,001 | C126: 111,600 | D126: 9251 | E126: 50 | F126: 9,300 | G126: 180,301 | H126: 180,900 | I126: 15,026 | J126: 15,075 | K126: 10.39
A127: C3 | B127: 111,601 | C127: 112,200 | D127: 9301 | E127: 50 | F127: 9,350 | G127: 180,901 | H127: 181,500 | I127: 15,076 | J127: 15,125 | K127: 10.43
A128: C3 | B128: 112,201 | C128: 112,800 | D128: 9351 | E128: 50 | F128: 9,400 | G128: 181,501 | H128: 182,100 | I128: 15,126 | J128: 15,175 | K128: 10.47
A129: C3 | B129: 112,801 | C129: 113,400 | D129: 9401 | E129: 50 | F129: 9,450 | G129: 182,101 | H129: 182,700 | I129: 15,176 | J129: 15,225 | K129: 10.5
A130: C3 | B130: =(D130-1)*12+1 -> 113,401 | C130: =F130*12 -> 114,000 | D130: 9451 | E130: 50 | F130: =D130-1+E130 -> 9,500 | G130: 182,701 | H130: 183,300 | I130: =(G130-1)/12+1 -> 15,226 | J130: =H130/12 -> 15,275 | K130: 10.54
A131: C3 | B131: 114,001 | C131: 114,600 | D131: 9501 | E131: 50 | F131: 9,550 | G131: =MIN((B131-1)*2+1,B131+69300) -> 183,301 | H131: =MIN((C131)*2,C131+69300) -> 183,900 | I131: 15,276 | J131: 15,325 | K131: 10.57
A132: C3 | B132: 114,601 | C132: 115,200 | D132: 9551 | E132: 50 | F132: 9,600 | G132: 183,901 | H132: 184,500 | I132: 15,326 | J132: 15,375 | K132: 10.6
A133: C3 | B133: 115,201 | C133: 115,800 | D133: 9601 | E133: 50 | F133: 9,650 | G133: 184,501 | H133: 185,100 | I133: 15,376 | J133: 15,425 | K133: 10.65
A134: C3 | B134: 115,801 | C134: 116,400 | D134: 9651 | E134: 50 | F134: 9,700 | G134: 185,101 | H134: 185,700 | I134: 15,426 | J134: 15,475 | K134: 10.67
A135: C3 | B135: 116,401 | C135: 117,000 | D135: 9701 | E135: 50 | F135: 9,750 | G135: 185,701 | H135: 186,300 | I135: 15,476 | J135: 15,525 | K135: 10.71
A136: C3 | B136: 117,001 | C136: 117,600 | D136: 9751 | E136: 50 | F136: 9,800 | G136: 186,301 | H136: 186,900 | I136: 15,526 | J136: 15,575 | K136: 10.74
A137: C3 | B137: 117,601 | C137: 118,200 | D137: 9801 | E137: 50 | F137: 9,850 | G137: 186,901 | H137: 187,500 | I137: 15,576 | J137: 15,625 | K137: 10.79
A138: C3 | B138: 118,201 | C138: 118,800 | D138: 9851 | E138: 50 | F138: 9,900 | G138: 187,501 | H138: 188,100 | I138: 15,626 | J138: 15,675 | K138: 10.82
A139: C3 | B139: 118,801 | C139: 119,400 | D139: 9901 | E139: 50 | F139: 9,950 | G139: 188,101 | H139: 188,700 | I139: 15,676 | J139: 15,725 | K139: 10.85
A140: C3 | B140: 119,401 | C140: 120,000 | D140: 9951 | E140: 50 | F140: 10,000 | G140: 188,701 | H140: 189,300 | I140: 15,726 | J140: 15,775 | K140: 10.88
A141: C3 | B141: 120,001 | C141: 120,600 | D141: 10001 | E141: 50 | F141: 10,050 | G141: 189,301 | H141: 189,900 | I141: 15,776 | J141: 15,825 | K141: 10.92
A142: C3 | B142: 120,601 | C142: 121,200 | D142: 10051 | E142: 50 | F142: 10,100 | G142: 189,901 | H142: 190,500 | I142: 15,826 | J142: 15,875 | K142: 10.94
A143: C3 | B143: 121,201 | C143: 121,800 | D143: 10101 | E143: 50 | F143: 10,150 | G143: 190,501 | H143: 191,100 | I143: 15,876 | J143: 15,925 | K143: 10.98
A144: C3 | B144: 121,801 | C144: 122,400 | D144: 10151 | E144: 50 | F144: 10,200 | G144: 191,101 | H144: 191,700 | I144: 15,926 | J144: 15,975 | K144: 11.01
A145: C3 | B145: 122,401 | C145: 123,000 | D145: 10201 | E145: 50 | F145: 10,250 | G145: 191,701 | H145: 192,300 | I145: 15,976 | J145: 16,025 | K145: 11.05
A146: C3 | B146: 123,001 | C146: 123,600 | D146: 10251 | E146: 50 | F146: 10,300 | G146: 192,301 | H146: 192,900 | I146: 16,026 | J146: 16,075 | K146: 11.09
A147: C3 | B147: 123,601 | C147: 124,200 | D147: 10301 | E147: 50 | F147: 10,350 | G147: 192,901 | H147: 193,500 | I147: 16,076 | J147: 16,125 | K147: 11.12
A148: C3 | B148: 124,201 | C148: 124,800 | D148: 10351 | E148: 50 | F148: 10,400 | G148: 193,501 | H148: 194,100 | I148: 16,126 | J148: 16,175 | K148: 11.17
A149: C3 | B149: 124,801 | C149: 125,400 | D149: 10401 | E149: 50 | F149: 10,450 | G149: 194,101 | H149: 194,700 | I149: 16,176 | J149: 16,225 | K149: 11.2
A150: C3 | B150: 125,401 | C150: 126,000 | D150: 10451 | E150: 50 | F150: 10,500 | G150: 194,701 | H150: 195,300 | I150: 16,226 | J150: 16,275 | K150: 11.24
A151: C3 | B151: 126,001 | C151: 126,600 | D151: 10501 | E151: 50 | F151: 10,550 | G151: 195,301 | H151: 195,900 | I151: 16,276 | J151: 16,325 | K151: 11.28
A152: C3 | B152: 126,601 | C152: 127,200 | D152: 10551 | E152: 50 | F152: 10,600 | G152: 195,901 | H152: 196,500 | I152: 16,326 | J152: 16,375 | K152: 11.32
A153: C3 | B153: 127,201 | C153: 127,800 | D153: 10601 | E153: 50 | F153: 10,650 | G153: 196,501 | H153: 197,100 | I153: 16,376 | J153: 16,425 | K153: 11.37
A154: C3 | B154: 127,801 | C154: 128,400 | D154: 10651 | E154: 50 | F154: 10,700 | G154: 197,101 | H154: 197,700 | I154: 16,426 | J154: 16,475 | K154: 11.39
A155: C3 | B155: 128,401 | C155: 129,000 | D155: 10701 | E155: 50 | F155: 10,750 | G155: 197,701 | H155: 198,300 | I155: 16,476 | J155: 16,525 | K155: 11.44
A156: C3 | B156: 129,001 | C156: 129,600 | D156: 10751 | E156: 50 | F156: 10,800 | G156: 198,301 | H156: 198,900 | I156: 16,526 | J156: 16,575 | K156: 11.47
A157: C3 | B157: 129,601 | C157: 130,200 | D157: 10801 | E157: 50 | F157: 10,850 | G157: 198,901 | H157: 199,500 | I157: 16,576 | J157: 16,625 | K157: 11.51
A158: C3 | B158: 130,201 | C158: 130,800 | D158: 10851 | E158: 50 | F158: 10,900 | G158: 199,501 | H158: 200,100 | I158: 16,626 | J158: 16,675 | K158: 11.55
A159: C3 | B159: 130,801 | C159: 131,400 | D159: 10901 | E159: 50 | F159: 10,950 | G159: 200,101 | H159: 200,700 | I159: 16,676 | J159: 16,725 | K159: 11.58
A160: C3 | B160: 131,401 | C160: 132,000 | D160: 10951 | E160: 50 | F160: 11,000 | G160: 200,701 | H160: 201,300 | I160: 16,726 | J160: 16,775 | K160: 11.63
A161: C3 | B161: 132,001 | C161: 132,600 | D161: 11001 | E161: 50 | F161: 11,050 | G161: 201,301 | H161: 201,900 | I161: 16,776 | J161: 16,825 | K161: 11.66
A162: C3 | B162: 132,601 | C162: 133,200 | D162: 11051 | E162: 50 | F162: 11,100 | G162: 201,901 | H162: 202,500 | I162: 16,826 | J162: 16,875 | K162: 11.69
A163: C3 | B163: 133,201 | C163: 133,800 | D163: 11101 | E163: 50 | F163: 11,150 | G163: 202,501 | H163: 203,100 | I163: 16,876 | J163: 16,925 | K163: 11.74
A164: C3 | B164: 133,801 | C164: 134,400 | D164: 11151 | E164: 50 | F164: 11,200 | G164: 203,101 | H164: 203,700 | I164: 16,926 | J164: 16,975 | K164: 11.77
A165: C3 | B165: 134,401 | C165: 135,000 | D165: 11201 | E165: 50 | F165: 11,250 | G165: 203,701 | H165: 204,300 | I165: 16,976 | J165: 17,025 | K165: 11.81
A166: C3 | B166: 135,001 | C166: 135,600 | D166: 11251 | E166: 50 | F166: 11,300 | G166: 204,301 | H166: 204,900 | I166: 17,026 | J166: 17,075 | K166: 11.86
A167: C3 | B167: 135,601 | C167: 136,200 | D167: 11301 | E167: 50 | F167: 11,350 | G167: 204,901 | H167: 205,500 | I167: 17,076 | J167: 17,125 | K167: 11.88
A168: C3 | B168: 136,201 | C168: 136,800 | D168: 11351 | E168: 50 | F168: 11,400 | G168: 205,501 | H168: 206,100 | I168: 17,126 | J168: 17,175 | K168: 11.94
A169: C3 | B169: 136,801 | C169: 137,400 | D169: 11401 | E169: 50 | F169: 11,450 | G169: 206,101 | H169: 206,700 | I169: 17,176 | J169: 17,225 | K169: 11.96
A170: C3 | B170: 137,401 | C170: 138,000 | D170: 11451 | E170: 50 | F170: 11,500 | G170: 206,701 | H170: 207,300 | I170: 17,226 | J170: 17,275 | K170: 12.01
A171: C3 | B171: 138,001 | C171: 138,600 | D171: 11501 | E171: 50 | F171: 11,550 | G171: 207,301 | H171: 207,900 | I171: 17,276 | J171: 17,325 | K171: 12.06
A172: C3 | B172: 138,601 | C172: 139,200 | D172: 11551 | E172: 50 | F172: 11,600 | G172: 207,901 | H172: 208,500 | I172: 17,326 | J172: 17,375 | K172: 12.09
A173: C3 | B173: 139,201 | C173: 139,800 | D173: 11601 | E173: 50 | F173: 11,650 | G173: 208,501 | H173: 209,100 | I173: 17,376 | J173: 17,425 | K173: 12.13
A174: C3 | B174: 139,801 | C174: 140,400 | D174: 11651 | E174: 50 | F174: 11,700 | G174: 209,101 | H174: 209,700 | I174: 17,426 | J174: 17,475 | K174: 12.17
A175: C3 | B175: 140,401 | C175: 141,000 | D175: 11701 | E175: 50 | F175: 11,750 | G175: 209,701 | H175: 210,300 | I175: 17,476 | J175: 17,525 | K175: 12.21
A176: C3 | B176: 141,001 | C176: 141,600 | D176: 11751 | E176: 50 | F176: 11,800 | G176: 210,301 | H176: 210,900 | I176: 17,526 | J176: 17,575 | K176: 12.25
A177: C3 | B177: 141,601 | C177: 142,200 | D177: 11801 | E177: 50 | F177: 11,850 | G177: 210,901 | H177: 211,500 | I177: 17,576 | J177: 17,625 | K177: 12.28
A178: C3 | B178: 142,201 | C178: 142,800 | D178: 11851 | E178: 50 | F178: 11,900 | G178: 211,501 | H178: 212,100 | I178: 17,626 | J178: 17,675 | K178: 12.33
A179: C3 | B179: 142,801 | C179: 143,400 | D179: 11901 | E179: 50 | F179: 11,950 | G179: 212,101 | H179: 212,700 | I179: 17,676 | J179: 17,725 | K179: 12.36
A180: C3 | B180: 143,401 | C180: 144,000 | D180: 11951 | E180: 50 | F180: 12,000 | G180: 212,701 | H180: 213,300 | I180: 17,726 | J180: 17,775 | K180: 12.4
A181: C3 | B181: 144,001 | C181: 144,600 | D181: 12001 | E181: 50 | F181: 12,050 | G181: 213,301 | H181: 213,900 | I181: 17,776 | J181: 17,825 | K181: 12.44
A182: C3 | B182: 144,601 | C182: 145,200 | D182: 12051 | E182: 50 | F182: 12,100 | G182: 213,901 | H182: 214,500 | I182: 17,826 | J182: 17,875 | K182: 12.48
A183: C3 | B183: 145,201 | C183: 145,800 | D183: 12101 | E183: 50 | F183: 12,150 | G183: 214,501 | H183: 215,100 | I183: 17,876 | J183: 17,925 | K183: 12.52
A184: C3 | B184: 145,801 | C184: 146,400 | D184: 12151 | E184: 50 | F184: 12,200 | G184: 215,101 | H184: 215,700 | I184: 17,926 | J184: 17,975 | K184: 12.56
A185: C3 | B185: 146,401 | C185: 147,000 | D185: 12201 | E185: 50 | F185: 12,250 | G185: 215,701 | H185: 216,300 | I185: 17,976 | J185: 18,025 | K185: 12.59
A186: C3 | B186: 147,001 | C186: 147,600 | D186: 12251 | E186: 50 | F186: 12,300 | G186: 216,301 | H186: 216,900 | I186: 18,026 | J186: 18,075 | K186: 12.63
A187: C3 | B187: 147,601 | C187: 148,200 | D187: 12301 | E187: 50 | F187: 12,350 | G187: 216,901 | H187: 217,500 | I187: 18,076 | J187: 18,125 | K187: 12.66
A188: C3 | B188: 148,201 | C188: 148,800 | D188: 12351 | E188: 50 | F188: 12,400 | G188: 217,501 | H188: 218,100 | I188: 18,126 | J188: 18,175 | K188: 12.7
A189: C3 | B189: 148,801 | C189: 149,400 | D189: 12401 | E189: 50 | F189: 12,450 | G189: 218,101 | H189: 218,700 | I189: 18,176 | J189: 18,225 | K189: 12.74
A190: C3 | B190: 149,401 | C190: 150,000 | D190: 12451 | E190: 50 | F190: 12,500 | G190: 218,701 | H190: 219,300 | I190: 18,226 | J190: 18,275 | K190: 12.78
A191: C3 | B191: 150,001 | C191: 150,600 | D191: 12501 | E191: 50 | F191: 12,550 | G191: 219,301 | H191: 219,900 | I191: 18,276 | J191: 18,325 | K191: 12.83
A192: C3 | B192: 150,601 | C192: 151,200 | D192: 12551 | E192: 50 | F192: 12,600 | G192: 219,901 | H192: 220,500 | I192: 18,326 | J192: 18,375 | K192: 12.87
A193: C3 | B193: 151,201 | C193: 151,800 | D193: 12601 | E193: 50 | F193: 12,650 | G193: 220,501 | H193: 221,100 | I193: 18,376 | J193: 18,425 | K193: 12.9
A194: C3 | B194: =(D194-1)*12+1 -> 151,801 | C194: =F194*12 -> 152,400 | D194: 12651 | E194: 50 | F194: =D194-1+E194 -> 12,700 | G194: 221,101 | H194: 221,700 | I194: =(G194-1)/12+1 -> 18,426 | J194: =H194/12 -> 18,475 | K194: 12.94
A195: C3 | B195: 152,401 | C195: 153,000 | D195: 12701 | E195: 50 | F195: 12,750 | G195: =MIN((B195-1)*2+1,B195+69300) -> 221,701 | H195: =MIN((C195)*2,C195+69300) -> 222,300 | I195: 18,476 | J195: 18,525 | K195: 12.98
A196: C3 | B196: 153,001 | C196: 153,600 | D196: 12751 | E196: 50 | F196: 12,800 | G196: 222,301 | H196: 222,900 | I196: 18,526 | J196: 18,575 | K196: 13.01
A197: C3 | B197: 153,601 | C197: 154,200 | D197: 12801 | E197: 50 | F197: 12,850 | G197: 222,901 | H197: 223,500 | I197: 18,576 | J197: 18,625 | K197: 13.05
A198: C3 | B198: 154,201 | C198: 154,800 | D198: 12851 | E198: 50 | F198: 12,900 | G198: 223,501 | H198: 224,100 | I198: 18,626 | J198: 18,675 | K198: 13.1
A199: C3 | B199: 154,801 | C199: 155,400 | D199: 12901 | E199: 50 | F199: 12,950 | G199: 224,101 | H199: 224,700 | I199: 18,676 | J199: 18,725 | K199: 13.12
A200: C3 | B200: 155,401 | C200: 156,000 | D200: 12951 | E200: 50 | F200: 13,000 | G200: 224,701 | H200: 225,300 | I200: 18,726 | J200: 18,775 | K200: 13.17
... 301 more rows

Sheet C4 (hidden)
A1: Barème | B1: Rev annuel début Barème C | C1: Rev annuel Fin Barème C | D1: Rev mensuel Début Barème C | E1: Tranche Barème C | F1: Rev mensuel Fin Barème C | G1: Rev annuel Début Barème C Rectification (Cumul couple) | H1: Rev annuel Fin Barème C Rectification (Cumul couple) | I1: Rev mensuel Début Barème C Rectification (Cumul couple) | J1: Rev mensuel Fin Barème C Rectification (Cumul couple) | K1: Taux imposition
A2: C4 | B2: =(D2-1)*12+1 -> 1 | C2: =F2*12 -> 40,800 | D2: 1 | E2: 3400 | F2: =D2-1+E2 -> 3,400 | G2: =MIN((B2-1)*2+1,B2+69300) -> 1 | H2: =MIN((C2)*2,C2+69300) -> 81,600 | I2: =(G2-1)/12+1 -> 1 | J2: =H2/12 -> 6,800 | K2: 0
A3: C4 | B3: 40,801 | C3: 41,400 | D3: 3401 | E3: 50 | F3: 3,450 | G3: =MIN((B3-1)*2+1,B3+69300) -> 81,601 | H3: =MIN((C3)*2,C3+69300) -> 82,800 | I3: 6,801 | J3: 6,900 | K3: 0.08
A4: C4 | B4: 41,401 | C4: 42,000 | D4: 3451 | E4: 50 | F4: 3,500 | G4: 82,801 | H4: 84,000 | I4: 6,901 | J4: 7,000 | K4: 0.13
A5: C4 | B5: 42,001 | C5: 42,600 | D5: 3501 | E5: 50 | F5: 3,550 | G5: 84,001 | H5: 85,200 | I5: 7,001 | J5: 7,100 | K5: 0.16
A6: C4 | B6: 42,601 | C6: 43,200 | D6: 3551 | E6: 50 | F6: 3,600 | G6: 85,201 | H6: 86,400 | I6: 7,101 | J6: 7,200 | K6: 0.24
A7: C4 | B7: 43,201 | C7: 43,800 | D7: 3601 | E7: 50 | F7: 3,650 | G7: 86,401 | H7: 87,600 | I7: 7,201 | J7: 7,300 | K7: 0.32
A8: C4 | B8: 43,801 | C8: 44,400 | D8: 3651 | E8: 50 | F8: 3,700 | G8: 87,601 | H8: 88,800 | I8: 7,301 | J8: 7,400 | K8: 0.39
A9: C4 | B9: 44,401 | C9: 45,000 | D9: 3701 | E9: 50 | F9: 3,750 | G9: 88,801 | H9: 90,000 | I9: 7,401 | J9: 7,500 | K9: 0.47
A10: C4 | B10: 45,001 | C10: 45,600 | D10: 3751 | E10: 50 | F10: 3,800 | G10: 90,001 | H10: 91,200 | I10: 7,501 | J10: 7,600 | K10: 0.56
A11: C4 | B11: 45,601 | C11: 46,200 | D11: 3801 | E11: 50 | F11: 3,850 | G11: 91,201 | H11: 92,400 | I11: 7,601 | J11: 7,700 | K11: 0.67
A12: C4 | B12: 46,201 | C12: 46,800 | D12: 3851 | E12: 50 | F12: 3,900 | G12: 92,401 | H12: 93,600 | I12: 7,701 | J12: 7,800 | K12: 0.77
A13: C4 | B13: 46,801 | C13: 47,400 | D13: 3901 | E13: 50 | F13: 3,950 | G13: 93,601 | H13: 94,800 | I13: 7,801 | J13: 7,900 | K13: 0.86
A14: C4 | B14: 47,401 | C14: 48,000 | D14: 3951 | E14: 50 | F14: 4,000 | G14: 94,801 | H14: 96,000 | I14: 7,901 | J14: 8,000 | K14: 0.99
A15: C4 | B15: 48,001 | C15: 48,600 | D15: 4001 | E15: 50 | F15: 4,050 | G15: 96,001 | H15: 97,200 | I15: 8,001 | J15: 8,100 | K15: 1.11
A16: C4 | B16: 48,601 | C16: 49,200 | D16: 4051 | E16: 50 | F16: 4,100 | G16: 97,201 | H16: 98,400 | I16: 8,101 | J16: 8,200 | K16: 1.24
A17: C4 | B17: 49,201 | C17: 49,800 | D17: 4101 | E17: 50 | F17: 4,150 | G17: 98,401 | H17: 99,600 | I17: 8,201 | J17: 8,300 | K17: 1.36
A18: C4 | B18: 49,801 | C18: 50,400 | D18: 4151 | E18: 50 | F18: 4,200 | G18: 99,601 | H18: 100,800 | I18: 8,301 | J18: 8,400 | K18: 1.48
A19: C4 | B19: 50,401 | C19: 51,000 | D19: 4201 | E19: 50 | F19: 4,250 | G19: 100,801 | H19: 102,000 | I19: 8,401 | J19: 8,500 | K19: 1.62
A20: C4 | B20: 51,001 | C20: 51,600 | D20: 4251 | E20: 50 | F20: 4,300 | G20: 102,001 | H20: 103,200 | I20: 8,501 | J20: 8,600 | K20: 1.72
A21: C4 | B21: 51,601 | C21: 52,200 | D21: 4301 | E21: 50 | F21: 4,350 | G21: 103,201 | H21: 104,400 | I21: 8,601 | J21: 8,700 | K21: 1.84
A22: C4 | B22: 52,201 | C22: 52,800 | D22: 4351 | E22: 50 | F22: 4,400 | G22: 104,401 | H22: 105,600 | I22: 8,701 | J22: 8,800 | K22: 1.97
A23: C4 | B23: 52,801 | C23: 53,400 | D23: 4401 | E23: 50 | F23: 4,450 | G23: 105,601 | H23: 106,800 | I23: 8,801 | J23: 8,900 | K23: 2.1
A24: C4 | B24: 53,401 | C24: 54,000 | D24: 4451 | E24: 50 | F24: 4,500 | G24: 106,801 | H24: 108,000 | I24: 8,901 | J24: 9,000 | K24: 2.25
A25: C4 | B25: 54,001 | C25: 54,600 | D25: 4501 | E25: 50 | F25: 4,550 | G25: 108,001 | H25: 109,200 | I25: 9,001 | J25: 9,100 | K25: 2.37
A26: C4 | B26: 54,601 | C26: 55,200 | D26: 4551 | E26: 50 | F26: 4,600 | G26: 109,201 | H26: 110,400 | I26: 9,101 | J26: 9,200 | K26: 2.51
A27: C4 | B27: 55,201 | C27: 55,800 | D27: 4601 | E27: 50 | F27: 4,650 | G27: 110,401 | H27: 111,600 | I27: 9,201 | J27: 9,300 | K27: 2.64
A28: C4 | B28: 55,801 | C28: 56,400 | D28: 4651 | E28: 50 | F28: 4,700 | G28: 111,601 | H28: 112,800 | I28: 9,301 | J28: 9,400 | K28: 2.75
A29: C4 | B29: 56,401 | C29: 57,000 | D29: 4701 | E29: 50 | F29: 4,750 | G29: 112,801 | H29: 114,000 | I29: 9,401 | J29: 9,500 | K29: 2.9
A30: C4 | B30: 57,001 | C30: 57,600 | D30: 4751 | E30: 50 | F30: 4,800 | G30: 114,001 | H30: 115,200 | I30: 9,501 | J30: 9,600 | K30: 3.01
A31: C4 | B31: 57,601 | C31: 58,200 | D31: 4801 | E31: 50 | F31: 4,850 | G31: 115,201 | H31: 116,400 | I31: 9,601 | J31: 9,700 | K31: 3.16
A32: C4 | B32: 58,201 | C32: 58,800 | D32: 4851 | E32: 50 | F32: 4,900 | G32: 116,401 | H32: 117,600 | I32: 9,701 | J32: 9,800 | K32: 3.3
A33: C4 | B33: 58,801 | C33: 59,400 | D33: 4901 | E33: 50 | F33: 4,950 | G33: 117,601 | H33: 118,800 | I33: 9,801 | J33: 9,900 | K33: 3.43
A34: C4 | B34: 59,401 | C34: 60,000 | D34: 4951 | E34: 50 | F34: 5,000 | G34: 118,801 | H34: 120,000 | I34: 9,901 | J34: 10,000 | K34: 3.58
A35: C4 | B35: 60,001 | C35: 60,600 | D35: 5001 | E35: 50 | F35: 5,050 | G35: 120,001 | H35: 121,200 | I35: 10,001 | J35: 10,100 | K35: 3.71
A36: C4 | B36: 60,601 | C36: 61,200 | D36: 5051 | E36: 50 | F36: 5,100 | G36: 121,201 | H36: 122,400 | I36: 10,101 | J36: 10,200 | K36: 3.84
A37: C4 | B37: 61,201 | C37: 61,800 | D37: 5101 | E37: 50 | F37: 5,150 | G37: 122,401 | H37: 123,600 | I37: 10,201 | J37: 10,300 | K37: 3.97
A38: C4 | B38: 61,801 | C38: 62,400 | D38: 5151 | E38: 50 | F38: 5,200 | G38: 123,601 | H38: 124,800 | I38: 10,301 | J38: 10,400 | K38: 4.09
A39: C4 | B39: 62,401 | C39: 63,000 | D39: 5201 | E39: 50 | F39: 5,250 | G39: 124,801 | H39: 126,000 | I39: 10,401 | J39: 10,500 | K39: 4.24
A40: C4 | B40: 63,001 | C40: 63,600 | D40: 5251 | E40: 50 | F40: 5,300 | G40: 126,001 | H40: 127,200 | I40: 10,501 | J40: 10,600 | K40: 4.41
A41: C4 | B41: 63,601 | C41: 64,200 | D41: 5301 | E41: 50 | F41: 5,350 | G41: 127,201 | H41: 128,400 | I41: 10,601 | J41: 10,700 | K41: 4.56
A42: C4 | B42: 64,201 | C42: 64,800 | D42: 5351 | E42: 50 | F42: 5,400 | G42: 128,401 | H42: 129,600 | I42: 10,701 | J42: 10,800 | K42: 4.71
A43: C4 | B43: 64,801 | C43: 65,400 | D43: 5401 | E43: 50 | F43: 5,450 | G43: 129,601 | H43: 130,800 | I43: 10,801 | J43: 10,900 | K43: 4.84
A44: C4 | B44: 65,401 | C44: 66,000 | D44: 5451 | E44: 50 | F44: 5,500 | G44: 130,801 | H44: 132,000 | I44: 10,901 | J44: 11,000 | K44: 4.98
A45: C4 | B45: 66,001 | C45: 66,600 | D45: 5501 | E45: 50 | F45: 5,550 | G45: 132,001 | H45: 133,200 | I45: 11,001 | J45: 11,100 | K45: 5.11
A46: C4 | B46: 66,601 | C46: 67,200 | D46: 5551 | E46: 50 | F46: 5,600 | G46: 133,201 | H46: 134,400 | I46: 11,101 | J46: 11,200 | K46: 5.25
A47: C4 | B47: 67,201 | C47: 67,800 | D47: 5601 | E47: 50 | F47: 5,650 | G47: 134,401 | H47: 135,600 | I47: 11,201 | J47: 11,300 | K47: 5.37
A48: C4 | B48: 67,801 | C48: 68,400 | D48: 5651 | E48: 50 | F48: 5,700 | G48: 135,601 | H48: 136,800 | I48: 11,301 | J48: 11,400 | K48: 5.5
A49: C4 | B49: 68,401 | C49: 69,000 | D49: 5701 | E49: 50 | F49: 5,750 | G49: 136,801 | H49: 138,000 | I49: 11,401 | J49: 11,500 | K49: 5.61
A50: C4 | B50: 69,001 | C50: 69,600 | D50: 5751 | E50: 50 | F50: 5,800 | G50: 138,001 | H50: 138,900 | I50: 11,501 | J50: 11,575 | K50: 5.74
A51: C4 | B51: 69,601 | C51: 70,200 | D51: 5801 | E51: 50 | F51: 5,850 | G51: 138,901 | H51: 139,500 | I51: 11,576 | J51: 11,625 | K51: 5.81
A52: C4 | B52: 70,201 | C52: 70,800 | D52: 5851 | E52: 50 | F52: 5,900 | G52: 139,501 | H52: 140,100 | I52: 11,626 | J52: 11,675 | K52: 5.88
A53: C4 | B53: 70,801 | C53: 71,400 | D53: 5901 | E53: 50 | F53: 5,950 | G53: 140,101 | H53: 140,700 | I53: 11,676 | J53: 11,725 | K53: 5.94
A54: C4 | B54: 71,401 | C54: 72,000 | D54: 5951 | E54: 50 | F54: 6,000 | G54: 140,701 | H54: 141,300 | I54: 11,726 | J54: 11,775 | K54: 6.02
A55: C4 | B55: 72,001 | C55: 72,600 | D55: 6001 | E55: 50 | F55: 6,050 | G55: 141,301 | H55: 141,900 | I55: 11,776 | J55: 11,825 | K55: 6.09
A56: C4 | B56: 72,601 | C56: 73,200 | D56: 6051 | E56: 50 | F56: 6,100 | G56: 141,901 | H56: 142,500 | I56: 11,826 | J56: 11,875 | K56: 6.15
A57: C4 | B57: 73,201 | C57: 73,800 | D57: 6101 | E57: 50 | F57: 6,150 | G57: 142,501 | H57: 143,100 | I57: 11,876 | J57: 11,925 | K57: 6.21
A58: C4 | B58: 73,801 | C58: 74,400 | D58: 6151 | E58: 50 | F58: 6,200 | G58: 143,101 | H58: 143,700 | I58: 11,926 | J58: 11,975 | K58: 6.29
A59: C4 | B59: 74,401 | C59: 75,000 | D59: 6201 | E59: 50 | F59: 6,250 | G59: 143,701 | H59: 144,300 | I59: 11,976 | J59: 12,025 | K59: 6.35
A60: C4 | B60: 75,001 | C60: 75,600 | D60: 6251 | E60: 50 | F60: 6,300 | G60: 144,301 | H60: 144,900 | I60: 12,026 | J60: 12,075 | K60: 6.43
A61: C4 | B61: 75,601 | C61: 76,200 | D61: 6301 | E61: 50 | F61: 6,350 | G61: 144,901 | H61: 145,500 | I61: 12,076 | J61: 12,125 | K61: 6.49
A62: C4 | B62: 76,201 | C62: 76,800 | D62: 6351 | E62: 50 | F62: 6,400 | G62: 145,501 | H62: 146,100 | I62: 12,126 | J62: 12,175 | K62: 6.55
A63: C4 | B63: 76,801 | C63: 77,400 | D63: 6401 | E63: 50 | F63: 6,450 | G63: 146,101 | H63: 146,700 | I63: 12,176 | J63: 12,225 | K63: 6.6
A64: C4 | B64: 77,401 | C64: 78,000 | D64: 6451 | E64: 50 | F64: 6,500 | G64: 146,701 | H64: 147,300 | I64: 12,226 | J64: 12,275 | K64: 6.68
A65: C4 | B65: 78,001 | C65: 78,600 | D65: 6501 | E65: 50 | F65: 6,550 | G65: 147,301 | H65: 147,900 | I65: 12,276 | J65: 12,325 | K65: 6.73
A66: C4 | B66: =(D66-1)*12+1 -> 78,601 | C66: =F66*12 -> 79,200 | D66: 6551 | E66: 50 | F66: =D66-1+E66 -> 6,600 | G66: 147,901 | H66: 148,500 | I66: =(G66-1)/12+1 -> 12,326 | J66: =H66/12 -> 12,375 | K66: 6.79
A67: C4 | B67: 79,201 | C67: 79,800 | D67: 6601 | E67: 50 | F67: 6,650 | G67: =MIN((B67-1)*2+1,B67+69300) -> 148,501 | H67: =MIN((C67)*2,C67+69300) -> 149,100 | I67: 12,376 | J67: 12,425 | K67: 6.83
A68: C4 | B68: 79,801 | C68: 80,400 | D68: 6651 | E68: 50 | F68: 6,700 | G68: 149,101 | H68: 149,700 | I68: 12,426 | J68: 12,475 | K68: 6.91
A69: C4 | B69: 80,401 | C69: 81,000 | D69: 6701 | E69: 50 | F69: 6,750 | G69: 149,701 | H69: 150,300 | I69: 12,476 | J69: 12,525 | K69: 6.98
A70: C4 | B70: 81,001 | C70: 81,600 | D70: 6751 | E70: 50 | F70: 6,800 | G70: 150,301 | H70: 150,900 | I70: 12,526 | J70: 12,575 | K70: 7.04
A71: C4 | B71: 81,601 | C71: 82,200 | D71: 6801 | E71: 50 | F71: 6,850 | G71: 150,901 | H71: 151,500 | I71: 12,576 | J71: 12,625 | K71: 7.12
A72: C4 | B72: 82,201 | C72: 82,800 | D72: 6851 | E72: 50 | F72: 6,900 | G72: 151,501 | H72: 152,100 | I72: 12,626 | J72: 12,675 | K72: 7.18
A73: C4 | B73: 82,801 | C73: 83,400 | D73: 6901 | E73: 50 | F73: 6,950 | G73: 152,101 | H73: 152,700 | I73: 12,676 | J73: 12,725 | K73: 7.25
A74: C4 | B74: 83,401 | C74: 84,000 | D74: 6951 | E74: 50 | F74: 7,000 | G74: 152,701 | H74: 153,300 | I74: 12,726 | J74: 12,775 | K74: 7.31
A75: C4 | B75: 84,001 | C75: 84,600 | D75: 7001 | E75: 50 | F75: 7,050 | G75: 153,301 | H75: 153,900 | I75: 12,776 | J75: 12,825 | K75: 7.38
A76: C4 | B76: 84,601 | C76: 85,200 | D76: 7051 | E76: 50 | F76: 7,100 | G76: 153,901 | H76: 154,500 | I76: 12,826 | J76: 12,875 | K76: 7.44
A77: C4 | B77: 85,201 | C77: 85,800 | D77: 7101 | E77: 50 | F77: 7,150 | G77: 154,501 | H77: 155,100 | I77: 12,876 | J77: 12,925 | K77: 7.5
A78: C4 | B78: 85,801 | C78: 86,400 | D78: 7151 | E78: 50 | F78: 7,200 | G78: 155,101 | H78: 155,700 | I78: 12,926 | J78: 12,975 | K78: 7.56
A79: C4 | B79: 86,401 | C79: 87,000 | D79: 7201 | E79: 50 | F79: 7,250 | G79: 155,701 | H79: 156,300 | I79: 12,976 | J79: 13,025 | K79: 7.64
A80: C4 | B80: 87,001 | C80: 87,600 | D80: 7251 | E80: 50 | F80: 7,300 | G80: 156,301 | H80: 156,900 | I80: 13,026 | J80: 13,075 | K80: 7.69
A81: C4 | B81: 87,601 | C81: 88,200 | D81: 7301 | E81: 50 | F81: 7,350 | G81: 156,901 | H81: 157,500 | I81: 13,076 | J81: 13,125 | K81: 7.75
A82: C4 | B82: 88,201 | C82: 88,800 | D82: 7351 | E82: 50 | F82: 7,400 | G82: 157,501 | H82: 158,100 | I82: 13,126 | J82: 13,175 | K82: 7.79
A83: C4 | B83: 88,801 | C83: 89,400 | D83: 7401 | E83: 50 | F83: 7,450 | G83: 158,101 | H83: 158,700 | I83: 13,176 | J83: 13,225 | K83: 7.88
A84: C4 | B84: 89,401 | C84: 90,000 | D84: 7451 | E84: 50 | F84: 7,500 | G84: 158,701 | H84: 159,300 | I84: 13,226 | J84: 13,275 | K84: 7.92
A85: C4 | B85: 90,001 | C85: 90,600 | D85: 7501 | E85: 50 | F85: 7,550 | G85: 159,301 | H85: 159,900 | I85: 13,276 | J85: 13,325 | K85: 7.99
A86: C4 | B86: 90,601 | C86: 91,200 | D86: 7551 | E86: 50 | F86: 7,600 | G86: 159,901 | H86: 160,500 | I86: 13,326 | J86: 13,375 | K86: 8.03
A87: C4 | B87: 91,201 | C87: 91,800 | D87: 7601 | E87: 50 | F87: 7,650 | G87: 160,501 | H87: 161,100 | I87: 13,376 | J87: 13,425 | K87: 8.1
A88: C4 | B88: 91,801 | C88: 92,400 | D88: 7651 | E88: 50 | F88: 7,700 | G88: 161,101 | H88: 161,700 | I88: 13,426 | J88: 13,475 | K88: 8.15
A89: C4 | B89: 92,401 | C89: 93,000 | D89: 7701 | E89: 50 | F89: 7,750 | G89: 161,701 | H89: 162,300 | I89: 13,476 | J89: 13,525 | K89: 8.2
A90: C4 | B90: 93,001 | C90: 93,600 | D90: 7751 | E90: 50 | F90: 7,800 | G90: 162,301 | H90: 162,900 | I90: 13,526 | J90: 13,575 | K90: 8.24
A91: C4 | B91: 93,601 | C91: 94,200 | D91: 7801 | E91: 50 | F91: 7,850 | G91: 162,901 | H91: 163,500 | I91: 13,576 | J91: 13,625 | K91: 8.28
A92: C4 | B92: 94,201 | C92: 94,800 | D92: 7851 | E92: 50 | F92: 7,900 | G92: 163,501 | H92: 164,100 | I92: 13,626 | J92: 13,675 | K92: 8.33
A93: C4 | B93: 94,801 | C93: 95,400 | D93: 7901 | E93: 50 | F93: 7,950 | G93: 164,101 | H93: 164,700 | I93: 13,676 | J93: 13,725 | K93: 8.36
A94: C4 | B94: 95,401 | C94: 96,000 | D94: 7951 | E94: 50 | F94: 8,000 | G94: 164,701 | H94: 165,300 | I94: 13,726 | J94: 13,775 | K94: 8.41
A95: C4 | B95: 96,001 | C95: 96,600 | D95: 8001 | E95: 50 | F95: 8,050 | G95: 165,301 | H95: 165,900 | I95: 13,776 | J95: 13,825 | K95: 8.46
A96: C4 | B96: 96,601 | C96: 97,200 | D96: 8051 | E96: 50 | F96: 8,100 | G96: 165,901 | H96: 166,500 | I96: 13,826 | J96: 13,875 | K96: 8.5
A97: C4 | B97: 97,201 | C97: 97,800 | D97: 8101 | E97: 50 | F97: 8,150 | G97: 166,501 | H97: 167,100 | I97: 13,876 | J97: 13,925 | K97: 8.53
A98: C4 | B98: 97,801 | C98: 98,400 | D98: 8151 | E98: 50 | F98: 8,200 | G98: 167,101 | H98: 167,700 | I98: 13,926 | J98: 13,975 | K98: 8.58
A99: C4 | B99: 98,401 | C99: 99,000 | D99: 8201 | E99: 50 | F99: 8,250 | G99: 167,701 | H99: 168,300 | I99: 13,976 | J99: 14,025 | K99: 8.62
A100: C4 | B100: 99,001 | C100: 99,600 | D100: 8251 | E100: 50 | F100: 8,300 | G100: 168,301 | H100: 168,900 | I100: 14,026 | J100: 14,075 | K100: 8.67
A101: C4 | B101: 99,601 | C101: 100,200 | D101: 8301 | E101: 50 | F101: 8,350 | G101: 168,901 | H101: 169,500 | I101: 14,076 | J101: 14,125 | K101: 8.7
A102: C4 | B102: 100,201 | C102: 100,800 | D102: 8351 | E102: 50 | F102: 8,400 | G102: 169,501 | H102: 170,100 | I102: 14,126 | J102: 14,175 | K102: 8.75
A103: C4 | B103: 100,801 | C103: 101,400 | D103: 8401 | E103: 50 | F103: 8,450 | G103: 170,101 | H103: 170,700 | I103: 14,176 | J103: 14,225 | K103: 8.79
A104: C4 | B104: 101,401 | C104: 102,000 | D104: 8451 | E104: 50 | F104: 8,500 | G104: 170,701 | H104: 171,300 | I104: 14,226 | J104: 14,275 | K104: 8.82
A105: C4 | B105: 102,001 | C105: 102,600 | D105: 8501 | E105: 50 | F105: 8,550 | G105: 171,301 | H105: 171,900 | I105: 14,276 | J105: 14,325 | K105: 8.88
A106: C4 | B106: 102,601 | C106: 103,200 | D106: 8551 | E106: 50 | F106: 8,600 | G106: 171,901 | H106: 172,500 | I106: 14,326 | J106: 14,375 | K106: 8.91
A107: C4 | B107: 103,201 | C107: 103,800 | D107: 8601 | E107: 50 | F107: 8,650 | G107: 172,501 | H107: 173,100 | I107: 14,376 | J107: 14,425 | K107: 8.94
A108: C4 | B108: 103,801 | C108: 104,400 | D108: 8651 | E108: 50 | F108: 8,700 | G108: 173,101 | H108: 173,700 | I108: 14,426 | J108: 14,475 | K108: 9
A109: C4 | B109: 104,401 | C109: 105,000 | D109: 8701 | E109: 50 | F109: 8,750 | G109: 173,701 | H109: 174,300 | I109: 14,476 | J109: 14,525 | K109: 9.03
A110: C4 | B110: 105,001 | C110: 105,600 | D110: 8751 | E110: 50 | F110: 8,800 | G110: 174,301 | H110: 174,900 | I110: 14,526 | J110: 14,575 | K110: 9.06
A111: C4 | B111: 105,601 | C111: 106,200 | D111: 8801 | E111: 50 | F111: 8,850 | G111: 174,901 | H111: 175,500 | I111: 14,576 | J111: 14,625 | K111: 9.11
A112: C4 | B112: 106,201 | C112: 106,800 | D112: 8851 | E112: 50 | F112: 8,900 | G112: 175,501 | H112: 176,100 | I112: 14,626 | J112: 14,675 | K112: 9.14
A113: C4 | B113: 106,801 | C113: 107,400 | D113: 8901 | E113: 50 | F113: 8,950 | G113: 176,101 | H113: 176,700 | I113: 14,676 | J113: 14,725 | K113: 9.17
A114: C4 | B114: 107,401 | C114: 108,000 | D114: 8951 | E114: 50 | F114: 9,000 | G114: 176,701 | H114: 177,300 | I114: 14,726 | J114: 14,775 | K114: 9.23
A115: C4 | B115: 108,001 | C115: 108,600 | D115: 9001 | E115: 50 | F115: 9,050 | G115: 177,301 | H115: 177,900 | I115: 14,776 | J115: 14,825 | K115: 9.26
A116: C4 | B116: 108,601 | C116: 109,200 | D116: 9051 | E116: 50 | F116: 9,100 | G116: 177,901 | H116: 178,500 | I116: 14,826 | J116: 14,875 | K116: 9.29
A117: C4 | B117: 109,201 | C117: 109,800 | D117: 9101 | E117: 50 | F117: 9,150 | G117: 178,501 | H117: 179,100 | I117: 14,876 | J117: 14,925 | K117: 9.32
A118: C4 | B118: 109,801 | C118: 110,400 | D118: 9151 | E118: 50 | F118: 9,200 | G118: 179,101 | H118: 179,700 | I118: 14,926 | J118: 14,975 | K118: 9.37
A119: C4 | B119: 110,401 | C119: 111,000 | D119: 9201 | E119: 50 | F119: 9,250 | G119: 179,701 | H119: 180,300 | I119: 14,976 | J119: 15,025 | K119: 9.4
A120: C4 | B120: 111,001 | C120: 111,600 | D120: 9251 | E120: 50 | F120: 9,300 | G120: 180,301 | H120: 180,900 | I120: 15,026 | J120: 15,075 | K120: 9.43
A121: C4 | B121: 111,601 | C121: 112,200 | D121: 9301 | E121: 50 | F121: 9,350 | G121: 180,901 | H121: 181,500 | I121: 15,076 | J121: 15,125 | K121: 9.47
A122: C4 | B122: 112,201 | C122: 112,800 | D122: 9351 | E122: 50 | F122: 9,400 | G122: 181,501 | H122: 182,100 | I122: 15,126 | J122: 15,175 | K122: 9.52
A123: C4 | B123: 112,801 | C123: 113,400 | D123: 9401 | E123: 50 | F123: 9,450 | G123: 182,101 | H123: 182,700 | I123: 15,176 | J123: 15,225 | K123: 9.55
A124: C4 | B124: 113,401 | C124: 114,000 | D124: 9451 | E124: 50 | F124: 9,500 | G124: 182,701 | H124: 183,300 | I124: 15,226 | J124: 15,275 | K124: 9.59
A125: C4 | B125: 114,001 | C125: 114,600 | D125: 9501 | E125: 50 | F125: 9,550 | G125: 183,301 | H125: 183,900 | I125: 15,276 | J125: 15,325 | K125: 9.62
A126: C4 | B126: 114,601 | C126: 115,200 | D126: 9551 | E126: 50 | F126: 9,600 | G126: 183,901 | H126: 184,500 | I126: 15,326 | J126: 15,375 | K126: 9.67
A127: C4 | B127: 115,201 | C127: 115,800 | D127: 9601 | E127: 50 | F127: 9,650 | G127: 184,501 | H127: 185,100 | I127: 15,376 | J127: 15,425 | K127: 9.7
A128: C4 | B128: 115,801 | C128: 116,400 | D128: 9651 | E128: 50 | F128: 9,700 | G128: 185,101 | H128: 185,700 | I128: 15,426 | J128: 15,475 | K128: 9.74
A129: C4 | B129: 116,401 | C129: 117,000 | D129: 9701 | E129: 50 | F129: 9,750 | G129: 185,701 | H129: 186,300 | I129: 15,476 | J129: 15,525 | K129: 9.78
A130: C4 | B130: =(D130-1)*12+1 -> 117,001 | C130: =F130*12 -> 117,600 | D130: 9751 | E130: 50 | F130: =D130-1+E130 -> 9,800 | G130: 186,301 | H130: 186,900 | I130: =(G130-1)/12+1 -> 15,526 | J130: =H130/12 -> 15,575 | K130: 9.81
A131: C4 | B131: 117,601 | C131: 118,200 | D131: 9801 | E131: 50 | F131: 9,850 | G131: =MIN((B131-1)*2+1,B131+69300) -> 186,901 | H131: =MIN((C131)*2,C131+69300) -> 187,500 | I131: 15,576 | J131: 15,625 | K131: 9.85
A132: C4 | B132: 118,201 | C132: 118,800 | D132: 9851 | E132: 50 | F132: 9,900 | G132: 187,501 | H132: 188,100 | I132: 15,626 | J132: 15,675 | K132: 9.89
A133: C4 | B133: 118,801 | C133: 119,400 | D133: 9901 | E133: 50 | F133: 9,950 | G133: 188,101 | H133: 188,700 | I133: 15,676 | J133: 15,725 | K133: 9.94
A134: C4 | B134: 119,401 | C134: 120,000 | D134: 9951 | E134: 50 | F134: 10,000 | G134: 188,701 | H134: 189,300 | I134: 15,726 | J134: 15,775 | K134: 9.96
A135: C4 | B135: 120,001 | C135: 120,600 | D135: 10001 | E135: 50 | F135: 10,050 | G135: 189,301 | H135: 189,900 | I135: 15,776 | J135: 15,825 | K135: 10
A136: C4 | B136: 120,601 | C136: 121,200 | D136: 10051 | E136: 50 | F136: 10,100 | G136: 189,901 | H136: 190,500 | I136: 15,826 | J136: 15,875 | K136: 10.04
A137: C4 | B137: 121,201 | C137: 121,800 | D137: 10101 | E137: 50 | F137: 10,150 | G137: 190,501 | H137: 191,100 | I137: 15,876 | J137: 15,925 | K137: 10.08
A138: C4 | B138: 121,801 | C138: 122,400 | D138: 10151 | E138: 50 | F138: 10,200 | G138: 191,101 | H138: 191,700 | I138: 15,926 | J138: 15,975 | K138: 10.11
A139: C4 | B139: 122,401 | C139: 123,000 | D139: 10201 | E139: 50 | F139: 10,250 | G139: 191,701 | H139: 192,300 | I139: 15,976 | J139: 16,025 | K139: 10.15
A140: C4 | B140: 123,001 | C140: 123,600 | D140: 10251 | E140: 50 | F140: 10,300 | G140: 192,301 | H140: 192,900 | I140: 16,026 | J140: 16,075 | K140: 10.18
A141: C4 | B141: 123,601 | C141: 124,200 | D141: 10301 | E141: 50 | F141: 10,350 | G141: 192,901 | H141: 193,500 | I141: 16,076 | J141: 16,125 | K141: 10.21
A142: C4 | B142: 124,201 | C142: 124,800 | D142: 10351 | E142: 50 | F142: 10,400 | G142: 193,501 | H142: 194,100 | I142: 16,126 | J142: 16,175 | K142: 10.25
A143: C4 | B143: 124,801 | C143: 125,400 | D143: 10401 | E143: 50 | F143: 10,450 | G143: 194,101 | H143: 194,700 | I143: 16,176 | J143: 16,225 | K143: 10.28
A144: C4 | B144: 125,401 | C144: 126,000 | D144: 10451 | E144: 50 | F144: 10,500 | G144: 194,701 | H144: 195,300 | I144: 16,226 | J144: 16,275 | K144: 10.32
A145: C4 | B145: 126,001 | C145: 126,600 | D145: 10501 | E145: 50 | F145: 10,550 | G145: 195,301 | H145: 195,900 | I145: 16,276 | J145: 16,325 | K145: 10.35
A146: C4 | B146: 126,601 | C146: 127,200 | D146: 10551 | E146: 50 | F146: 10,600 | G146: 195,901 | H146: 196,500 | I146: 16,326 | J146: 16,375 | K146: 10.38
A147: C4 | B147: 127,201 | C147: 127,800 | D147: 10601 | E147: 50 | F147: 10,650 | G147: 196,501 | H147: 197,100 | I147: 16,376 | J147: 16,425 | K147: 10.43
A148: C4 | B148: 127,801 | C148: 128,400 | D148: 10651 | E148: 50 | F148: 10,700 | G148: 197,101 | H148: 197,700 | I148: 16,426 | J148: 16,475 | K148: 10.45
A149: C4 | B149: 128,401 | C149: 129,000 | D149: 10701 | E149: 50 | F149: 10,750 | G149: 197,701 | H149: 198,300 | I149: 16,476 | J149: 16,525 | K149: 10.48
A150: C4 | B150: 129,001 | C150: 129,600 | D150: 10751 | E150: 50 | F150: 10,800 | G150: 198,301 | H150: 198,900 | I150: 16,526 | J150: 16,575 | K150: 10.51
A151: C4 | B151: 129,601 | C151: 130,200 | D151: 10801 | E151: 50 | F151: 10,850 | G151: 198,901 | H151: 199,500 | I151: 16,576 | J151: 16,625 | K151: 10.55
A152: C4 | B152: 130,201 | C152: 130,800 | D152: 10851 | E152: 50 | F152: 10,900 | G152: 199,501 | H152: 200,100 | I152: 16,626 | J152: 16,675 | K152: 10.58
A153: C4 | B153: 130,801 | C153: 131,400 | D153: 10901 | E153: 50 | F153: 10,950 | G153: 200,101 | H153: 200,700 | I153: 16,676 | J153: 16,725 | K153: 10.61
A154: C4 | B154: 131,401 | C154: 132,000 | D154: 10951 | E154: 50 | F154: 11,000 | G154: 200,701 | H154: 201,300 | I154: 16,726 | J154: 16,775 | K154: 10.66
A155: C4 | B155: 132,001 | C155: 132,600 | D155: 11001 | E155: 50 | F155: 11,050 | G155: 201,301 | H155: 201,900 | I155: 16,776 | J155: 16,825 | K155: 10.69
A156: C4 | B156: 132,601 | C156: 133,200 | D156: 11051 | E156: 50 | F156: 11,100 | G156: 201,901 | H156: 202,500 | I156: 16,826 | J156: 16,875 | K156: 10.72
A157: C4 | B157: 133,201 | C157: 133,800 | D157: 11101 | E157: 50 | F157: 11,150 | G157: 202,501 | H157: 203,100 | I157: 16,876 | J157: 16,925 | K157: 10.75
A158: C4 | B158: 133,801 | C158: 134,400 | D158: 11151 | E158: 50 | F158: 11,200 | G158: 203,101 | H158: 203,700 | I158: 16,926 | J158: 16,975 | K158: 10.8
A159: C4 | B159: 134,401 | C159: 135,000 | D159: 11201 | E159: 50 | F159: 11,250 | G159: 203,701 | H159: 204,300 | I159: 16,976 | J159: 17,025 | K159: 10.82
A160: C4 | B160: 135,001 | C160: 135,600 | D160: 11251 | E160: 50 | F160: 11,300 | G160: 204,301 | H160: 204,900 | I160: 17,026 | J160: 17,075 | K160: 10.87
A161: C4 | B161: 135,601 | C161: 136,200 | D161: 11301 | E161: 50 | F161: 11,350 | G161: 204,901 | H161: 205,500 | I161: 17,076 | J161: 17,125 | K161: 10.89
A162: C4 | B162: 136,201 | C162: 136,800 | D162: 11351 | E162: 50 | F162: 11,400 | G162: 205,501 | H162: 206,100 | I162: 17,126 | J162: 17,175 | K162: 10.94
A163: C4 | B163: 136,801 | C163: 137,400 | D163: 11401 | E163: 50 | F163: 11,450 | G163: 206,101 | H163: 206,700 | I163: 17,176 | J163: 17,225 | K163: 10.97
A164: C4 | B164: 137,401 | C164: 138,000 | D164: 11451 | E164: 50 | F164: 11,500 | G164: 206,701 | H164: 207,300 | I164: 17,226 | J164: 17,275 | K164: 11
A165: C4 | B165: 138,001 | C165: 138,600 | D165: 11501 | E165: 50 | F165: 11,550 | G165: 207,301 | H165: 207,900 | I165: 17,276 | J165: 17,325 | K165: 11.04
A166: C4 | B166: 138,601 | C166: 139,200 | D166: 11551 | E166: 50 | F166: 11,600 | G166: 207,901 | H166: 208,500 | I166: 17,326 | J166: 17,375 | K166: 11.08
A167: C4 | B167: 139,201 | C167: 139,800 | D167: 11601 | E167: 50 | F167: 11,650 | G167: 208,501 | H167: 209,100 | I167: 17,376 | J167: 17,425 | K167: 11.12
A168: C4 | B168: 139,801 | C168: 140,400 | D168: 11651 | E168: 50 | F168: 11,700 | G168: 209,101 | H168: 209,700 | I168: 17,426 | J168: 17,475 | K168: 11.14
A169: C4 | B169: 140,401 | C169: 141,000 | D169: 11701 | E169: 50 | F169: 11,750 | G169: 209,701 | H169: 210,300 | I169: 17,476 | J169: 17,525 | K169: 11.18
A170: C4 | B170: 141,001 | C170: 141,600 | D170: 11751 | E170: 50 | F170: 11,800 | G170: 210,301 | H170: 210,900 | I170: 17,526 | J170: 17,575 | K170: 11.21
A171: C4 | B171: 141,601 | C171: 142,200 | D171: 11801 | E171: 50 | F171: 11,850 | G171: 210,901 | H171: 211,500 | I171: 17,576 | J171: 17,625 | K171: 11.25
A172: C4 | B172: 142,201 | C172: 142,800 | D172: 11851 | E172: 50 | F172: 11,900 | G172: 211,501 | H172: 212,100 | I172: 17,626 | J172: 17,675 | K172: 11.28
A173: C4 | B173: 142,801 | C173: 143,400 | D173: 11901 | E173: 50 | F173: 11,950 | G173: 212,101 | H173: 212,700 | I173: 17,676 | J173: 17,725 | K173: 11.3
A174: C4 | B174: 143,401 | C174: 144,000 | D174: 11951 | E174: 50 | F174: 12,000 | G174: 212,701 | H174: 213,300 | I174: 17,726 | J174: 17,775 | K174: 11.34
A175: C4 | B175: 144,001 | C175: 144,600 | D175: 12001 | E175: 50 | F175: 12,050 | G175: 213,301 | H175: 213,900 | I175: 17,776 | J175: 17,825 | K175: 11.37
A176: C4 | B176: 144,601 | C176: 145,200 | D176: 12051 | E176: 50 | F176: 12,100 | G176: 213,901 | H176: 214,500 | I176: 17,826 | J176: 17,875 | K176: 11.41
A177: C4 | B177: 145,201 | C177: 145,800 | D177: 12101 | E177: 50 | F177: 12,150 | G177: 214,501 | H177: 215,100 | I177: 17,876 | J177: 17,925 | K177: 11.44
A178: C4 | B178: 145,801 | C178: 146,400 | D178: 12151 | E178: 50 | F178: 12,200 | G178: 215,101 | H178: 215,700 | I178: 17,926 | J178: 17,975 | K178: 11.48
A179: C4 | B179: 146,401 | C179: 147,000 | D179: 12201 | E179: 50 | F179: 12,250 | G179: 215,701 | H179: 216,300 | I179: 17,976 | J179: 18,025 | K179: 11.51
A180: C4 | B180: 147,001 | C180: 147,600 | D180: 12251 | E180: 50 | F180: 12,300 | G180: 216,301 | H180: 216,900 | I180: 18,026 | J180: 18,075 | K180: 11.55
A181: C4 | B181: 147,601 | C181: 148,200 | D181: 12301 | E181: 50 | F181: 12,350 | G181: 216,901 | H181: 217,500 | I181: 18,076 | J181: 18,125 | K181: 11.59
A182: C4 | B182: 148,201 | C182: 148,800 | D182: 12351 | E182: 50 | F182: 12,400 | G182: 217,501 | H182: 218,100 | I182: 18,126 | J182: 18,175 | K182: 11.61
A183: C4 | B183: 148,801 | C183: 149,400 | D183: 12401 | E183: 50 | F183: 12,450 | G183: 218,101 | H183: 218,700 | I183: 18,176 | J183: 18,225 | K183: 11.66
A184: C4 | B184: 149,401 | C184: 150,000 | D184: 12451 | E184: 50 | F184: 12,500 | G184: 218,701 | H184: 219,300 | I184: 18,226 | J184: 18,275 | K184: 11.7
A185: C4 | B185: 150,001 | C185: 150,600 | D185: 12501 | E185: 50 | F185: 12,550 | G185: 219,301 | H185: 219,900 | I185: 18,276 | J185: 18,325 | K185: 11.74
A186: C4 | B186: 150,601 | C186: 151,200 | D186: 12551 | E186: 50 | F186: 12,600 | G186: 219,901 | H186: 220,500 | I186: 18,326 | J186: 18,375 | K186: 11.78
A187: C4 | B187: 151,201 | C187: 151,800 | D187: 12601 | E187: 50 | F187: 12,650 | G187: 220,501 | H187: 221,100 | I187: 18,376 | J187: 18,425 | K187: 11.82
A188: C4 | B188: 151,801 | C188: 152,400 | D188: 12651 | E188: 50 | F188: 12,700 | G188: 221,101 | H188: 221,700 | I188: 18,426 | J188: 18,475 | K188: 11.86
A189: C4 | B189: 152,401 | C189: 153,000 | D189: 12701 | E189: 50 | F189: 12,750 | G189: 221,701 | H189: 222,300 | I189: 18,476 | J189: 18,525 | K189: 11.9
A190: C4 | B190: 153,001 | C190: 153,600 | D190: 12751 | E190: 50 | F190: 12,800 | G190: 222,301 | H190: 222,900 | I190: 18,526 | J190: 18,575 | K190: 11.94
A191: C4 | B191: 153,601 | C191: 154,200 | D191: 12801 | E191: 50 | F191: 12,850 | G191: 222,901 | H191: 223,500 | I191: 18,576 | J191: 18,625 | K191: 11.98
A192: C4 | B192: 154,201 | C192: 154,800 | D192: 12851 | E192: 50 | F192: 12,900 | G192: 223,501 | H192: 224,100 | I192: 18,626 | J192: 18,675 | K192: 12.02
A193: C4 | B193: 154,801 | C193: 155,400 | D193: 12901 | E193: 50 | F193: 12,950 | G193: 224,101 | H193: 224,700 | I193: 18,676 | J193: 18,725 | K193: 12.05
A194: C4 | B194: =(D194-1)*12+1 -> 155,401 | C194: =F194*12 -> 156,000 | D194: 12951 | E194: 50 | F194: =D194-1+E194 -> 13,000 | G194: 224,701 | H194: 225,300 | I194: =(G194-1)/12+1 -> 18,726 | J194: =H194/12 -> 18,775 | K194: 12.1
A195: C4 | B195: 156,001 | C195: 156,600 | D195: 13001 | E195: 50 | F195: 13,050 | G195: =MIN((B195-1)*2+1,B195+69300) -> 225,301 | H195: =MIN((C195)*2,C195+69300) -> 225,900 | I195: 18,776 | J195: 18,825 | K195: 12.13
A196: C4 | B196: 156,601 | C196: 157,200 | D196: 13051 | E196: 50 | F196: 13,100 | G196: 225,901 | H196: 226,500 | I196: 18,826 | J196: 18,875 | K196: 12.18
A197: C4 | B197: 157,201 | C197: 157,800 | D197: 13101 | E197: 50 | F197: 13,150 | G197: 226,501 | H197: 227,100 | I197: 18,876 | J197: 18,925 | K197: 12.22
A198: C4 | B198: 157,801 | C198: 158,400 | D198: 13151 | E198: 50 | F198: 13,200 | G198: 227,101 | H198: 227,700 | I198: 18,926 | J198: 18,975 | K198: 12.27
A199: C4 | B199: 158,401 | C199: 159,000 | D199: 13201 | E199: 50 | F199: 13,250 | G199: 227,701 | H199: 228,300 | I199: 18,976 | J199: 19,025 | K199: 12.31
A200: C4 | B200: 159,001 | C200: 159,600 | D200: 13251 | E200: 50 | F200: 13,300 | G200: 228,301 | H200: 228,900 | I200: 19,026 | J200: 19,075 | K200: 12.34
... 296 more rows

Sheet C5 (hidden)
A1: Barème | B1: Rev annuel début Barème C | C1: Rev annuel Fin Barème C | D1: Rev mensuel Début Barème C | E1: Tranche Barème C | F1: Rev mensuel Fin Barème C | G1: Rev annuel Début Barème C Rectification (Cumul couple) | H1: Rev annuel Fin Barème C Rectification (Cumul couple) | I1: Rev mensuel Début Barème C Rectification (Cumul couple) | J1: Rev mensuel Fin Barème C Rectification (Cumul couple) | K1: Taux imposition
A2: C5 | B2: =(D2-1)*12+1 -> 1 | C2: =F2*12 -> 43,800 | D2: 1 | E2: 3650 | F2: =D2-1+E2 -> 3,650 | G2: =MIN((B2-1)*2+1,B2+69300) -> 1 | H2: =MIN((C2)*2,C2+69300) -> 87,600 | I2: =(G2-1)/12+1 -> 1 | J2: =H2/12 -> 7,300 | K2: 0
A3: C5 | B3: 43,801 | C3: 44,400 | D3: 3651 | E3: 50 | F3: 3,700 | G3: =MIN((B3-1)*2+1,B3+69300) -> 87,601 | H3: =MIN((C3)*2,C3+69300) -> 88,800 | I3: 7,301 | J3: 7,400 | K3: 0.07
A4: C5 | B4: 44,401 | C4: 45,000 | D4: 3701 | E4: 50 | F4: 3,750 | G4: 88,801 | H4: 90,000 | I4: 7,401 | J4: 7,500 | K4: 0.11
A5: C5 | B5: 45,001 | C5: 45,600 | D5: 3751 | E5: 50 | F5: 3,800 | G5: 90,001 | H5: 91,200 | I5: 7,501 | J5: 7,600 | K5: 0.14
A6: C5 | B6: 45,601 | C6: 46,200 | D6: 3801 | E6: 50 | F6: 3,850 | G6: 91,201 | H6: 92,400 | I6: 7,601 | J6: 7,700 | K6: 0.19
A7: C5 | B7: 46,201 | C7: 46,800 | D7: 3851 | E7: 50 | F7: 3,900 | G7: 92,401 | H7: 93,600 | I7: 7,701 | J7: 7,800 | K7: 0.26
A8: C5 | B8: 46,801 | C8: 47,400 | D8: 3901 | E8: 50 | F8: 3,950 | G8: 93,601 | H8: 94,800 | I8: 7,801 | J8: 7,900 | K8: 0.33
A9: C5 | B9: 47,401 | C9: 48,000 | D9: 3951 | E9: 50 | F9: 4,000 | G9: 94,801 | H9: 96,000 | I9: 7,901 | J9: 8,000 | K9: 0.4
A10: C5 | B10: 48,001 | C10: 48,600 | D10: 4001 | E10: 50 | F10: 4,050 | G10: 96,001 | H10: 97,200 | I10: 8,001 | J10: 8,100 | K10: 0.46
A11: C5 | B11: 48,601 | C11: 49,200 | D11: 4051 | E11: 50 | F11: 4,100 | G11: 97,201 | H11: 98,400 | I11: 8,101 | J11: 8,200 | K11: 0.54
A12: C5 | B12: 49,201 | C12: 49,800 | D12: 4101 | E12: 50 | F12: 4,150 | G12: 98,401 | H12: 99,600 | I12: 8,201 | J12: 8,300 | K12: 0.64
A13: C5 | B13: 49,801 | C13: 50,400 | D13: 4151 | E13: 50 | F13: 4,200 | G13: 99,601 | H13: 100,800 | I13: 8,301 | J13: 8,400 | K13: 0.73
A14: C5 | B14: 50,401 | C14: 51,000 | D14: 4201 | E14: 50 | F14: 4,250 | G14: 100,801 | H14: 102,000 | I14: 8,401 | J14: 8,500 | K14: 0.83
A15: C5 | B15: 51,001 | C15: 51,600 | D15: 4251 | E15: 50 | F15: 4,300 | G15: 102,001 | H15: 103,200 | I15: 8,501 | J15: 8,600 | K15: 0.92
A16: C5 | B16: 51,601 | C16: 52,200 | D16: 4301 | E16: 50 | F16: 4,350 | G16: 103,201 | H16: 104,400 | I16: 8,601 | J16: 8,700 | K16: 1.02
A17: C5 | B17: 52,201 | C17: 52,800 | D17: 4351 | E17: 50 | F17: 4,400 | G17: 104,401 | H17: 105,600 | I17: 8,701 | J17: 8,800 | K17: 1.15
A18: C5 | B18: 52,801 | C18: 53,400 | D18: 4401 | E18: 50 | F18: 4,450 | G18: 105,601 | H18: 106,800 | I18: 8,801 | J18: 8,900 | K18: 1.25
A19: C5 | B19: 53,401 | C19: 54,000 | D19: 4451 | E19: 50 | F19: 4,500 | G19: 106,801 | H19: 108,000 | I19: 8,901 | J19: 9,000 | K19: 1.38
A20: C5 | B20: 54,001 | C20: 54,600 | D20: 4501 | E20: 50 | F20: 4,550 | G20: 108,001 | H20: 109,200 | I20: 9,001 | J20: 9,100 | K20: 1.49
A21: C5 | B21: 54,601 | C21: 55,200 | D21: 4551 | E21: 50 | F21: 4,600 | G21: 109,201 | H21: 110,400 | I21: 9,101 | J21: 9,200 | K21: 1.6
A22: C5 | B22: 55,201 | C22: 55,800 | D22: 4601 | E22: 50 | F22: 4,650 | G22: 110,401 | H22: 111,600 | I22: 9,201 | J22: 9,300 | K22: 1.71
A23: C5 | B23: 55,801 | C23: 56,400 | D23: 4651 | E23: 50 | F23: 4,700 | G23: 111,601 | H23: 112,800 | I23: 9,301 | J23: 9,400 | K23: 1.8
A24: C5 | B24: 56,401 | C24: 57,000 | D24: 4701 | E24: 50 | F24: 4,750 | G24: 112,801 | H24: 114,000 | I24: 9,401 | J24: 9,500 | K24: 1.92
A25: C5 | B25: 57,001 | C25: 57,600 | D25: 4751 | E25: 50 | F25: 4,800 | G25: 114,001 | H25: 115,200 | I25: 9,501 | J25: 9,600 | K25: 2.04
A26: C5 | B26: 57,601 | C26: 58,200 | D26: 4801 | E26: 50 | F26: 4,850 | G26: 115,201 | H26: 116,400 | I26: 9,601 | J26: 9,700 | K26: 2.16
A27: C5 | B27: 58,201 | C27: 58,800 | D27: 4851 | E27: 50 | F27: 4,900 | G27: 116,401 | H27: 117,600 | I27: 9,701 | J27: 9,800 | K27: 2.29
A28: C5 | B28: 58,801 | C28: 59,400 | D28: 4901 | E28: 50 | F28: 4,950 | G28: 117,601 | H28: 118,800 | I28: 9,801 | J28: 9,900 | K28: 2.4
A29: C5 | B29: 59,401 | C29: 60,000 | D29: 4951 | E29: 50 | F29: 5,000 | G29: 118,801 | H29: 120,000 | I29: 9,901 | J29: 10,000 | K29: 2.54
A30: C5 | B30: 60,001 | C30: 60,600 | D30: 5001 | E30: 50 | F30: 5,050 | G30: 120,001 | H30: 121,200 | I30: 10,001 | J30: 10,100 | K30: 2.65
A31: C5 | B31: 60,601 | C31: 61,200 | D31: 5051 | E31: 50 | F31: 5,100 | G31: 121,201 | H31: 122,400 | I31: 10,101 | J31: 10,200 | K31: 2.76
A32: C5 | B32: 61,201 | C32: 61,800 | D32: 5101 | E32: 50 | F32: 5,150 | G32: 122,401 | H32: 123,600 | I32: 10,201 | J32: 10,300 | K32: 2.88
A33: C5 | B33: 61,801 | C33: 62,400 | D33: 5151 | E33: 50 | F33: 5,200 | G33: 123,601 | H33: 124,800 | I33: 10,301 | J33: 10,400 | K33: 2.99
A34: C5 | B34: 62,401 | C34: 63,000 | D34: 5201 | E34: 50 | F34: 5,250 | G34: 124,801 | H34: 126,000 | I34: 10,401 | J34: 10,500 | K34: 3.09
A35: C5 | B35: 63,001 | C35: 63,600 | D35: 5251 | E35: 50 | F35: 5,300 | G35: 126,001 | H35: 127,200 | I35: 10,501 | J35: 10,600 | K35: 3.23
A36: C5 | B36: 63,601 | C36: 64,200 | D36: 5301 | E36: 50 | F36: 5,350 | G36: 127,201 | H36: 128,400 | I36: 10,601 | J36: 10,700 | K36: 3.37
A37: C5 | B37: 64,201 | C37: 64,800 | D37: 5351 | E37: 50 | F37: 5,400 | G37: 128,401 | H37: 129,600 | I37: 10,701 | J37: 10,800 | K37: 3.49
A38: C5 | B38: 64,801 | C38: 65,400 | D38: 5401 | E38: 50 | F38: 5,450 | G38: 129,601 | H38: 130,800 | I38: 10,801 | J38: 10,900 | K38: 3.61
A39: C5 | B39: 65,401 | C39: 66,000 | D39: 5451 | E39: 50 | F39: 5,500 | G39: 130,801 | H39: 132,000 | I39: 10,901 | J39: 11,000 | K39: 3.73
A40: C5 | B40: 66,001 | C40: 66,600 | D40: 5501 | E40: 50 | F40: 5,550 | G40: 132,001 | H40: 133,200 | I40: 11,001 | J40: 11,100 | K40: 3.86
A41: C5 | B41: 66,601 | C41: 67,200 | D41: 5551 | E41: 50 | F41: 5,600 | G41: 133,201 | H41: 134,400 | I41: 11,101 | J41: 11,200 | K41: 3.99
A42: C5 | B42: 67,201 | C42: 67,800 | D42: 5601 | E42: 50 | F42: 5,650 | G42: 134,401 | H42: 135,600 | I42: 11,201 | J42: 11,300 | K42: 4.08
A43: C5 | B43: 67,801 | C43: 68,400 | D43: 5651 | E43: 50 | F43: 5,700 | G43: 135,601 | H43: 136,800 | I43: 11,301 | J43: 11,400 | K43: 4.21
A44: C5 | B44: 68,401 | C44: 69,000 | D44: 5701 | E44: 50 | F44: 5,750 | G44: 136,801 | H44: 138,000 | I44: 11,401 | J44: 11,500 | K44: 4.32
A45: C5 | B45: 69,001 | C45: 69,600 | D45: 5751 | E45: 50 | F45: 5,800 | G45: 138,001 | H45: 138,900 | I45: 11,501 | J45: 11,575 | K45: 4.47
A46: C5 | B46: 69,601 | C46: 70,200 | D46: 5801 | E46: 50 | F46: 5,850 | G46: 138,901 | H46: 139,500 | I46: 11,576 | J46: 11,625 | K46: 4.53
A47: C5 | B47: 70,201 | C47: 70,800 | D47: 5851 | E47: 50 | F47: 5,900 | G47: 139,501 | H47: 140,100 | I47: 11,626 | J47: 11,675 | K47: 4.61
A48: C5 | B48: 70,801 | C48: 71,400 | D48: 5901 | E48: 50 | F48: 5,950 | G48: 140,101 | H48: 140,700 | I48: 11,676 | J48: 11,725 | K48: 4.69
A49: C5 | B49: 71,401 | C49: 72,000 | D49: 5951 | E49: 50 | F49: 6,000 | G49: 140,701 | H49: 141,300 | I49: 11,726 | J49: 11,775 | K49: 4.78
A50: C5 | B50: 72,001 | C50: 72,600 | D50: 6001 | E50: 50 | F50: 6,050 | G50: 141,301 | H50: 141,900 | I50: 11,776 | J50: 11,825 | K50: 4.83
A51: C5 | B51: 72,601 | C51: 73,200 | D51: 6051 | E51: 50 | F51: 6,100 | G51: 141,901 | H51: 142,500 | I51: 11,826 | J51: 11,875 | K51: 4.91
A52: C5 | B52: 73,201 | C52: 73,800 | D52: 6101 | E52: 50 | F52: 6,150 | G52: 142,501 | H52: 143,100 | I52: 11,876 | J52: 11,925 | K52: 4.98
A53: C5 | B53: 73,801 | C53: 74,400 | D53: 6151 | E53: 50 | F53: 6,200 | G53: 143,101 | H53: 143,700 | I53: 11,926 | J53: 11,975 | K53: 5.07
A54: C5 | B54: 74,401 | C54: 75,000 | D54: 6201 | E54: 50 | F54: 6,250 | G54: 143,701 | H54: 144,300 | I54: 11,976 | J54: 12,025 | K54: 5.12
A55: C5 | B55: 75,001 | C55: 75,600 | D55: 6251 | E55: 50 | F55: 6,300 | G55: 144,301 | H55: 144,900 | I55: 12,026 | J55: 12,075 | K55: 5.21
A56: C5 | B56: 75,601 | C56: 76,200 | D56: 6301 | E56: 50 | F56: 6,350 | G56: 144,901 | H56: 145,500 | I56: 12,076 | J56: 12,125 | K56: 5.28
A57: C5 | B57: 76,201 | C57: 76,800 | D57: 6351 | E57: 50 | F57: 6,400 | G57: 145,501 | H57: 146,100 | I57: 12,126 | J57: 12,175 | K57: 5.35
A58: C5 | B58: 76,801 | C58: 77,400 | D58: 6401 | E58: 50 | F58: 6,450 | G58: 146,101 | H58: 146,700 | I58: 12,176 | J58: 12,225 | K58: 5.4
A59: C5 | B59: 77,401 | C59: 78,000 | D59: 6451 | E59: 50 | F59: 6,500 | G59: 146,701 | H59: 147,300 | I59: 12,226 | J59: 12,275 | K59: 5.48
A60: C5 | B60: 78,001 | C60: 78,600 | D60: 6501 | E60: 50 | F60: 6,550 | G60: 147,301 | H60: 147,900 | I60: 12,276 | J60: 12,325 | K60: 5.55
A61: C5 | B61: 78,601 | C61: 79,200 | D61: 6551 | E61: 50 | F61: 6,600 | G61: 147,901 | H61: 148,500 | I61: 12,326 | J61: 12,375 | K61: 5.61
A62: C5 | B62: 79,201 | C62: 79,800 | D62: 6601 | E62: 50 | F62: 6,650 | G62: 148,501 | H62: 149,100 | I62: 12,376 | J62: 12,425 | K62: 5.66
A63: C5 | B63: 79,801 | C63: 80,400 | D63: 6651 | E63: 50 | F63: 6,700 | G63: 149,101 | H63: 149,700 | I63: 12,426 | J63: 12,475 | K63: 5.74
A64: C5 | B64: 80,401 | C64: 81,000 | D64: 6701 | E64: 50 | F64: 6,750 | G64: 149,701 | H64: 150,300 | I64: 12,476 | J64: 12,525 | K64: 5.81
A65: C5 | B65: 81,001 | C65: 81,600 | D65: 6751 | E65: 50 | F65: 6,800 | G65: 150,301 | H65: 150,900 | I65: 12,526 | J65: 12,575 | K65: 5.87
A66: C5 | B66: =(D66-1)*12+1 -> 81,601 | C66: =F66*12 -> 82,200 | D66: 6801 | E66: 50 | F66: =D66-1+E66 -> 6,850 | G66: 150,901 | H66: 151,500 | I66: =(G66-1)/12+1 -> 12,576 | J66: =H66/12 -> 12,625 | K66: 5.94
A67: C5 | B67: 82,201 | C67: 82,800 | D67: 6851 | E67: 50 | F67: 6,900 | G67: =MIN((B67-1)*2+1,B67+69300) -> 151,501 | H67: =MIN((C67)*2,C67+69300) -> 152,100 | I67: 12,626 | J67: 12,675 | K67: 5.99
A68: C5 | B68: 82,801 | C68: 83,400 | D68: 6901 | E68: 50 | F68: 6,950 | G68: 152,101 | H68: 152,700 | I68: 12,676 | J68: 12,725 | K68: 6.05
A69: C5 | B69: 83,401 | C69: 84,000 | D69: 6951 | E69: 50 | F69: 7,000 | G69: 152,701 | H69: 153,300 | I69: 12,726 | J69: 12,775 | K69: 6.11
A70: C5 | B70: 84,001 | C70: 84,600 | D70: 7001 | E70: 50 | F70: 7,050 | G70: 153,301 | H70: 153,900 | I70: 12,776 | J70: 12,825 | K70: 6.19
A71: C5 | B71: 84,601 | C71: 85,200 | D71: 7051 | E71: 50 | F71: 7,100 | G71: 153,901 | H71: 154,500 | I71: 12,826 | J71: 12,875 | K71: 6.23
A72: C5 | B72: 85,201 | C72: 85,800 | D72: 7101 | E72: 50 | F72: 7,150 | G72: 154,501 | H72: 155,100 | I72: 12,876 | J72: 12,925 | K72: 6.29
A73: C5 | B73: 85,801 | C73: 86,400 | D73: 7151 | E73: 50 | F73: 7,200 | G73: 155,101 | H73: 155,700 | I73: 12,926 | J73: 12,975 | K73: 6.35
A74: C5 | B74: 86,401 | C74: 87,000 | D74: 7201 | E74: 50 | F74: 7,250 | G74: 155,701 | H74: 156,300 | I74: 12,976 | J74: 13,025 | K74: 6.42
A75: C5 | B75: 87,001 | C75: 87,600 | D75: 7251 | E75: 50 | F75: 7,300 | G75: 156,301 | H75: 156,900 | I75: 13,026 | J75: 13,075 | K75: 6.46
A76: C5 | B76: 87,601 | C76: 88,200 | D76: 7301 | E76: 50 | F76: 7,350 | G76: 156,901 | H76: 157,500 | I76: 13,076 | J76: 13,125 | K76: 6.52
A77: C5 | B77: 88,201 | C77: 88,800 | D77: 7351 | E77: 50 | F77: 7,400 | G77: 157,501 | H77: 158,100 | I77: 13,126 | J77: 13,175 | K77: 6.57
A78: C5 | B78: 88,801 | C78: 89,400 | D78: 7401 | E78: 50 | F78: 7,450 | G78: 158,101 | H78: 158,700 | I78: 13,176 | J78: 13,225 | K78: 6.64
A79: C5 | B79: 89,401 | C79: 90,000 | D79: 7451 | E79: 50 | F79: 7,500 | G79: 158,701 | H79: 159,300 | I79: 13,226 | J79: 13,275 | K79: 6.68
A80: C5 | B80: 90,001 | C80: 90,600 | D80: 7501 | E80: 50 | F80: 7,550 | G80: 159,301 | H80: 159,900 | I80: 13,276 | J80: 13,325 | K80: 6.73
A81: C5 | B81: 90,601 | C81: 91,200 | D81: 7551 | E81: 50 | F81: 7,600 | G81: 159,901 | H81: 160,500 | I81: 13,326 | J81: 13,375 | K81: 6.79
A82: C5 | B82: 91,201 | C82: 91,800 | D82: 7601 | E82: 50 | F82: 7,650 | G82: 160,501 | H82: 161,100 | I82: 13,376 | J82: 13,425 | K82: 6.85
A83: C5 | B83: 91,801 | C83: 92,400 | D83: 7651 | E83: 50 | F83: 7,700 | G83: 161,101 | H83: 161,700 | I83: 13,426 | J83: 13,475 | K83: 6.89
A84: C5 | B84: 92,401 | C84: 93,000 | D84: 7701 | E84: 50 | F84: 7,750 | G84: 161,701 | H84: 162,300 | I84: 13,476 | J84: 13,525 | K84: 6.94
A85: C5 | B85: 93,001 | C85: 93,600 | D85: 7751 | E85: 50 | F85: 7,800 | G85: 162,301 | H85: 162,900 | I85: 13,526 | J85: 13,575 | K85: 6.99
A86: C5 | B86: 93,601 | C86: 94,200 | D86: 7801 | E86: 50 | F86: 7,850 | G86: 162,901 | H86: 163,500 | I86: 13,576 | J86: 13,625 | K86: 7.06
A87: C5 | B87: 94,201 | C87: 94,800 | D87: 7851 | E87: 50 | F87: 7,900 | G87: 163,501 | H87: 164,100 | I87: 13,626 | J87: 13,675 | K87: 7.09
A88: C5 | B88: 94,801 | C88: 95,400 | D88: 7901 | E88: 50 | F88: 7,950 | G88: 164,101 | H88: 164,700 | I88: 13,676 | J88: 13,725 | K88: 7.15
A89: C5 | B89: 95,401 | C89: 96,000 | D89: 7951 | E89: 50 | F89: 8,000 | G89: 164,701 | H89: 165,300 | I89: 13,726 | J89: 13,775 | K89: 7.2
A90: C5 | B90: 96,001 | C90: 96,600 | D90: 8001 | E90: 50 | F90: 8,050 | G90: 165,301 | H90: 165,900 | I90: 13,776 | J90: 13,825 | K90: 7.24
A91: C5 | B91: 96,601 | C91: 97,200 | D91: 8051 | E91: 50 | F91: 8,100 | G91: 165,901 | H91: 166,500 | I91: 13,826 | J91: 13,875 | K91: 7.3
A92: C5 | B92: 97,201 | C92: 97,800 | D92: 8101 | E92: 50 | F92: 8,150 | G92: 166,501 | H92: 167,100 | I92: 13,876 | J92: 13,925 | K92: 7.37
A93: C5 | B93: 97,801 | C93: 98,400 | D93: 8151 | E93: 50 | F93: 8,200 | G93: 167,101 | H93: 167,700 | I93: 13,926 | J93: 13,975 | K93: 7.43
A94: C5 | B94: 98,401 | C94: 99,000 | D94: 8201 | E94: 50 | F94: 8,250 | G94: 167,701 | H94: 168,300 | I94: 13,976 | J94: 14,025 | K94: 7.47
A95: C5 | B95: 99,001 | C95: 99,600 | D95: 8251 | E95: 50 | F95: 8,300 | G95: 168,301 | H95: 168,900 | I95: 14,026 | J95: 14,075 | K95: 7.53
A96: C5 | B96: 99,601 | C96: 100,200 | D96: 8301 | E96: 50 | F96: 8,350 | G96: 168,901 | H96: 169,500 | I96: 14,076 | J96: 14,125 | K96: 7.59
A97: C5 | B97: 100,201 | C97: 100,800 | D97: 8351 | E97: 50 | F97: 8,400 | G97: 169,501 | H97: 170,100 | I97: 14,126 | J97: 14,175 | K97: 7.65
A98: C5 | B98: 100,801 | C98: 101,400 | D98: 8401 | E98: 50 | F98: 8,450 | G98: 170,101 | H98: 170,700 | I98: 14,176 | J98: 14,225 | K98: 7.69
A99: C5 | B99: 101,401 | C99: 102,000 | D99: 8451 | E99: 50 | F99: 8,500 | G99: 170,701 | H99: 171,300 | I99: 14,226 | J99: 14,275 | K99: 7.75
A100: C5 | B100: 102,001 | C100: 102,600 | D100: 8501 | E100: 50 | F100: 8,550 | G100: 171,301 | H100: 171,900 | I100: 14,276 | J100: 14,325 | K100: 7.81
A101: C5 | B101: 102,601 | C101: 103,200 | D101: 8551 | E101: 50 | F101: 8,600 | G101: 171,901 | H101: 172,500 | I101: 14,326 | J101: 14,375 | K101: 7.87
A102: C5 | B102: 103,201 | C102: 103,800 | D102: 8601 | E102: 50 | F102: 8,650 | G102: 172,501 | H102: 173,100 | I102: 14,376 | J102: 14,425 | K102: 7.9
A103: C5 | B103: 103,801 | C103: 104,400 | D103: 8651 | E103: 50 | F103: 8,700 | G103: 173,101 | H103: 173,700 | I103: 14,426 | J103: 14,475 | K103: 7.96
A104: C5 | B104: 104,401 | C104: 105,000 | D104: 8701 | E104: 50 | F104: 8,750 | G104: 173,701 | H104: 174,300 | I104: 14,476 | J104: 14,525 | K104: 8.02
A105: C5 | B105: 105,001 | C105: 105,600 | D105: 8751 | E105: 50 | F105: 8,800 | G105: 174,301 | H105: 174,900 | I105: 14,526 | J105: 14,575 | K105: 8.07
A106: C5 | B106: 105,601 | C106: 106,200 | D106: 8801 | E106: 50 | F106: 8,850 | G106: 174,901 | H106: 175,500 | I106: 14,576 | J106: 14,625 | K106: 8.13
A107: C5 | B107: 106,201 | C107: 106,800 | D107: 8851 | E107: 50 | F107: 8,900 | G107: 175,501 | H107: 176,100 | I107: 14,626 | J107: 14,675 | K107: 8.19
A108: C5 | B108: 106,801 | C108: 107,400 | D108: 8901 | E108: 50 | F108: 8,950 | G108: 176,101 | H108: 176,700 | I108: 14,676 | J108: 14,725 | K108: 8.23
A109: C5 | B109: 107,401 | C109: 108,000 | D109: 8951 | E109: 50 | F109: 9,000 | G109: 176,701 | H109: 177,300 | I109: 14,726 | J109: 14,775 | K109: 8.27
A110: C5 | B110: 108,001 | C110: 108,600 | D110: 9001 | E110: 50 | F110: 9,050 | G110: 177,301 | H110: 177,900 | I110: 14,776 | J110: 14,825 | K110: 8.3
A111: C5 | B111: 108,601 | C111: 109,200 | D111: 9051 | E111: 50 | F111: 9,100 | G111: 177,901 | H111: 178,500 | I111: 14,826 | J111: 14,875 | K111: 8.35
A112: C5 | B112: 109,201 | C112: 109,800 | D112: 9101 | E112: 50 | F112: 9,150 | G112: 178,501 | H112: 179,100 | I112: 14,876 | J112: 14,925 | K112: 8.4
A113: C5 | B113: 109,801 | C113: 110,400 | D113: 9151 | E113: 50 | F113: 9,200 | G113: 179,101 | H113: 179,700 | I113: 14,926 | J113: 14,975 | K113: 8.44
A114: C5 | B114: 110,401 | C114: 111,000 | D114: 9201 | E114: 50 | F114: 9,250 | G114: 179,701 | H114: 180,300 | I114: 14,976 | J114: 15,025 | K114: 8.47
A115: C5 | B115: 111,001 | C115: 111,600 | D115: 9251 | E115: 50 | F115: 9,300 | G115: 180,301 | H115: 180,900 | I115: 15,026 | J115: 15,075 | K115: 8.51
A116: C5 | B116: 111,601 | C116: 112,200 | D116: 9301 | E116: 50 | F116: 9,350 | G116: 180,901 | H116: 181,500 | I116: 15,076 | J116: 15,125 | K116: 8.55
A117: C5 | B117: 112,201 | C117: 112,800 | D117: 9351 | E117: 50 | F117: 9,400 | G117: 181,501 | H117: 182,100 | I117: 15,126 | J117: 15,175 | K117: 8.58
A118: C5 | B118: 112,801 | C118: 113,400 | D118: 9401 | E118: 50 | F118: 9,450 | G118: 182,101 | H118: 182,700 | I118: 15,176 | J118: 15,225 | K118: 8.64
A119: C5 | B119: 113,401 | C119: 114,000 | D119: 9451 | E119: 50 | F119: 9,500 | G119: 182,701 | H119: 183,300 | I119: 15,226 | J119: 15,275 | K119: 8.67
A120: C5 | B120: 114,001 | C120: 114,600 | D120: 9501 | E120: 50 | F120: 9,550 | G120: 183,301 | H120: 183,900 | I120: 15,276 | J120: 15,325 | K120: 8.7
A121: C5 | B121: 114,601 | C121: 115,200 | D121: 9551 | E121: 50 | F121: 9,600 | G121: 183,901 | H121: 184,500 | I121: 15,326 | J121: 15,375 | K121: 8.75
A122: C5 | B122: 115,201 | C122: 115,800 | D122: 9601 | E122: 50 | F122: 9,650 | G122: 184,501 | H122: 185,100 | I122: 15,376 | J122: 15,425 | K122: 8.78
A123: C5 | B123: 115,801 | C123: 116,400 | D123: 9651 | E123: 50 | F123: 9,700 | G123: 185,101 | H123: 185,700 | I123: 15,426 | J123: 15,475 | K123: 8.83
A124: C5 | B124: 116,401 | C124: 117,000 | D124: 9701 | E124: 50 | F124: 9,750 | G124: 185,701 | H124: 186,300 | I124: 15,476 | J124: 15,525 | K124: 8.87
A125: C5 | B125: 117,001 | C125: 117,600 | D125: 9751 | E125: 50 | F125: 9,800 | G125: 186,301 | H125: 186,900 | I125: 15,526 | J125: 15,575 | K125: 8.91
A126: C5 | B126: 117,601 | C126: 118,200 | D126: 9801 | E126: 50 | F126: 9,850 | G126: 186,901 | H126: 187,500 | I126: 15,576 | J126: 15,625 | K126: 8.94
A127: C5 | B127: 118,201 | C127: 118,800 | D127: 9851 | E127: 50 | F127: 9,900 | G127: 187,501 | H127: 188,100 | I127: 15,626 | J127: 15,675 | K127: 8.98
A128: C5 | B128: 118,801 | C128: 119,400 | D128: 9901 | E128: 50 | F128: 9,950 | G128: 188,101 | H128: 188,700 | I128: 15,676 | J128: 15,725 | K128: 9.02
A129: C5 | B129: 119,401 | C129: 120,000 | D129: 9951 | E129: 50 | F129: 10,000 | G129: 188,701 | H129: 189,300 | I129: 15,726 | J129: 15,775 | K129: 9.05
A130: C5 | B130: =(D130-1)*12+1 -> 120,001 | C130: =F130*12 -> 120,600 | D130: 10001 | E130: 50 | F130: =D130-1+E130 -> 10,050 | G130: 189,301 | H130: 189,900 | I130: =(G130-1)/12+1 -> 15,776 | J130: =H130/12 -> 15,825 | K130: 9.08
A131: C5 | B131: 120,601 | C131: 121,200 | D131: 10051 | E131: 50 | F131: 10,100 | G131: =MIN((B131-1)*2+1,B131+69300) -> 189,901 | H131: =MIN((C131)*2,C131+69300) -> 190,500 | I131: 15,826 | J131: 15,875 | K131: 9.14
A132: C5 | B132: 121,201 | C132: 121,800 | D132: 10101 | E132: 50 | F132: 10,150 | G132: 190,501 | H132: 191,100 | I132: 15,876 | J132: 15,925 | K132: 9.18
A133: C5 | B133: 121,801 | C133: 122,400 | D133: 10151 | E133: 50 | F133: 10,200 | G133: 191,101 | H133: 191,700 | I133: 15,926 | J133: 15,975 | K133: 9.21
A134: C5 | B134: 122,401 | C134: 123,000 | D134: 10201 | E134: 50 | F134: 10,250 | G134: 191,701 | H134: 192,300 | I134: 15,976 | J134: 16,025 | K134: 9.24
A135: C5 | B135: 123,001 | C135: 123,600 | D135: 10251 | E135: 50 | F135: 10,300 | G135: 192,301 | H135: 192,900 | I135: 16,026 | J135: 16,075 | K135: 9.28
A136: C5 | B136: 123,601 | C136: 124,200 | D136: 10301 | E136: 50 | F136: 10,350 | G136: 192,901 | H136: 193,500 | I136: 16,076 | J136: 16,125 | K136: 9.32
A137: C5 | B137: 124,201 | C137: 124,800 | D137: 10351 | E137: 50 | F137: 10,400 | G137: 193,501 | H137: 194,100 | I137: 16,126 | J137: 16,175 | K137: 9.35
A138: C5 | B138: 124,801 | C138: 125,400 | D138: 10401 | E138: 50 | F138: 10,450 | G138: 194,101 | H138: 194,700 | I138: 16,176 | J138: 16,225 | K138: 9.38
A139: C5 | B139: 125,401 | C139: 126,000 | D139: 10451 | E139: 50 | F139: 10,500 | G139: 194,701 | H139: 195,300 | I139: 16,226 | J139: 16,275 | K139: 9.43
A140: C5 | B140: 126,001 | C140: 126,600 | D140: 10501 | E140: 50 | F140: 10,550 | G140: 195,301 | H140: 195,900 | I140: 16,276 | J140: 16,325 | K140: 9.47
A141: C5 | B141: 126,601 | C141: 127,200 | D141: 10551 | E141: 50 | F141: 10,600 | G141: 195,901 | H141: 196,500 | I141: 16,326 | J141: 16,375 | K141: 9.51
A142: C5 | B142: 127,201 | C142: 127,800 | D142: 10601 | E142: 50 | F142: 10,650 | G142: 196,501 | H142: 197,100 | I142: 16,376 | J142: 16,425 | K142: 9.54
A143: C5 | B143: 127,801 | C143: 128,400 | D143: 10651 | E143: 50 | F143: 10,700 | G143: 197,101 | H143: 197,700 | I143: 16,426 | J143: 16,475 | K143: 9.58
A144: C5 | B144: 128,401 | C144: 129,000 | D144: 10701 | E144: 50 | F144: 10,750 | G144: 197,701 | H144: 198,300 | I144: 16,476 | J144: 16,525 | K144: 9.6
A145: C5 | B145: 129,001 | C145: 129,600 | D145: 10751 | E145: 50 | F145: 10,800 | G145: 198,301 | H145: 198,900 | I145: 16,526 | J145: 16,575 | K145: 9.64
A146: C5 | B146: 129,601 | C146: 130,200 | D146: 10801 | E146: 50 | F146: 10,850 | G146: 198,901 | H146: 199,500 | I146: 16,576 | J146: 16,625 | K146: 9.68
A147: C5 | B147: 130,201 | C147: 130,800 | D147: 10851 | E147: 50 | F147: 10,900 | G147: 199,501 | H147: 200,100 | I147: 16,626 | J147: 16,675 | K147: 9.71
A148: C5 | B148: 130,801 | C148: 131,400 | D148: 10901 | E148: 50 | F148: 10,950 | G148: 200,101 | H148: 200,700 | I148: 16,676 | J148: 16,725 | K148: 9.75
A149: C5 | B149: 131,401 | C149: 132,000 | D149: 10951 | E149: 50 | F149: 11,000 | G149: 200,701 | H149: 201,300 | I149: 16,726 | J149: 16,775 | K149: 9.79
A150: C5 | B150: 132,001 | C150: 132,600 | D150: 11001 | E150: 50 | F150: 11,050 | G150: 201,301 | H150: 201,900 | I150: 16,776 | J150: 16,825 | K150: 9.82
A151: C5 | B151: 132,601 | C151: 133,200 | D151: 11051 | E151: 50 | F151: 11,100 | G151: 201,901 | H151: 202,500 | I151: 16,826 | J151: 16,875 | K151: 9.85
A152: C5 | B152: 133,201 | C152: 133,800 | D152: 11101 | E152: 50 | F152: 11,150 | G152: 202,501 | H152: 203,100 | I152: 16,876 | J152: 16,925 | K152: 9.9
A153: C5 | B153: 133,801 | C153: 134,400 | D153: 11151 | E153: 50 | F153: 11,200 | G153: 203,101 | H153: 203,700 | I153: 16,926 | J153: 16,975 | K153: 9.93
A154: C5 | B154: 134,401 | C154: 135,000 | D154: 11201 | E154: 50 | F154: 11,250 | G154: 203,701 | H154: 204,300 | I154: 16,976 | J154: 17,025 | K154: 9.96
A155: C5 | B155: 135,001 | C155: 135,600 | D155: 11251 | E155: 50 | F155: 11,300 | G155: 204,301 | H155: 204,900 | I155: 17,026 | J155: 17,075 | K155: 10
A156: C5 | B156: 135,601 | C156: 136,200 | D156: 11301 | E156: 50 | F156: 11,350 | G156: 204,901 | H156: 205,500 | I156: 17,076 | J156: 17,125 | K156: 10.04
A157: C5 | B157: 136,201 | C157: 136,800 | D157: 11351 | E157: 50 | F157: 11,400 | G157: 205,501 | H157: 206,100 | I157: 17,126 | J157: 17,175 | K157: 10.07
A158: C5 | B158: 136,801 | C158: 137,400 | D158: 11401 | E158: 50 | F158: 11,450 | G158: 206,101 | H158: 206,700 | I158: 17,176 | J158: 17,225 | K158: 10.11
A159: C5 | B159: 137,401 | C159: 138,000 | D159: 11451 | E159: 50 | F159: 11,500 | G159: 206,701 | H159: 207,300 | I159: 17,226 | J159: 17,275 | K159: 10.14
A160: C5 | B160: 138,001 | C160: 138,600 | D160: 11501 | E160: 50 | F160: 11,550 | G160: 207,301 | H160: 207,900 | I160: 17,276 | J160: 17,325 | K160: 10.18
A161: C5 | B161: 138,601 | C161: 139,200 | D161: 11551 | E161: 50 | F161: 11,600 | G161: 207,901 | H161: 208,500 | I161: 17,326 | J161: 17,375 | K161: 10.22
A162: C5 | B162: 139,201 | C162: 139,800 | D162: 11601 | E162: 50 | F162: 11,650 | G162: 208,501 | H162: 209,100 | I162: 17,376 | J162: 17,425 | K162: 10.26
A163: C5 | B163: 139,801 | C163: 140,400 | D163: 11651 | E163: 50 | F163: 11,700 | G163: 209,101 | H163: 209,700 | I163: 17,426 | J163: 17,475 | K163: 10.29
A164: C5 | B164: 140,401 | C164: 141,000 | D164: 11701 | E164: 50 | F164: 11,750 | G164: 209,701 | H164: 210,300 | I164: 17,476 | J164: 17,525 | K164: 10.32
A165: C5 | B165: 141,001 | C165: 141,600 | D165: 11751 | E165: 50 | F165: 11,800 | G165: 210,301 | H165: 210,900 | I165: 17,526 | J165: 17,575 | K165: 10.37
A166: C5 | B166: 141,601 | C166: 142,200 | D166: 11801 | E166: 50 | F166: 11,850 | G166: 210,901 | H166: 211,500 | I166: 17,576 | J166: 17,625 | K166: 10.4
A167: C5 | B167: 142,201 | C167: 142,800 | D167: 11851 | E167: 50 | F167: 11,900 | G167: 211,501 | H167: 212,100 | I167: 17,626 | J167: 17,675 | K167: 10.43
A168: C5 | B168: 142,801 | C168: 143,400 | D168: 11901 | E168: 50 | F168: 11,950 | G168: 212,101 | H168: 212,700 | I168: 17,676 | J168: 17,725 | K168: 10.47
A169: C5 | B169: 143,401 | C169: 144,000 | D169: 11951 | E169: 50 | F169: 12,000 | G169: 212,701 | H169: 213,300 | I169: 17,726 | J169: 17,775 | K169: 10.51
A170: C5 | B170: 144,001 | C170: 144,600 | D170: 12001 | E170: 50 | F170: 12,050 | G170: 213,301 | H170: 213,900 | I170: 17,776 | J170: 17,825 | K170: 10.54
A171: C5 | B171: 144,601 | C171: 145,200 | D171: 12051 | E171: 50 | F171: 12,100 | G171: 213,901 | H171: 214,500 | I171: 17,826 | J171: 17,875 | K171: 10.57
A172: C5 | B172: 145,201 | C172: 145,800 | D172: 12101 | E172: 50 | F172: 12,150 | G172: 214,501 | H172: 215,100 | I172: 17,876 | J172: 17,925 | K172: 10.62
A173: C5 | B173: 145,801 | C173: 146,400 | D173: 12151 | E173: 50 | F173: 12,200 | G173: 215,101 | H173: 215,700 | I173: 17,926 | J173: 17,975 | K173: 10.65
A174: C5 | B174: 146,401 | C174: 147,000 | D174: 12201 | E174: 50 | F174: 12,250 | G174: 215,701 | H174: 216,300 | I174: 17,976 | J174: 18,025 | K174: 10.68
A175: C5 | B175: 147,001 | C175: 147,600 | D175: 12251 | E175: 50 | F175: 12,300 | G175: 216,301 | H175: 216,900 | I175: 18,026 | J175: 18,075 | K175: 10.71
A176: C5 | B176: 147,601 | C176: 148,200 | D176: 12301 | E176: 50 | F176: 12,350 | G176: 216,901 | H176: 217,500 | I176: 18,076 | J176: 18,125 | K176: 10.75
A177: C5 | B177: 148,201 | C177: 148,800 | D177: 12351 | E177: 50 | F177: 12,400 | G177: 217,501 | H177: 218,100 | I177: 18,126 | J177: 18,175 | K177: 10.79
A178: C5 | B178: 148,801 | C178: 149,400 | D178: 12401 | E178: 50 | F178: 12,450 | G178: 218,101 | H178: 218,700 | I178: 18,176 | J178: 18,225 | K178: 10.82
A179: C5 | B179: 149,401 | C179: 150,000 | D179: 12451 | E179: 50 | F179: 12,500 | G179: 218,701 | H179: 219,300 | I179: 18,226 | J179: 18,275 | K179: 10.85
A180: C5 | B180: 150,001 | C180: 150,600 | D180: 12501 | E180: 50 | F180: 12,550 | G180: 219,301 | H180: 219,900 | I180: 18,276 | J180: 18,325 | K180: 10.9
A181: C5 | B181: 150,601 | C181: 151,200 | D181: 12551 | E181: 50 | F181: 12,600 | G181: 219,901 | H181: 220,500 | I181: 18,326 | J181: 18,375 | K181: 10.92
A182: C5 | B182: 151,201 | C182: 151,800 | D182: 12601 | E182: 50 | F182: 12,650 | G182: 220,501 | H182: 221,100 | I182: 18,376 | J182: 18,425 | K182: 10.96
A183: C5 | B183: 151,801 | C183: 152,400 | D183: 12651 | E183: 50 | F183: 12,700 | G183: 221,101 | H183: 221,700 | I183: 18,426 | J183: 18,475 | K183: 11
A184: C5 | B184: 152,401 | C184: 153,000 | D184: 12701 | E184: 50 | F184: 12,750 | G184: 221,701 | H184: 222,300 | I184: 18,476 | J184: 18,525 | K184: 11.03
A185: C5 | B185: 153,001 | C185: 153,600 | D185: 12751 | E185: 50 | F185: 12,800 | G185: 222,301 | H185: 222,900 | I185: 18,526 | J185: 18,575 | K185: 11.06
A186: C5 | B186: 153,601 | C186: 154,200 | D186: 12801 | E186: 50 | F186: 12,850 | G186: 222,901 | H186: 223,500 | I186: 18,576 | J186: 18,625 | K186: 11.1
A187: C5 | B187: 154,201 | C187: 154,800 | D187: 12851 | E187: 50 | F187: 12,900 | G187: 223,501 | H187: 224,100 | I187: 18,626 | J187: 18,675 | K187: 11.14
A188: C5 | B188: 154,801 | C188: 155,400 | D188: 12901 | E188: 50 | F188: 12,950 | G188: 224,101 | H188: 224,700 | I188: 18,676 | J188: 18,725 | K188: 11.18
A189: C5 | B189: 155,401 | C189: 156,000 | D189: 12951 | E189: 50 | F189: 13,000 | G189: 224,701 | H189: 225,300 | I189: 18,726 | J189: 18,775 | K189: 11.21
A190: C5 | B190: 156,001 | C190: 156,600 | D190: 13001 | E190: 50 | F190: 13,050 | G190: 225,301 | H190: 225,900 | I190: 18,776 | J190: 18,825 | K190: 11.24
A191: C5 | B191: 156,601 | C191: 157,200 | D191: 13051 | E191: 50 | F191: 13,100 | G191: 225,901 | H191: 226,500 | I191: 18,826 | J191: 18,875 | K191: 11.29
A192: C5 | B192: 157,201 | C192: 157,800 | D192: 13101 | E192: 50 | F192: 13,150 | G192: 226,501 | H192: 227,100 | I192: 18,876 | J192: 18,925 | K192: 11.32
A193: C5 | B193: 157,801 | C193: 158,400 | D193: 13151 | E193: 50 | F193: 13,200 | G193: 227,101 | H193: 227,700 | I193: 18,926 | J193: 18,975 | K193: 11.36
A194: C5 | B194: =(D194-1)*12+1 -> 158,401 | C194: =F194*12 -> 159,000 | D194: 13201 | E194: 50 | F194: =D194-1+E194 -> 13,250 | G194: 227,701 | H194: 228,300 | I194: =(G194-1)/12+1 -> 18,976 | J194: =H194/12 -> 19,025 | K194: 11.4
A195: C5 | B195: 159,001 | C195: 159,600 | D195: 13251 | E195: 50 | F195: 13,300 | G195: =MIN((B195-1)*2+1,B195+69300) -> 228,301 | H195: =MIN((C195)*2,C195+69300) -> 228,900 | I195: 19,026 | J195: 19,075 | K195: 11.42
A196: C5 | B196: 159,601 | C196: 160,200 | D196: 13301 | E196: 50 | F196: 13,350 | G196: 228,901 | H196: 229,500 | I196: 19,076 | J196: 19,125 | K196: 11.47
A197: C5 | B197: 160,201 | C197: 160,800 | D197: 13351 | E197: 50 | F197: 13,400 | G197: 229,501 | H197: 230,100 | I197: 19,126 | J197: 19,175 | K197: 11.49
A198: C5 | B198: 160,801 | C198: 161,400 | D198: 13401 | E198: 50 | F198: 13,450 | G198: 230,101 | H198: 230,700 | I198: 19,176 | J198: 19,225 | K198: 11.54
A199: C5 | B199: 161,401 | C199: 162,000 | D199: 13451 | E199: 50 | F199: 13,500 | G199: 230,701 | H199: 231,300 | I199: 19,226 | J199: 19,275 | K199: 11.57
A200: C5 | B200: 162,001 | C200: 162,600 | D200: 13501 | E200: 50 | F200: 13,550 | G200: 231,301 | H200: 231,900 | I200: 19,276 | J200: 19,325 | K200: 11.6
... 290 more rows

Sheet C6 (hidden)
A1: Barème | B1: Rev annuel début Barème C | C1: Rev annuel Fin Barème C | D1: Rev mensuel Début Barème C | E1: Tranche Barème C | F1: Rev mensuel Fin Barème C | G1: Rev annuel Début Barème C Rectification (Cumul couple) | H1: Rev annuel Fin Barème C Rectification (Cumul couple) | I1: Rev mensuel Début Barème C Rectification (Cumul couple) | J1: Rev mensuel Fin Barème C Rectification (Cumul couple) | K1: Taux imposition
A2: C6 | B2: =(D2-1)*12+1 -> 1 | C2: =F2*12 -> 46,800 | D2: 1 | E2: 3900 | F2: =D2-1+E2 -> 3,900 | G2: =MIN((B2-1)*2+1,B2+69300) -> 1 | H2: =MIN((C2)*2,C2+69300) -> 93,600 | I2: =(G2-1)/12+1 -> 1 | J2: =H2/12 -> 7,800 | K2: 0
A3: C6 | B3: 46,801 | C3: 47,400 | D3: 3901 | E3: 50 | F3: 3,950 | G3: =MIN((B3-1)*2+1,B3+69300) -> 93,601 | H3: =MIN((C3)*2,C3+69300) -> 94,800 | I3: 7,801 | J3: 7,900 | K3: 0.05
A4: C6 | B4: 47,401 | C4: 48,000 | D4: 3951 | E4: 50 | F4: 4,000 | G4: 94,801 | H4: 96,000 | I4: 7,901 | J4: 8,000 | K4: 0.09
A5: C6 | B5: 48,001 | C5: 48,600 | D5: 4001 | E5: 50 | F5: 4,050 | G5: 96,001 | H5: 97,200 | I5: 8,001 | J5: 8,100 | K5: 0.12
A6: C6 | B6: 48,601 | C6: 49,200 | D6: 4051 | E6: 50 | F6: 4,100 | G6: 97,201 | H6: 98,400 | I6: 8,101 | J6: 8,200 | K6: 0.16
A7: C6 | B7: 49,201 | C7: 49,800 | D7: 4101 | E7: 50 | F7: 4,150 | G7: 98,401 | H7: 99,600 | I7: 8,201 | J7: 8,300 | K7: 0.2
A8: C6 | B8: 49,801 | C8: 50,400 | D8: 4151 | E8: 50 | F8: 4,200 | G8: 99,601 | H8: 100,800 | I8: 8,301 | J8: 8,400 | K8: 0.27
A9: C6 | B9: 50,401 | C9: 51,000 | D9: 4201 | E9: 50 | F9: 4,250 | G9: 100,801 | H9: 102,000 | I9: 8,401 | J9: 8,500 | K9: 0.34
A10: C6 | B10: 51,001 | C10: 51,600 | D10: 4251 | E10: 50 | F10: 4,300 | G10: 102,001 | H10: 103,200 | I10: 8,501 | J10: 8,600 | K10: 0.4
A11: C6 | B11: 51,601 | C11: 52,200 | D11: 4301 | E11: 50 | F11: 4,350 | G11: 103,201 | H11: 104,400 | I11: 8,601 | J11: 8,700 | K11: 0.46
A12: C6 | B12: 52,201 | C12: 52,800 | D12: 4351 | E12: 50 | F12: 4,400 | G12: 104,401 | H12: 105,600 | I12: 8,701 | J12: 8,800 | K12: 0.53
A13: C6 | B13: 52,801 | C13: 53,400 | D13: 4401 | E13: 50 | F13: 4,450 | G13: 105,601 | H13: 106,800 | I13: 8,801 | J13: 8,900 | K13: 0.61
A14: C6 | B14: 53,401 | C14: 54,000 | D14: 4451 | E14: 50 | F14: 4,500 | G14: 106,801 | H14: 108,000 | I14: 8,901 | J14: 9,000 | K14: 0.71
A15: C6 | B15: 54,001 | C15: 54,600 | D15: 4501 | E15: 50 | F15: 4,550 | G15: 108,001 | H15: 109,200 | I15: 9,001 | J15: 9,100 | K15: 0.78
A16: C6 | B16: 54,601 | C16: 55,200 | D16: 4551 | E16: 50 | F16: 4,600 | G16: 109,201 | H16: 110,400 | I16: 9,101 | J16: 9,200 | K16: 0.88
A17: C6 | B17: 55,201 | C17: 55,800 | D17: 4601 | E17: 50 | F17: 4,650 | G17: 110,401 | H17: 111,600 | I17: 9,201 | J17: 9,300 | K17: 0.96
A18: C6 | B18: 55,801 | C18: 56,400 | D18: 4651 | E18: 50 | F18: 4,700 | G18: 111,601 | H18: 112,800 | I18: 9,301 | J18: 9,400 | K18: 1.06
A19: C6 | B19: 56,401 | C19: 57,000 | D19: 4701 | E19: 50 | F19: 4,750 | G19: 112,801 | H19: 114,000 | I19: 9,401 | J19: 9,500 | K19: 1.19
A20: C6 | B20: 57,001 | C20: 57,600 | D20: 4751 | E20: 50 | F20: 4,800 | G20: 114,001 | H20: 115,200 | I20: 9,501 | J20: 9,600 | K20: 1.29
A21: C6 | B21: 57,601 | C21: 58,200 | D21: 4801 | E21: 50 | F21: 4,850 | G21: 115,201 | H21: 116,400 | I21: 9,601 | J21: 9,700 | K21: 1.39
A22: C6 | B22: 58,201 | C22: 58,800 | D22: 4851 | E22: 50 | F22: 4,900 | G22: 116,401 | H22: 117,600 | I22: 9,701 | J22: 9,800 | K22: 1.49
A23: C6 | B23: 58,801 | C23: 59,400 | D23: 4901 | E23: 50 | F23: 4,950 | G23: 117,601 | H23: 118,800 | I23: 9,801 | J23: 9,900 | K23: 1.58
A24: C6 | B24: 59,401 | C24: 60,000 | D24: 4951 | E24: 50 | F24: 5,000 | G24: 118,801 | H24: 120,000 | I24: 9,901 | J24: 10,000 | K24: 1.7
A25: C6 | B25: 60,001 | C25: 60,600 | D25: 5001 | E25: 50 | F25: 5,050 | G25: 120,001 | H25: 121,200 | I25: 10,001 | J25: 10,100 | K25: 1.79
A26: C6 | B26: 60,601 | C26: 61,200 | D26: 5051 | E26: 50 | F26: 5,100 | G26: 121,201 | H26: 122,400 | I26: 10,101 | J26: 10,200 | K26: 1.88
A27: C6 | B27: 61,201 | C27: 61,800 | D27: 5101 | E27: 50 | F27: 5,150 | G27: 122,401 | H27: 123,600 | I27: 10,201 | J27: 10,300 | K27: 1.98
A28: C6 | B28: 61,801 | C28: 62,400 | D28: 5151 | E28: 50 | F28: 5,200 | G28: 123,601 | H28: 124,800 | I28: 10,301 | J28: 10,400 | K28: 2.1
A29: C6 | B29: 62,401 | C29: 63,000 | D29: 5201 | E29: 50 | F29: 5,250 | G29: 124,801 | H29: 126,000 | I29: 10,401 | J29: 10,500 | K29: 2.21
A30: C6 | B30: 63,001 | C30: 63,600 | D30: 5251 | E30: 50 | F30: 5,300 | G30: 126,001 | H30: 127,200 | I30: 10,501 | J30: 10,600 | K30: 2.32
A31: C6 | B31: 63,601 | C31: 64,200 | D31: 5301 | E31: 50 | F31: 5,350 | G31: 127,201 | H31: 128,400 | I31: 10,601 | J31: 10,700 | K31: 2.43
A32: C6 | B32: 64,201 | C32: 64,800 | D32: 5351 | E32: 50 | F32: 5,400 | G32: 128,401 | H32: 129,600 | I32: 10,701 | J32: 10,800 | K32: 2.56
A33: C6 | B33: 64,801 | C33: 65,400 | D33: 5401 | E33: 50 | F33: 5,450 | G33: 129,601 | H33: 130,800 | I33: 10,801 | J33: 10,900 | K33: 2.66
A34: C6 | B34: 65,401 | C34: 66,000 | D34: 5451 | E34: 50 | F34: 5,500 | G34: 130,801 | H34: 132,000 | I34: 10,901 | J34: 11,000 | K34: 2.76
A35: C6 | B35: 66,001 | C35: 66,600 | D35: 5501 | E35: 50 | F35: 5,550 | G35: 132,001 | H35: 133,200 | I35: 11,001 | J35: 11,100 | K35: 2.87
A36: C6 | B36: 66,601 | C36: 67,200 | D36: 5551 | E36: 50 | F36: 5,600 | G36: 133,201 | H36: 134,400 | I36: 11,101 | J36: 11,200 | K36: 2.98
A37: C6 | B37: 67,201 | C37: 67,800 | D37: 5601 | E37: 50 | F37: 5,650 | G37: 134,401 | H37: 135,600 | I37: 11,201 | J37: 11,300 | K37: 3.07
A38: C6 | B38: 67,801 | C38: 68,400 | D38: 5651 | E38: 50 | F38: 5,700 | G38: 135,601 | H38: 136,800 | I38: 11,301 | J38: 11,400 | K38: 3.17
A39: C6 | B39: 68,401 | C39: 69,000 | D39: 5701 | E39: 50 | F39: 5,750 | G39: 136,801 | H39: 138,000 | I39: 11,401 | J39: 11,500 | K39: 3.27
A40: C6 | B40: 69,001 | C40: 69,600 | D40: 5751 | E40: 50 | F40: 5,800 | G40: 138,001 | H40: 138,900 | I40: 11,501 | J40: 11,575 | K40: 3.39
A41: C6 | B41: 69,601 | C41: 70,200 | D41: 5801 | E41: 50 | F41: 5,850 | G41: 138,901 | H41: 139,500 | I41: 11,576 | J41: 11,625 | K41: 3.46
A42: C6 | B42: 70,201 | C42: 70,800 | D42: 5851 | E42: 50 | F42: 5,900 | G42: 139,501 | H42: 140,100 | I42: 11,626 | J42: 11,675 | K42: 3.52
A43: C6 | B43: 70,801 | C43: 71,400 | D43: 5901 | E43: 50 | F43: 5,950 | G43: 140,101 | H43: 140,700 | I43: 11,676 | J43: 11,725 | K43: 3.59
A44: C6 | B44: 71,401 | C44: 72,000 | D44: 5951 | E44: 50 | F44: 6,000 | G44: 140,701 | H44: 141,300 | I44: 11,726 | J44: 11,775 | K44: 3.66
A45: C6 | B45: 72,001 | C45: 72,600 | D45: 6001 | E45: 50 | F45: 6,050 | G45: 141,301 | H45: 141,900 | I45: 11,776 | J45: 11,825 | K45: 3.73
A46: C6 | B46: 72,601 | C46: 73,200 | D46: 6051 | E46: 50 | F46: 6,100 | G46: 141,901 | H46: 142,500 | I46: 11,826 | J46: 11,875 | K46: 3.79
A47: C6 | B47: 73,201 | C47: 73,800 | D47: 6101 | E47: 50 | F47: 6,150 | G47: 142,501 | H47: 143,100 | I47: 11,876 | J47: 11,925 | K47: 3.86
A48: C6 | B48: 73,801 | C48: 74,400 | D48: 6151 | E48: 50 | F48: 6,200 | G48: 143,101 | H48: 143,700 | I48: 11,926 | J48: 11,975 | K48: 3.94
A49: C6 | B49: 74,401 | C49: 75,000 | D49: 6201 | E49: 50 | F49: 6,250 | G49: 143,701 | H49: 144,300 | I49: 11,976 | J49: 12,025 | K49: 3.99
A50: C6 | B50: 75,001 | C50: 75,600 | D50: 6251 | E50: 50 | F50: 6,300 | G50: 144,301 | H50: 144,900 | I50: 12,026 | J50: 12,075 | K50: 4.07
A51: C6 | B51: 75,601 | C51: 76,200 | D51: 6301 | E51: 50 | F51: 6,350 | G51: 144,901 | H51: 145,500 | I51: 12,076 | J51: 12,125 | K51: 4.12
A52: C6 | B52: 76,201 | C52: 76,800 | D52: 6351 | E52: 50 | F52: 6,400 | G52: 145,501 | H52: 146,100 | I52: 12,126 | J52: 12,175 | K52: 4.19
A53: C6 | B53: 76,801 | C53: 77,400 | D53: 6401 | E53: 50 | F53: 6,450 | G53: 146,101 | H53: 146,700 | I53: 12,176 | J53: 12,225 | K53: 4.24
A54: C6 | B54: 77,401 | C54: 78,000 | D54: 6451 | E54: 50 | F54: 6,500 | G54: 146,701 | H54: 147,300 | I54: 12,226 | J54: 12,275 | K54: 4.32
A55: C6 | B55: 78,001 | C55: 78,600 | D55: 6501 | E55: 50 | F55: 6,550 | G55: 147,301 | H55: 147,900 | I55: 12,276 | J55: 12,325 | K55: 4.37
A56: C6 | B56: 78,601 | C56: 79,200 | D56: 6551 | E56: 50 | F56: 6,600 | G56: 147,901 | H56: 148,500 | I56: 12,326 | J56: 12,375 | K56: 4.43
A57: C6 | B57: 79,201 | C57: 79,800 | D57: 6601 | E57: 50 | F57: 6,650 | G57: 148,501 | H57: 149,100 | I57: 12,376 | J57: 12,425 | K57: 4.49
A58: C6 | B58: 79,801 | C58: 80,400 | D58: 6651 | E58: 50 | F58: 6,700 | G58: 149,101 | H58: 149,700 | I58: 12,426 | J58: 12,475 | K58: 4.56
A59: C6 | B59: 80,401 | C59: 81,000 | D59: 6701 | E59: 50 | F59: 6,750 | G59: 149,701 | H59: 150,300 | I59: 12,476 | J59: 12,525 | K59: 4.63
A60: C6 | B60: 81,001 | C60: 81,600 | D60: 6751 | E60: 50 | F60: 6,800 | G60: 150,301 | H60: 150,900 | I60: 12,526 | J60: 12,575 | K60: 4.71
A61: C6 | B61: 81,601 | C61: 82,200 | D61: 6801 | E61: 50 | F61: 6,850 | G61: 150,901 | H61: 151,500 | I61: 12,576 | J61: 12,625 | K61: 4.77
A62: C6 | B62: 82,201 | C62: 82,800 | D62: 6851 | E62: 50 | F62: 6,900 | G62: 151,501 | H62: 152,100 | I62: 12,626 | J62: 12,675 | K62: 4.85
A63: C6 | B63: 82,801 | C63: 83,400 | D63: 6901 | E63: 50 | F63: 6,950 | G63: 152,101 | H63: 152,700 | I63: 12,676 | J63: 12,725 | K63: 4.9
A64: C6 | B64: 83,401 | C64: 84,000 | D64: 6951 | E64: 50 | F64: 7,000 | G64: 152,701 | H64: 153,300 | I64: 12,726 | J64: 12,775 | K64: 4.97
A65: C6 | B65: 84,001 | C65: 84,600 | D65: 7001 | E65: 50 | F65: 7,050 | G65: 153,301 | H65: 153,900 | I65: 12,776 | J65: 12,825 | K65: 5.03
A66: C6 | B66: =(D66-1)*12+1 -> 84,601 | C66: =F66*12 -> 85,200 | D66: 7051 | E66: 50 | F66: =D66-1+E66 -> 7,100 | G66: 153,901 | H66: 154,500 | I66: =(G66-1)/12+1 -> 12,826 | J66: =H66/12 -> 12,875 | K66: 5.1
A67: C6 | B67: 85,201 | C67: 85,800 | D67: 7101 | E67: 50 | F67: 7,150 | G67: =MIN((B67-1)*2+1,B67+69300) -> 154,501 | H67: =MIN((C67)*2,C67+69300) -> 155,100 | I67: 12,876 | J67: 12,925 | K67: 5.17
A68: C6 | B68: 85,801 | C68: 86,400 | D68: 7151 | E68: 50 | F68: 7,200 | G68: 155,101 | H68: 155,700 | I68: 12,926 | J68: 12,975 | K68: 5.22
A69: C6 | B69: 86,401 | C69: 87,000 | D69: 7201 | E69: 50 | F69: 7,250 | G69: 155,701 | H69: 156,300 | I69: 12,976 | J69: 13,025 | K69: 5.3
A70: C6 | B70: 87,001 | C70: 87,600 | D70: 7251 | E70: 50 | F70: 7,300 | G70: 156,301 | H70: 156,900 | I70: 13,026 | J70: 13,075 | K70: 5.35
A71: C6 | B71: 87,601 | C71: 88,200 | D71: 7301 | E71: 50 | F71: 7,350 | G71: 156,901 | H71: 157,500 | I71: 13,076 | J71: 13,125 | K71: 5.42
A72: C6 | B72: 88,201 | C72: 88,800 | D72: 7351 | E72: 50 | F72: 7,400 | G72: 157,501 | H72: 158,100 | I72: 13,126 | J72: 13,175 | K72: 5.47
A73: C6 | B73: 88,801 | C73: 89,400 | D73: 7401 | E73: 50 | F73: 7,450 | G73: 158,101 | H73: 158,700 | I73: 13,176 | J73: 13,225 | K73: 5.54
A74: C6 | B74: 89,401 | C74: 90,000 | D74: 7451 | E74: 50 | F74: 7,500 | G74: 158,701 | H74: 159,300 | I74: 13,226 | J74: 13,275 | K74: 5.59
A75: C6 | B75: 90,001 | C75: 90,600 | D75: 7501 | E75: 50 | F75: 7,550 | G75: 159,301 | H75: 159,900 | I75: 13,276 | J75: 13,325 | K75: 5.65
A76: C6 | B76: 90,601 | C76: 91,200 | D76: 7551 | E76: 50 | F76: 7,600 | G76: 159,901 | H76: 160,500 | I76: 13,326 | J76: 13,375 | K76: 5.72
A77: C6 | B77: 91,201 | C77: 91,800 | D77: 7601 | E77: 50 | F77: 7,650 | G77: 160,501 | H77: 161,100 | I77: 13,376 | J77: 13,425 | K77: 5.77
A78: C6 | B78: 91,801 | C78: 92,400 | D78: 7651 | E78: 50 | F78: 7,700 | G78: 161,101 | H78: 161,700 | I78: 13,426 | J78: 13,475 | K78: 5.84
A79: C6 | B79: 92,401 | C79: 93,000 | D79: 7701 | E79: 50 | F79: 7,750 | G79: 161,701 | H79: 162,300 | I79: 13,476 | J79: 13,525 | K79: 5.88
A80: C6 | B80: 93,001 | C80: 93,600 | D80: 7751 | E80: 50 | F80: 7,800 | G80: 162,301 | H80: 162,900 | I80: 13,526 | J80: 13,575 | K80: 5.94
A81: C6 | B81: 93,601 | C81: 94,200 | D81: 7801 | E81: 50 | F81: 7,850 | G81: 162,901 | H81: 163,500 | I81: 13,576 | J81: 13,625 | K81: 5.99
A82: C6 | B82: 94,201 | C82: 94,800 | D82: 7851 | E82: 50 | F82: 7,900 | G82: 163,501 | H82: 164,100 | I82: 13,626 | J82: 13,675 | K82: 6.05
A83: C6 | B83: 94,801 | C83: 95,400 | D83: 7901 | E83: 50 | F83: 7,950 | G83: 164,101 | H83: 164,700 | I83: 13,676 | J83: 13,725 | K83: 6.12
A84: C6 | B84: 95,401 | C84: 96,000 | D84: 7951 | E84: 50 | F84: 8,000 | G84: 164,701 | H84: 165,300 | I84: 13,726 | J84: 13,775 | K84: 6.17
A85: C6 | B85: 96,001 | C85: 96,600 | D85: 8001 | E85: 50 | F85: 8,050 | G85: 165,301 | H85: 165,900 | I85: 13,776 | J85: 13,825 | K85: 6.22
A86: C6 | B86: 96,601 | C86: 97,200 | D86: 8051 | E86: 50 | F86: 8,100 | G86: 165,901 | H86: 166,500 | I86: 13,826 | J86: 13,875 | K86: 6.26
A87: C6 | B87: 97,201 | C87: 97,800 | D87: 8101 | E87: 50 | F87: 8,150 | G87: 166,501 | H87: 167,100 | I87: 13,876 | J87: 13,925 | K87: 6.33
A88: C6 | B88: 97,801 | C88: 98,400 | D88: 8151 | E88: 50 | F88: 8,200 | G88: 167,101 | H88: 167,700 | I88: 13,926 | J88: 13,975 | K88: 6.37
A89: C6 | B89: 98,401 | C89: 99,000 | D89: 8201 | E89: 50 | F89: 8,250 | G89: 167,701 | H89: 168,300 | I89: 13,976 | J89: 14,025 | K89: 6.43
A90: C6 | B90: 99,001 | C90: 99,600 | D90: 8251 | E90: 50 | F90: 8,300 | G90: 168,301 | H90: 168,900 | I90: 14,026 | J90: 14,075 | K90: 6.47
A91: C6 | B91: 99,601 | C91: 100,200 | D91: 8301 | E91: 50 | F91: 8,350 | G91: 168,901 | H91: 169,500 | I91: 14,076 | J91: 14,125 | K91: 6.53
A92: C6 | B92: 100,201 | C92: 100,800 | D92: 8351 | E92: 50 | F92: 8,400 | G92: 169,501 | H92: 170,100 | I92: 14,126 | J92: 14,175 | K92: 6.59
A93: C6 | B93: 100,801 | C93: 101,400 | D93: 8401 | E93: 50 | F93: 8,450 | G93: 170,101 | H93: 170,700 | I93: 14,176 | J93: 14,225 | K93: 6.62
A94: C6 | B94: 101,401 | C94: 102,000 | D94: 8451 | E94: 50 | F94: 8,500 | G94: 170,701 | H94: 171,300 | I94: 14,226 | J94: 14,275 | K94: 6.68
A95: C6 | B95: 102,001 | C95: 102,600 | D95: 8501 | E95: 50 | F95: 8,550 | G95: 171,301 | H95: 171,900 | I95: 14,276 | J95: 14,325 | K95: 6.72
A96: C6 | B96: 102,601 | C96: 103,200 | D96: 8551 | E96: 50 | F96: 8,600 | G96: 171,901 | H96: 172,500 | I96: 14,326 | J96: 14,375 | K96: 6.78
A97: C6 | B97: 103,201 | C97: 103,800 | D97: 8601 | E97: 50 | F97: 8,650 | G97: 172,501 | H97: 173,100 | I97: 14,376 | J97: 14,425 | K97: 6.81
A98: C6 | B98: 103,801 | C98: 104,400 | D98: 8651 | E98: 50 | F98: 8,700 | G98: 173,101 | H98: 173,700 | I98: 14,426 | J98: 14,475 | K98: 6.86
A99: C6 | B99: 104,401 | C99: 105,000 | D99: 8701 | E99: 50 | F99: 8,750 | G99: 173,701 | H99: 174,300 | I99: 14,476 | J99: 14,525 | K99: 6.92
A100: C6 | B100: 105,001 | C100: 105,600 | D100: 8751 | E100: 50 | F100: 8,800 | G100: 174,301 | H100: 174,900 | I100: 14,526 | J100: 14,575 | K100: 6.96
A101: C6 | B101: 105,601 | C101: 106,200 | D101: 8801 | E101: 50 | F101: 8,850 | G101: 174,901 | H101: 175,500 | I101: 14,576 | J101: 14,625 | K101: 7.01
A102: C6 | B102: 106,201 | C102: 106,800 | D102: 8851 | E102: 50 | F102: 8,900 | G102: 175,501 | H102: 176,100 | I102: 14,626 | J102: 14,675 | K102: 7.04
A103: C6 | B103: 106,801 | C103: 107,400 | D103: 8901 | E103: 50 | F103: 8,950 | G103: 176,101 | H103: 176,700 | I103: 14,676 | J103: 14,725 | K103: 7.1
A104: C6 | B104: 107,401 | C104: 108,000 | D104: 8951 | E104: 50 | F104: 9,000 | G104: 176,701 | H104: 177,300 | I104: 14,726 | J104: 14,775 | K104: 7.14
A105: C6 | B105: 108,001 | C105: 108,600 | D105: 9001 | E105: 50 | F105: 9,050 | G105: 177,301 | H105: 177,900 | I105: 14,776 | J105: 14,825 | K105: 7.18
A106: C6 | B106: 108,601 | C106: 109,200 | D106: 9051 | E106: 50 | F106: 9,100 | G106: 177,901 | H106: 178,500 | I106: 14,826 | J106: 14,875 | K106: 7.22
A107: C6 | B107: 109,201 | C107: 109,800 | D107: 9101 | E107: 50 | F107: 9,150 | G107: 178,501 | H107: 179,100 | I107: 14,876 | J107: 14,925 | K107: 7.27
A108: C6 | B108: 109,801 | C108: 110,400 | D108: 9151 | E108: 50 | F108: 9,200 | G108: 179,101 | H108: 179,700 | I108: 14,926 | J108: 14,975 | K108: 7.32
A109: C6 | B109: 110,401 | C109: 111,000 | D109: 9201 | E109: 50 | F109: 9,250 | G109: 179,701 | H109: 180,300 | I109: 14,976 | J109: 15,025 | K109: 7.35
A110: C6 | B110: 111,001 | C110: 111,600 | D110: 9251 | E110: 50 | F110: 9,300 | G110: 180,301 | H110: 180,900 | I110: 15,026 | J110: 15,075 | K110: 7.4
A111: C6 | B111: 111,601 | C111: 112,200 | D111: 9301 | E111: 50 | F111: 9,350 | G111: 180,901 | H111: 181,500 | I111: 15,076 | J111: 15,125 | K111: 7.44
A112: C6 | B112: 112,201 | C112: 112,800 | D112: 9351 | E112: 50 | F112: 9,400 | G112: 181,501 | H112: 182,100 | I112: 15,126 | J112: 15,175 | K112: 7.49
A113: C6 | B113: 112,801 | C113: 113,400 | D113: 9401 | E113: 50 | F113: 9,450 | G113: 182,101 | H113: 182,700 | I113: 15,176 | J113: 15,225 | K113: 7.54
A114: C6 | B114: 113,401 | C114: 114,000 | D114: 9451 | E114: 50 | F114: 9,500 | G114: 182,701 | H114: 183,300 | I114: 15,226 | J114: 15,275 | K114: 7.59
A115: C6 | B115: 114,001 | C115: 114,600 | D115: 9501 | E115: 50 | F115: 9,550 | G115: 183,301 | H115: 183,900 | I115: 15,276 | J115: 15,325 | K115: 7.65
A116: C6 | B116: 114,601 | C116: 115,200 | D116: 9551 | E116: 50 | F116: 9,600 | G116: 183,901 | H116: 184,500 | I116: 15,326 | J116: 15,375 | K116: 7.69
A117: C6 | B117: 115,201 | C117: 115,800 | D117: 9601 | E117: 50 | F117: 9,650 | G117: 184,501 | H117: 185,100 | I117: 15,376 | J117: 15,425 | K117: 7.75
A118: C6 | B118: 115,801 | C118: 116,400 | D118: 9651 | E118: 50 | F118: 9,700 | G118: 185,101 | H118: 185,700 | I118: 15,426 | J118: 15,475 | K118: 7.79
A119: C6 | B119: 116,401 | C119: 117,000 | D119: 9701 | E119: 50 | F119: 9,750 | G119: 185,701 | H119: 186,300 | I119: 15,476 | J119: 15,525 | K119: 7.84
A120: C6 | B120: 117,001 | C120: 117,600 | D120: 9751 | E120: 50 | F120: 9,800 | G120: 186,301 | H120: 186,900 | I120: 15,526 | J120: 15,575 | K120: 7.9
A121: C6 | B121: 117,601 | C121: 118,200 | D121: 9801 | E121: 50 | F121: 9,850 | G121: 186,901 | H121: 187,500 | I121: 15,576 | J121: 15,625 | K121: 7.95
A122: C6 | B122: 118,201 | C122: 118,800 | D122: 9851 | E122: 50 | F122: 9,900 | G122: 187,501 | H122: 188,100 | I122: 15,626 | J122: 15,675 | K122: 8.03
A123: C6 | B123: 118,801 | C123: 119,400 | D123: 9901 | E123: 50 | F123: 9,950 | G123: 188,101 | H123: 188,700 | I123: 15,676 | J123: 15,725 | K123: 8.09
A124: C6 | B124: 119,401 | C124: 120,000 | D124: 9951 | E124: 50 | F124: 10,000 | G124: 188,701 | H124: 189,300 | I124: 15,726 | J124: 15,775 | K124: 8.15
A125: C6 | B125: 120,001 | C125: 120,600 | D125: 10001 | E125: 50 | F125: 10,050 | G125: 189,301 | H125: 189,900 | I125: 15,776 | J125: 15,825 | K125: 8.21
A126: C6 | B126: 120,601 | C126: 121,200 | D126: 10051 | E126: 50 | F126: 10,100 | G126: 189,901 | H126: 190,500 | I126: 15,826 | J126: 15,875 | K126: 8.25
A127: C6 | B127: 121,201 | C127: 121,800 | D127: 10101 | E127: 50 | F127: 10,150 | G127: 190,501 | H127: 191,100 | I127: 15,876 | J127: 15,925 | K127: 8.29
A128: C6 | B128: 121,801 | C128: 122,400 | D128: 10151 | E128: 50 | F128: 10,200 | G128: 191,101 | H128: 191,700 | I128: 15,926 | J128: 15,975 | K128: 8.32
A129: C6 | B129: 122,401 | C129: 123,000 | D129: 10201 | E129: 50 | F129: 10,250 | G129: 191,701 | H129: 192,300 | I129: 15,976 | J129: 16,025 | K129: 8.36
A130: C6 | B130: =(D130-1)*12+1 -> 123,001 | C130: =F130*12 -> 123,600 | D130: 10251 | E130: 50 | F130: =D130-1+E130 -> 10,300 | G130: 192,301 | H130: 192,900 | I130: =(G130-1)/12+1 -> 16,026 | J130: =H130/12 -> 16,075 | K130: 8.4
A131: C6 | B131: 123,601 | C131: 124,200 | D131: 10301 | E131: 50 | F131: 10,350 | G131: =MIN((B131-1)*2+1,B131+69300) -> 192,901 | H131: =MIN((C131)*2,C131+69300) -> 193,500 | I131: 16,076 | J131: 16,125 | K131: 8.43
A132: C6 | B132: 124,201 | C132: 124,800 | D132: 10351 | E132: 50 | F132: 10,400 | G132: 193,501 | H132: 194,100 | I132: 16,126 | J132: 16,175 | K132: 8.47
A133: C6 | B133: 124,801 | C133: 125,400 | D133: 10401 | E133: 50 | F133: 10,450 | G133: 194,101 | H133: 194,700 | I133: 16,176 | J133: 16,225 | K133: 8.52
A134: C6 | B134: 125,401 | C134: 126,000 | D134: 10451 | E134: 50 | F134: 10,500 | G134: 194,701 | H134: 195,300 | I134: 16,226 | J134: 16,275 | K134: 8.57
A135: C6 | B135: 126,001 | C135: 126,600 | D135: 10501 | E135: 50 | F135: 10,550 | G135: 195,301 | H135: 195,900 | I135: 16,276 | J135: 16,325 | K135: 8.6
A136: C6 | B136: 126,601 | C136: 127,200 | D136: 10551 | E136: 50 | F136: 10,600 | G136: 195,901 | H136: 196,500 | I136: 16,326 | J136: 16,375 | K136: 8.63
A137: C6 | B137: 127,201 | C137: 127,800 | D137: 10601 | E137: 50 | F137: 10,650 | G137: 196,501 | H137: 197,100 | I137: 16,376 | J137: 16,425 | K137: 8.66
A138: C6 | B138: 127,801 | C138: 128,400 | D138: 10651 | E138: 50 | F138: 10,700 | G138: 197,101 | H138: 197,700 | I138: 16,426 | J138: 16,475 | K138: 8.71
A139: C6 | B139: 128,401 | C139: 129,000 | D139: 10701 | E139: 50 | F139: 10,750 | G139: 197,701 | H139: 198,300 | I139: 16,476 | J139: 16,525 | K139: 8.74
A140: C6 | B140: 129,001 | C140: 129,600 | D140: 10751 | E140: 50 | F140: 10,800 | G140: 198,301 | H140: 198,900 | I140: 16,526 | J140: 16,575 | K140: 8.77
A141: C6 | B141: 129,601 | C141: 130,200 | D141: 10801 | E141: 50 | F141: 10,850 | G141: 198,901 | H141: 199,500 | I141: 16,576 | J141: 16,625 | K141: 8.81
A142: C6 | B142: 130,201 | C142: 130,800 | D142: 10851 | E142: 50 | F142: 10,900 | G142: 199,501 | H142: 200,100 | I142: 16,626 | J142: 16,675 | K142: 8.85
A143: C6 | B143: 130,801 | C143: 131,400 | D143: 10901 | E143: 50 | F143: 10,950 | G143: 200,101 | H143: 200,700 | I143: 16,676 | J143: 16,725 | K143: 8.88
A144: C6 | B144: 131,401 | C144: 132,000 | D144: 10951 | E144: 50 | F144: 11,000 | G144: 200,701 | H144: 201,300 | I144: 16,726 | J144: 16,775 | K144: 8.91
A145: C6 | B145: 132,001 | C145: 132,600 | D145: 11001 | E145: 50 | F145: 11,050 | G145: 201,301 | H145: 201,900 | I145: 16,776 | J145: 16,825 | K145: 8.97
A146: C6 | B146: 132,601 | C146: 133,200 | D146: 11051 | E146: 50 | F146: 11,100 | G146: 201,901 | H146: 202,500 | I146: 16,826 | J146: 16,875 | K146: 9.01
A147: C6 | B147: 133,201 | C147: 133,800 | D147: 11101 | E147: 50 | F147: 11,150 | G147: 202,501 | H147: 203,100 | I147: 16,876 | J147: 16,925 | K147: 9.04
A148: C6 | B148: 133,801 | C148: 134,400 | D148: 11151 | E148: 50 | F148: 11,200 | G148: 203,101 | H148: 203,700 | I148: 16,926 | J148: 16,975 | K148: 9.07
A149: C6 | B149: 134,401 | C149: 135,000 | D149: 11201 | E149: 50 | F149: 11,250 | G149: 203,701 | H149: 204,300 | I149: 16,976 | J149: 17,025 | K149: 9.12
A150: C6 | B150: 135,001 | C150: 135,600 | D150: 11251 | E150: 50 | F150: 11,300 | G150: 204,301 | H150: 204,900 | I150: 17,026 | J150: 17,075 | K150: 9.16
A151: C6 | B151: 135,601 | C151: 136,200 | D151: 11301 | E151: 50 | F151: 11,350 | G151: 204,901 | H151: 205,500 | I151: 17,076 | J151: 17,125 | K151: 9.19
A152: C6 | B152: 136,201 | C152: 136,800 | D152: 11351 | E152: 50 | F152: 11,400 | G152: 205,501 | H152: 206,100 | I152: 17,126 | J152: 17,175 | K152: 9.22
A153: C6 | B153: 136,801 | C153: 137,400 | D153: 11401 | E153: 50 | F153: 11,450 | G153: 206,101 | H153: 206,700 | I153: 17,176 | J153: 17,225 | K153: 9.28
A154: C6 | B154: 137,401 | C154: 138,000 | D154: 11451 | E154: 50 | F154: 11,500 | G154: 206,701 | H154: 207,300 | I154: 17,226 | J154: 17,275 | K154: 9.31
A155: C6 | B155: 138,001 | C155: 138,600 | D155: 11501 | E155: 50 | F155: 11,550 | G155: 207,301 | H155: 207,900 | I155: 17,276 | J155: 17,325 | K155: 9.35
A156: C6 | B156: 138,601 | C156: 139,200 | D156: 11551 | E156: 50 | F156: 11,600 | G156: 207,901 | H156: 208,500 | I156: 17,326 | J156: 17,375 | K156: 9.38
A157: C6 | B157: 139,201 | C157: 139,800 | D157: 11601 | E157: 50 | F157: 11,650 | G157: 208,501 | H157: 209,100 | I157: 17,376 | J157: 17,425 | K157: 9.43
A158: C6 | B158: 139,801 | C158: 140,400 | D158: 11651 | E158: 50 | F158: 11,700 | G158: 209,101 | H158: 209,700 | I158: 17,426 | J158: 17,475 | K158: 9.45
A159: C6 | B159: 140,401 | C159: 141,000 | D159: 11701 | E159: 50 | F159: 11,750 | G159: 209,701 | H159: 210,300 | I159: 17,476 | J159: 17,525 | K159: 9.48
A160: C6 | B160: 141,001 | C160: 141,600 | D160: 11751 | E160: 50 | F160: 11,800 | G160: 210,301 | H160: 210,900 | I160: 17,526 | J160: 17,575 | K160: 9.54
A161: C6 | B161: 141,601 | C161: 142,200 | D161: 11801 | E161: 50 | F161: 11,850 | G161: 210,901 | H161: 211,500 | I161: 17,576 | J161: 17,625 | K161: 9.57
A162: C6 | B162: 142,201 | C162: 142,800 | D162: 11851 | E162: 50 | F162: 11,900 | G162: 211,501 | H162: 212,100 | I162: 17,626 | J162: 17,675 | K162: 9.61
A163: C6 | B163: 142,801 | C163: 143,400 | D163: 11901 | E163: 50 | F163: 11,950 | G163: 212,101 | H163: 212,700 | I163: 17,676 | J163: 17,725 | K163: 9.65
A164: C6 | B164: 143,401 | C164: 144,000 | D164: 11951 | E164: 50 | F164: 12,000 | G164: 212,701 | H164: 213,300 | I164: 17,726 | J164: 17,775 | K164: 9.68
A165: C6 | B165: 144,001 | C165: 144,600 | D165: 12001 | E165: 50 | F165: 12,050 | G165: 213,301 | H165: 213,900 | I165: 17,776 | J165: 17,825 | K165: 9.7
A166: C6 | B166: 144,601 | C166: 145,200 | D166: 12051 | E166: 50 | F166: 12,100 | G166: 213,901 | H166: 214,500 | I166: 17,826 | J166: 17,875 | K166: 9.75
A167: C6 | B167: 145,201 | C167: 145,800 | D167: 12101 | E167: 50 | F167: 12,150 | G167: 214,501 | H167: 215,100 | I167: 17,876 | J167: 17,925 | K167: 9.79
A168: C6 | B168: 145,801 | C168: 146,400 | D168: 12151 | E168: 50 | F168: 12,200 | G168: 215,101 | H168: 215,700 | I168: 17,926 | J168: 17,975 | K168: 9.82
A169: C6 | B169: 146,401 | C169: 147,000 | D169: 12201 | E169: 50 | F169: 12,250 | G169: 215,701 | H169: 216,300 | I169: 17,976 | J169: 18,025 | K169: 9.85
A170: C6 | B170: 147,001 | C170: 147,600 | D170: 12251 | E170: 50 | F170: 12,300 | G170: 216,301 | H170: 216,900 | I170: 18,026 | J170: 18,075 | K170: 9.89
A171: C6 | B171: 147,601 | C171: 148,200 | D171: 12301 | E171: 50 | F171: 12,350 | G171: 216,901 | H171: 217,500 | I171: 18,076 | J171: 18,125 | K171: 9.92
A172: C6 | B172: 148,201 | C172: 148,800 | D172: 12351 | E172: 50 | F172: 12,400 | G172: 217,501 | H172: 218,100 | I172: 18,126 | J172: 18,175 | K172: 9.96
A173: C6 | B173: 148,801 | C173: 149,400 | D173: 12401 | E173: 50 | F173: 12,450 | G173: 218,101 | H173: 218,700 | I173: 18,176 | J173: 18,225 | K173: 9.99
A174: C6 | B174: 149,401 | C174: 150,000 | D174: 12451 | E174: 50 | F174: 12,500 | G174: 218,701 | H174: 219,300 | I174: 18,226 | J174: 18,275 | K174: 10.05
A175: C6 | B175: 150,001 | C175: 150,600 | D175: 12501 | E175: 50 | F175: 12,550 | G175: 219,301 | H175: 219,900 | I175: 18,276 | J175: 18,325 | K175: 10.08
A176: C6 | B176: 150,601 | C176: 151,200 | D176: 12551 | E176: 50 | F176: 12,600 | G176: 219,901 | H176: 220,500 | I176: 18,326 | J176: 18,375 | K176: 10.11
A177: C6 | B177: 151,201 | C177: 151,800 | D177: 12601 | E177: 50 | F177: 12,650 | G177: 220,501 | H177: 221,100 | I177: 18,376 | J177: 18,425 | K177: 10.16
A178: C6 | B178: 151,801 | C178: 152,400 | D178: 12651 | E178: 50 | F178: 12,700 | G178: 221,101 | H178: 221,700 | I178: 18,426 | J178: 18,475 | K178: 10.19
A179: C6 | B179: 152,401 | C179: 153,000 | D179: 12701 | E179: 50 | F179: 12,750 | G179: 221,701 | H179: 222,300 | I179: 18,476 | J179: 18,525 | K179: 10.23
A180: C6 | B180: 153,001 | C180: 153,600 | D180: 12751 | E180: 50 | F180: 12,800 | G180: 222,301 | H180: 222,900 | I180: 18,526 | J180: 18,575 | K180: 10.25
A181: C6 | B181: 153,601 | C181: 154,200 | D181: 12801 | E181: 50 | F181: 12,850 | G181: 222,901 | H181: 223,500 | I181: 18,576 | J181: 18,625 | K181: 10.31
A182: C6 | B182: 154,201 | C182: 154,800 | D182: 12851 | E182: 50 | F182: 12,900 | G182: 223,501 | H182: 224,100 | I182: 18,626 | J182: 18,675 | K182: 10.33
A183: C6 | B183: 154,801 | C183: 155,400 | D183: 12901 | E183: 50 | F183: 12,950 | G183: 224,101 | H183: 224,700 | I183: 18,676 | J183: 18,725 | K183: 10.38
A184: C6 | B184: 155,401 | C184: 156,000 | D184: 12951 | E184: 50 | F184: 13,000 | G184: 224,701 | H184: 225,300 | I184: 18,726 | J184: 18,775 | K184: 10.4
A185: C6 | B185: 156,001 | C185: 156,600 | D185: 13001 | E185: 50 | F185: 13,050 | G185: 225,301 | H185: 225,900 | I185: 18,776 | J185: 18,825 | K185: 10.45
A186: C6 | B186: 156,601 | C186: 157,200 | D186: 13051 | E186: 50 | F186: 13,100 | G186: 225,901 | H186: 226,500 | I186: 18,826 | J186: 18,875 | K186: 10.47
A187: C6 | B187: 157,201 | C187: 157,800 | D187: 13101 | E187: 50 | F187: 13,150 | G187: 226,501 | H187: 227,100 | I187: 18,876 | J187: 18,925 | K187: 10.52
A188: C6 | B188: 157,801 | C188: 158,400 | D188: 13151 | E188: 50 | F188: 13,200 | G188: 227,101 | H188: 227,700 | I188: 18,926 | J188: 18,975 | K188: 10.55
A189: C6 | B189: 158,401 | C189: 159,000 | D189: 13201 | E189: 50 | F189: 13,250 | G189: 227,701 | H189: 228,300 | I189: 18,976 | J189: 19,025 | K189: 10.59
A190: C6 | B190: 159,001 | C190: 159,600 | D190: 13251 | E190: 50 | F190: 13,300 | G190: 228,301 | H190: 228,900 | I190: 19,026 | J190: 19,075 | K190: 10.62
A191: C6 | B191: 159,601 | C191: 160,200 | D191: 13301 | E191: 50 | F191: 13,350 | G191: 228,901 | H191: 229,500 | I191: 19,076 | J191: 19,125 | K191: 10.65
A192: C6 | B192: 160,201 | C192: 160,800 | D192: 13351 | E192: 50 | F192: 13,400 | G192: 229,501 | H192: 230,100 | I192: 19,126 | J192: 19,175 | K192: 10.69
A193: C6 | B193: 160,801 | C193: 161,400 | D193: 13401 | E193: 50 | F193: 13,450 | G193: 230,101 | H193: 230,700 | I193: 19,176 | J193: 19,225 | K193: 10.73
A194: C6 | B194: =(D194-1)*12+1 -> 161,401 | C194: =F194*12 -> 162,000 | D194: 13451 | E194: 50 | F194: =D194-1+E194 -> 13,500 | G194: 230,701 | H194: 231,300 | I194: =(G194-1)/12+1 -> 19,226 | J194: =H194/12 -> 19,275 | K194: 10.77
A195: C6 | B195: 162,001 | C195: 162,600 | D195: 13501 | E195: 50 | F195: 13,550 | G195: =MIN((B195-1)*2+1,B195+69300) -> 231,301 | H195: =MIN((C195)*2,C195+69300) -> 231,900 | I195: 19,276 | J195: 19,325 | K195: 10.8
A196: C6 | B196: 162,601 | C196: 163,200 | D196: 13551 | E196: 50 | F196: 13,600 | G196: 231,901 | H196: 232,500 | I196: 19,326 | J196: 19,375 | K196: 10.83
A197: C6 | B197: 163,201 | C197: 163,800 | D197: 13601 | E197: 50 | F197: 13,650 | G197: 232,501 | H197: 233,100 | I197: 19,376 | J197: 19,425 | K197: 10.88
A198: C6 | B198: 163,801 | C198: 164,400 | D198: 13651 | E198: 50 | F198: 13,700 | G198: 233,101 | H198: 233,700 | I198: 19,426 | J198: 19,475 | K198: 10.91
A199: C6 | B199: 164,401 | C199: 165,000 | D199: 13701 | E199: 50 | F199: 13,750 | G199: 233,701 | H199: 234,300 | I199: 19,476 | J199: 19,525 | K199: 10.95
A200: C6 | B200: 165,001 | C200: 165,600 | D200: 13751 | E200: 50 | F200: 13,800 | G200: 234,301 | H200: 234,900 | I200: 19,526 | J200: 19,575 | K200: 10.98
... 285 more rows
